{"text_format":"3","workbook":"xlsx","n_sheets":1,"sheets":["Sheet1"],"not_rendered":{"defined_names":1},"read":"whole","date_system":"1900"}

{"sheet":"Sheet1","index":0,"n_rows":1257,"n_cols":7,"rows_kept":1257,"merged":[[0,0,0,6],[2,0,2,6],[3,0,3,6],[4,0,5,0],[4,1,5,1],[4,2,5,2],[4,3,5,3],[4,4,4,5],[4,6,5,6],[19,0,19,6],[20,0,20,6],[21,0,22,0],[21,1,22,1],[21,2,22,2],[21,3,22,3],[21,4,21,5],[21,6,22,6],[124,0,124,6],[125,0,125,6],[126,0,127,0],[126,1,127,1],[126,2,127,2],[126,3,127,3],[126,4,126,5],[126,6,127,6],[149,0,149,6],[150,0,150,6],[151,0,152,0],[151,1,152,1],[151,2,152,2],[151,3,152,3],[151,4,151,5],[151,6,152,6],[168,0,168,6],[169,0,169,6],[170,0,171,0],[170,1,171,1],[170,2,171,2],[170,3,171,3],[170,4,170,5],[170,6,171,6],[223,0,223,6],[224,0,224,6],[225,0,225,6],[226,0,227,0],[226,1,227,1],[226,2,227,2],[226,3,227,3],[226,4,226,5],[226,6,227,6],[289,0,289,6],[290,0,290,6],[291,0,291,6],[292,0,293,0],[292,1,293,1],[292,2,293,2],[292,3,293,3],[292,4,292,5],[292,6,293,6],[295,0,295,6],[296,0,296,6],[297,0,298,0],[297,1,298,1],[297,2,298,2],[297,3,298,3],[297,4,297,5],[297,6,298,6],[326,0,326,6],[327,0,327,6],[328,0,328,6],[329,0,330,0],[329,1,330,1],[329,2,330,2],[329,3,330,3],[329,4,329,5],[329,6,330,6],[346,0,346,6],[347,0,347,6],[348,0,349,0],[348,1,349,1],[348,2,349,2],[348,3,349,3],[348,4,348,5],[348,6,349,6],[362,0,362,6],[363,0,363,6],[364,0,365,0],[364,1,365,1],[364,2,365,2],[364,3,365,3],[364,4,364,5],[364,6,365,6],[454,0,454,6],[455,0,455,6],[456,0,457,0],[456,1,457,1],[456,2,457,2],[456,3,457,3],[456,4,456,5],[456,6,457,6],[500,0,500,6],[501,0,501,6],[502,0,503,0],[502,1,503,1],[502,2,503,2],[502,3,503,3],[502,4,502,5],[502,6,503,6],[639,0,639,6],[640,0,640,6],[641,0,642,0],[641,1,642,1],[641,2,642,2],[641,3,642,3],[641,4,641,5],[641,6,642,6],[654,0,654,6],[655,0,655,6],[656,0,657,0],[656,1,657,1],[656,2,657,2],[656,3,657,3],[656,4,656,5],[656,6,657,6],[763,0,763,6],[764,0,764,6],[765,0,766,0],[765,1,766,1],[765,2,766,2],[765,3,766,3],[765,4,765,5],[765,6,766,6],[808,0,808,6],[809,0,809,6],[810,0,811,0],[810,1,811,1],[810,2,811,2],[810,3,811,3],[810,4,810,5],[810,6,811,6],[827,0,827,6],[828,0,828,6],[829,0,830,0],[829,1,830,1],[829,2,830,2],[829,3,830,3],[829,4,829,5],[829,6,830,6],[899,0,899,6],[900,0,900,6],[901,0,902,0],[901,1,902,1],[901,2,902,2],[901,3,902,3],[901,4,901,5],[901,6,902,6],[991,0,991,6],[992,0,992,6],[993,0,994,0],[993,1,994,1],[993,2,994,2],[993,3,994,3],[993,4,993,5],[993,6,994,6],[1103,0,1103,6],[1104,0,1104,6],[1105,0,1106,0],[1105,1,1106,1],[1105,2,1106,2],[1105,3,1106,3],[1105,4,1105,5],[1105,6,1106,6],[1124,0,1124,6],[1125,0,1125,6],[1126,0,1127,0],[1126,1,1127,1],[1126,2,1127,2],[1126,3,1127,3],[1126,4,1126,5],[1126,6,1127,6],[1140,0,1140,6],[1141,0,1141,6],[1142,0,1143,0],[1142,1,1143,1],[1142,2,1143,2],[1142,3,1143,3],[1142,4,1142,5],[1142,6,1143,6],[1193,0,1193,6],[1194,0,1194,6],[1195,0,1196,0],[1195,1,1196,1],[1195,2,1196,2],[1195,3,1196,3],[1195,4,1195,5],[1195,6,1196,6]]}
["街路巷命名核准明细表"]
[]
["一、月山镇（150条）"]
["1、钱岗村（13条）"]
["序号","道路名称","汉语拼音","位置描述","基本参数",null,"走向"]
[{"$nulls":4},"长","宽"]
[1,"东平村一巷","Dōngpíngcūn 1 Xiàng","东起东平村一巷1号，\n西至东平村一巷22号",101,1.5,"东西"]
[2,"东平村二巷","Dōngpíngcūn 2 Xiàng","东起东平村二巷1号，\n西至东平村二巷22号",101,1.5,"东西"]
[3,"东平村三巷","Dōngpíngcūn 3 Xiàng","东起东平村三巷1号，\n西至东平村三巷22号",101,1.5,"东西"]
[4,"东平村四巷","Dōngpíngcūn 4 Xiàng","东起东平村四巷1号，\n西至东平村四巷22号",101,1.5,"东西"]
[5,"东平村五巷","Dōngpíngcūn 5 Xiàng","东起东平村五巷1号，\n西至东平村五巷16号",83,1.5,"东西"]
[6,"东平村六巷","Dōngpíngcūn 6 Xiàng","东起东平村六巷1号，\n西至东平村六巷16号",83,1.5,"东西"]
[7,"东平村七巷","Dōngpíngcūn 7 Xiàng","东起东平村七巷1号，\n西至东平村七巷16号",83,1.5,"东西"]
[8,"东平村八巷","Dōngpíngcūn 8 Xiàng","东起东平村八巷1号，\n西至东平村八巷16号",83,1.5,"东西"]
[9,"东平村九巷","Dōngpíngcūn 9 Xiàng","东起东平村九巷1号，\n西至东平村九巷16号",83,1.5,"东西"]
[10,"东平村十巷","Dōngpíngcūn 10 Xiàng","东起东平村十巷1号，\n西至东平村十巷18号",89,1.5,"东西"]
[11,"东平村十一巷","Dōngpíngcūn 11 Xiàng","东起东平村十一巷1号，\n西至东平村十一巷18号",89,1.5,"东西"]
[12,"东平村十二巷","Dōngpíngcūn 12 Xiàng","东起东平村十二巷1号，\n西至东平村十二巷18号",89,1.5,"东西"]
[13,"东平村十三巷","Dōngpíngcūn 13 Xiàng","东起东平村十三巷1号，\n西至东平村十三巷12号",89,1.5,"东西"]
[]
["2、水二村（101条）"]
["序号","道路名称","汉语拼音","位置描述","基本参数",null,"走向"]
[{"$nulls":4},"长","宽"]
[1,"金屋村一巷","Jīnwūcūn 1 Xiàng","南起金屋村一巷1号，\n北至金屋村一巷5号",75,2.3,"南北"]
[2,"金屋村二巷","Jīnwūcūn 2 Xiàng","南起金屋村二巷1号，\n北至金屋村二巷6号",70,2.8,"南北"]
[3,"金屋村三巷","Jīnwūcūn 3 Xiàng","南起金屋村三巷1号，\n北至金屋村三巷7号",70,2.8,"南北"]
[4,"金屋村四巷","Jīnwūcūn 4 Xiàng","南起金屋村四巷1号，\n北至金屋村四巷8号",70,2.3,"南北"]
[5,"金屋村五巷","Jīnwūcūn 5 Xiàng","南起金屋村五巷1号，\n北至金屋村五巷9号",65,2.3,"南北"]
[6,"龙尾村一巷","Lóngwěicūn 1 Xiàng","南起龙尾村一巷1号，\n北至龙尾村一巷25号",125,2.5,"南北"]
[7,"龙尾村二巷","Lóngwěicūn 2 Xiàng","南起龙尾村二巷1号，\n北至龙尾村二巷18号",135,2.5,"南北"]
[8,"龙尾村三巷","Lóngwěicūn 3 Xiàng","南起龙尾村三巷1号，\n北至龙尾村三巷20号",135,1.2,"南北"]
[9,"龙尾村四巷","Lóngwěicūn 4 Xiàng","南起龙尾村四巷1号，\n北至龙尾村四巷18号",90,1.2,"南北"]
[10,"龙尾村五巷","Lóngwěicūn 5 Xiàng","南起龙尾村五巷1号，\n北至龙尾村五巷21号",85,1,"南北"]
[11,"龙尾村六巷","Lóngwěicūn 6 Xiàng","南起龙尾村六巷1号，\n北至龙尾村六巷20号",82,2.5,"南北"]
[12,"龙尾村七巷","Lóngwěicūn 7 Xiàng","南起龙尾村七巷1号，\n北至龙尾村七巷17号",80,2.5,"南北"]
[13,"龙尾村八巷","Lóngwěicūn 8 Xiàng","南起龙尾村八巷1号，\n北至龙尾村八巷16号",65,2.5,"南北"]
[14,"龙尾村九巷","Lóngwěicūn 9 Xiàng","南起龙尾村九巷1号，\n北至龙尾村九巷14号",70,1.2,"南北"]
[15,"龙尾村十巷","Lóngwěicūn 10 Xiàng","南起龙尾村十巷1号，\n北至龙尾村十巷15号",70,2.5,"南北"]
[16,"龙尾村十一巷","Lóngwěicūn 11 Xiàng","南起龙尾村十巷1号，\n北至龙尾村十巷16号",70,2.5,"南北"]
[17,"龙尾村十二巷","Lóngwěicūn 12 Xiàng","南起龙尾村十巷1号，\n北至龙尾村十巷17号",71,2.3,"南北"]
[18,"龙尾村二村一巷","Lóngwěicūn Èrcūn 1 Xiàng","南起龙尾村二村一巷1号，\n北至龙尾村二村一巷16号",82,1.2,"南北"]
[19,"龙尾村二村二巷","Lóngwěicūn Èrcūn 2 Xiàng","南起龙尾村二村二巷1号，\n北至龙尾村二村二巷17号",93,1.2,"南北"]
[20,"龙尾村二村三巷","Lóngwěicūn Èrcūn 3 Xiàng","南起龙尾村二村三巷1号，\n北至龙尾村二村三巷18号",90,2.5,"南北"]
[21,"龙尾村二村四巷","Lóngwěicūn Èrcūn 4 Xiàng","南起龙尾村二村四巷1号，\n北至龙尾村二村四巷19号",90,1.2,"南北"]
[22,"龙尾村二村五巷","Lóngwěicūn Èrcūn 5 Xiàng","南起龙尾村二村五巷1号，\n北至龙尾村二村五巷20号",90,1.2,"南北"]
[23,"龙尾村二村六巷","Lóngwěicūn Èrcūn 6 Xiàng","南起龙尾村二村六巷1号，\n北至龙尾村二村六巷22号",80,1.2,"南北"]
[24,"龙尾村二村七巷","Lóngwěicūn Èrcūn 7 Xiàng","南起龙尾村二村七巷1号，\n北至龙尾村二村七巷23号",60,1.2,"南北"]
[25,"龙尾村三村一巷","Lóngwěicūn Sāncūn 1 Xiàng","南起龙尾村三村一巷1号，\n北至月山尾村三村一巷25号",82,1.2,"南北"]
[26,"龙尾村三村二巷","Lóngwěicūn Sāncūn 2 Xiàng","南起龙尾村三村二巷1号，\n北至龙尾村三村二巷26号",85,2.5,"南北"]
[27,"龙尾村三村三巷","Lóngwěicūn Sāncūn 3 Xiàng","南起龙尾村三村三巷1号，\n北至龙尾村三村三巷27号",90,2.5,"南北"]
[28,"龙尾村三村四巷","Lóngwěicūn Sāncūn 4 Xiàng","南起龙尾村三村四巷1号，\n北至龙尾村三村四巷28号",90,2.5,"南北"]
[29,"三山塘村一巷","Sānshāntángcūn 1 Xiàng","南起三山塘村一巷1号，\n北至三山塘村一巷5号",70,1.5,"南北"]
[30,"三山塘村二巷","Sānshāntángcūn 2 Xiàng","南起三山塘村二巷1号，\n北至三山塘村二巷6号",70,1.5,"南北"]
[31,"三山塘村三巷","Sānshāntángcūn 3 Xiàng","南起三山塘村三巷1号，\n北至三山塘村三巷7号",70,1.5,"南北"]
[32,"三山塘村四巷","Sānshāntángcūn 4 Xiàng","南起三山塘村四巷1号，\n北至三山塘村四巷8号",70,1.5,"南北"]
[33,"三山塘村五巷","Sānshāntángcūn 5 Xiàng","南起三山塘村五巷1号，\n北至三山塘村五巷9号",70,1.5,"南北"]
[34,"三山塘村六巷","Sānshāntángcūn 6 Xiàng","南起三山塘村六巷1号，\n北至三山塘村六巷10号",70,1.5,"南北"]
[35,"三山塘村七巷","Sānshāntángcūn 7 Xiàng","南起三山塘村七巷1号，\n北至三山塘村七巷11号",65,1.5,"南北"]
[36,"三山塘村八巷","Sānshāntángcūn 8 Xiàng","南起三山塘村八巷1号，\n北至三山塘村八巷12号",70,1.5,"南北"]
[37,"三山塘村九巷","Sānshāntángcūn 9 Xiàng","南起三山塘村九巷1号，\n北至三山塘村九巷13号",70,1.5,"南北"]
[38,"水二新村一巷","Shuǐèr Xīncūn 1 Xiàng","南起水二新村一巷1号，\n北至水二新村一巷5号",70,1.5,"南北"]
[39,"水二新村二巷","Shuǐèr Xīncūn 2 Xiàng","南起水二新村二巷1号，\n北至水二新村二巷6号",65,1,"南北"]
[40,"水二新村三巷","Shuǐèr Xīncūn 3 Xiàng","南起水二新村三巷1号，\n北至水二新村三巷7号",70,1,"南北"]
[41,"水二新村四巷","Shuǐèr Xīncūn 4 Xiàng","南起水二新村四巷1号，\n北至水二新村四巷8号",85,1.5,"南北"]
[42,"水二新村五巷","Shuǐèr Xīncūn 5 Xiàng","南起水二新村五巷1号，\n北至水二新村五巷9号",90,2,"南北"]
[43,"水二新村六巷","Shuǐèr Xīncūn 6 Xiàng","南起水二新村六巷1号，\n北至水二新村六巷10号",90,1.5,"南北"]
[44,"水二新村七巷","Shuǐèr Xīncūn 7 Xiàng","南起水二新村七巷1号，\n北至水二新村七巷11号",90,1.5,"南北"]
[45,"水二新村八巷","Shuǐèr Xīncūn 8 Xiàng","南起水二新村八巷1号，\n北至水二新村八巷12号",90,1.5,"南北"]
[46,"水二新村九巷","Shuǐèr Xīncūn 9 Xiàng","南起水二新村九巷1号，\n北至水二新村九巷13号",90,1.5,"南北"]
[47,"水二新村十巷","Shuǐèr Xīncūn 10 Xiàng","南起水二新村十巷1号，\n北至水二新村十巷14号",90,1.5,"南北"]
[48,"新农村一巷","Xīnnóngcūn 1 xiàng","南起新农村一巷1号，\n北至新农村一巷5号",70,1.2,"南北"]
[49,"新农村二巷","Xīnnóngcūn 2 xiàng","南起新农村二巷1号，\n北至新农村二巷6号",70,1.2,"南北"]
[50,"新农村三巷","Xīnnóngcūn 3 xiàng","南起新农村三巷1号，\n北至新农村三巷7号",70,1.2,"南北"]
[51,"新农村四巷","Xīnnóngcūn 4 xiàng","南起新农村四巷1号，\n北至新农村四巷8号",85,1.5,"南北"]
[52,"新农村五巷","Xīnnóngcūn 5 xiàng","南起新农村五巷1号，\n北至新农村五巷9号",90,1.2,"南北"]
[53,"新农村六巷","Xīnnóngcūn 6 xiàng","南起新农村六巷1号，\n北至新农村六巷10号",90,1.2,"南北"]
[54,"新农村七巷","Xīnnóngcūn 7 xiàng","南起新农村七巷1号，\n北至新农村七巷11号",90,1.2,"南北"]
[55,"新农村八巷","Xīnnóngcūn 8 xiàng","南起新农村八巷1号，\n北至新农村八巷12号",90,1.2,"南北"]
[56,"新农村九巷","Xīnnóngcūn 9 xiàng","南起新农村九巷1号，\n北至新农村九巷13号",90,1.2,"南北"]
[57,"水二新屋村一巷","Shuǐèr Xīnwūcūn 1 Xiàng","南起水二新屋村一巷1号，\n北至水二新屋村一巷5号",75,2.2,"南北"]
[58,"水二新屋村二巷","Shuǐèr Xīnwūcūn 2 Xiàng","南起水二新屋村二巷1号，\n北至水二新屋村二巷6号",70,2.2,"南北"]
[59,"水二新屋村三巷","Shuǐèr Xīnwūcūn 3 Xiàng","南起水二新屋村三巷1号，\n北至水二新屋村三巷7号",70,2.2,"南北"]
[60,"水二新屋村四巷","Shuǐèr Xīnwūcūn 4 Xiàng","南起水二新屋村四巷1号，\n北至水二新屋村四巷8号",75,2.2,"南北"]
[61,"水二新屋村五巷","Shuǐèr Xīnwūcūn 5 Xiàng","南起水二新屋村五巷1号，\n北至水二新屋村五巷9号",75,2.2,"南北"]
[62,"水二新屋村六巷","Shuǐèr Xīnwūcūn 6 Xiàng","南起水二新屋村六巷1号，\n北至水二新屋村六巷10号",75,2.2,"南北"]
[63,"水二新屋村七巷","Shuǐèr Xīnwūcūn 7 Xiàng","南起水二新屋村七巷1号，\n北至水二新屋村七巷11号",80,2.2,"南北"]
[64,"水二新屋村八巷","Shuǐèr Xīnwūcūn 8 Xiàng","南起水二新屋村八巷1号，\n北至水二新屋村八巷12号",80,2.2,"南北"]
[65,"水二新屋村九巷","Shuǐèr Xīnwūcūn 9 Xiàng","南起水二新屋村九巷1号，\n北至水二新屋村九巷13号",80,2.2,"南北"]
[66,"秧坎咀村一巷","Yāngkǎnzuǐcūn 1 Xiàng","南起秧坎咀村一巷1号，\n北至秧坎咀村一巷25号",86,1.3,"南北"]
[67,"秧坎咀村二巷","Yāngkǎnzuǐcūn 2 Xiàng","南起秧坎咀村二巷1号，\n北至秧坎咀村二巷18号",90,1.3,"南北"]
[68,"秧坎咀村三巷","Yāngkǎnzuǐcūn 3 Xiàng","南起秧坎咀村三巷1号，\n北至秧坎咀村三巷20号",108,1.3,"南北"]
[69,"秧坎咀村四巷","Yāngkǎnzuǐcūn 4 Xiàng","南起秧坎咀村四巷1号，\n北至秧坎咀村四巷18号",108,1.3,"南北"]
[70,"秧坎咀村五巷","Yāngkǎnzuǐcūn 5 Xiàng","南起秧坎咀村五巷1号，\n北至秧坎咀村五巷21号",90,1.3,"南北"]
[71,"秧坎咀村六巷","Yāngkǎnzuǐcūn 6 Xiàng","南起秧坎咀村六巷1号，\n北至秧坎咀村六巷20号",86,2.5,"南北"]
[72,"秧坎咀村七巷","Yāngkǎnzuǐcūn 7 Xiàng","南起秧坎咀村七巷1号，\n北至秧坎咀村七巷21号",86,1.3,"南北"]
[73,"秧坎咀村八巷","Yāngkǎnzuǐcūn 8 Xiàng","南起秧坎咀村八巷1号，\n北至秧坎咀村八巷22号",108,1.3,"南北"]
[74,"秧坎咀村九巷","Yāngkǎnzuǐcūn 9 Xiàng","南起秧坎咀村九巷1号，\n北至秧坎咀村九巷14号",108,1.3,"南北"]
[75,"秧坎咀村十巷","Yāngkǎnzuǐcūn 10 Xiàng","南起秧坎咀村十巷1号，\n北至秧坎咀村十巷15号",108,1.3,"南北"]
[76,"秧坎咀村十一巷","Yāngkǎnzuǐcūn 11 Xiàng","南起秧坎咀村十一巷1号，\n北至秧坎咀村十一巷16号",100,1.3,"南北"]
[77,"杨屋村一巷","Yángwūcūn 1 Xiàng","南起杨屋村一巷1号，\n北至杨屋村一巷5号",60,1.5,"南北"]
[78,"杨屋村二巷","Yángwūcūn 2 Xiàng","南起杨屋村二巷1号，\n北至杨屋村二巷6号",85,1,"南北"]
[79,"杨屋村三巷","Yángwūcūn 3 Xiàng","南起杨屋村三巷1号，\n北至杨屋村三巷7号",95,1,"南北"]
[80,"杨屋村四巷","Yángwūcūn 4 Xiàng","南起杨屋村四巷1号，\n北至杨屋村四巷8号",95,1.5,"南北"]
[81,"杨屋村五巷","Yángwūcūn 5 Xiàng","南起杨屋村五巷1号，\n北至杨屋村五巷9号",90,2,"南北"]
[82,"杨屋村六巷","Yángwūcūn 6 Xiàng","南起杨屋村六巷1号，\n北至杨屋村六巷10号",90,1.5,"南北"]
[83,"杨屋村七巷","Yángwūcūn 7 Xiàng","南起杨屋村七巷1号，\n北至杨屋村七巷11号",90,1.5,"南北"]
[84,"杨屋村八巷","Yángwūcūn 8 Xiàng","南起杨屋村八巷1号，\n北至杨屋村八巷12号",90,1.5,"南北"]
[85,"杨屋村九巷","Yángwūcūn 9 Xiàng","南起杨屋村九巷1号，\n北至杨屋村九巷13号",70,1.5,"南北"]
[86,"水二叶屋村一巷","Shuǐèr Yèwūcūn 1 Xiàng","南起水二叶屋村一巷1号，\n北至水二叶屋村一巷25号",78,1.2,"南北"]
[87,"水二叶屋村二巷","Shuǐèr Yèwūcūn 2 Xiàng","南起水二叶屋村二巷1号，\n北至水二叶屋村二巷18号",93,2.8,"南北"]
[88,"水二叶屋村三巷","Shuǐèr Yèwūcūn 3 Xiàng","南起水二叶屋村三巷1号，\n北至水二叶屋村三巷20号",89,1.2,"南北"]
[89,"水二叶屋村四巷","Shuǐèr Yèwūcūn 4 Xiàng","南起水二叶屋村四巷1号，\n北至水二叶屋村四巷18号",95,1.2,"南北"]
[90,"水二叶屋村五巷","Shuǐèr Yèwūcūn 5 Xiàng","南起水二叶屋村五巷1号，\n北至水二叶屋村五巷21号",95,2.8,"南北"]
[91,"水二叶屋村六巷","Shuǐèr Yèwūcūn 6 Xiàng","南起水二叶屋村六巷1号，\n北至水二叶屋村六巷20号",80,1.2,"南北"]
[92,"水二叶屋村七巷","Shuǐèr Yèwūcūn 7 Xiàng","南起水二叶屋村七巷1号，\n北至水二叶屋村七巷17号",96,2.8,"南北"]
[93,"水二叶屋村八巷","Shuǐèr Yèwūcūn 8 Xiàng","南起水二叶屋村八巷1号，\n北至水二叶屋村八巷16号",103,1.2,"南北"]
[94,"水二叶屋村九巷","Shuǐèr Yèwūcūn 9 Xiàng","南起水二叶屋村九巷1号，\n北至水二叶屋村九巷14号",96,1.2,"南北"]
[95,"水二叶屋村十巷","Shuǐèr Yèwūcūn 10 Xiàng","南起水二叶屋村十巷1号，\n北至水二叶屋村十巷15号",90,1.2,"南北"]
[96,"水二叶屋村十一巷","Shuǐèr Yèwūcūn 11 Xiàng","南起水二叶屋村十一巷1号，\n北至水二叶屋村十一巷16号",83,1.2,"南北"]
[97,"水二叶屋村十二巷","Shuǐèr Yèwūcūn 12 Xiàng","南起水二叶屋村十二巷1号，\n北至水二叶屋村十二巷17号",80,1.2,"南北"]
[98,"水二叶屋村十三巷","Shuǐèr Yèwūcūn 13 Xiàng","南起水二叶屋村十三巷1号，\n北至水二叶屋村十三巷18号",78,2.8,"南北"]
[99,"水二叶屋村十四巷","Shuǐèr Yèwūcūn 14 Xiàng","南起水二叶屋村十四巷1号，\n北至水二叶屋村十四巷19号",78,1.2,"南北"]
[100,"水二叶屋村十五巷","Shuǐèr Yèwūcūn 15 Xiàng","南起水二叶屋村十五巷1号，\n北至水二叶屋村十五巷20号",70,2.8,"南北"]
[101,"水二叶屋村十六巷","Shuǐèr Yèwūcūn 16 Xiàng","南起水二叶屋村十六巷1号，\n北至水二叶屋村十六巷21号",68,1.2,"南北"]
[]
["3、水四村（21条）"]
["序号","道路名称","汉语拼音","位置描述","基本参数",null,"走向"]
[{"$nulls":4},"长","宽"]
[1,"水四大坪村一巷","Shuǐsì Dàpíngcūn 1 Xiàng","西起水四大坪村一巷1号，\n东至水四大坪村一巷2号",31,1.6,"西东"]
[2,"水四大坪村二巷","Shuǐsì Dàpíngcūn 2 Xiàng","西起水四大坪村二巷1号，\n东至水四大坪村二巷2号",65,1.6,"西东"]
[3,"水四大坪村三巷","Shuǐsì Dàpíngcūn 3 Xiàng","西起水四大坪村三巷1号，\n东至水四大坪村三巷2号",62,1.6,"西东"]
[4,"水四大坪村四巷","Shuǐsì Dàpíngcūn 4 Xiàng","西起水四大坪村四巷1号，\n东至水四大坪村四巷4号",66,1.6,"西东"]
[5,"水四大坪村五巷","Shuǐsì Dàpíngcūn 5 Xiàng","西起水四大坪村五巷1号，\n东至水四大坪村五巷3号",61,1.6,"西东"]
[6,"水四大坪村六巷","Shuǐsì Dàpíngcūn 6 Xiàng","西起水四大坪村六巷1号，\n东至水四大坪村六巷4号",56,1.6,"西东"]
[7,"水四大坪村七巷","Shuǐsì Dàpíngcūn 7 Xiàng","西起水四大坪村七巷1号，\n东至水四大坪村七巷4号",38,1.6,"西东"]
[8,"水四大坪村八巷","Shuǐsì Dàpíngcūn 8 Xiàng","西起水四大坪村八巷1号，\n东至水四大坪村八巷4号",21,1.6,"西东"]
[9,"水四大坪村九巷","Shuǐsì Dàpíngcūn 9 Xiàng","西起水四大坪村九巷1号，\n东至水四大坪村九巷4号",25,1.6,"西东"]
[10,"水四大坪村十巷","Shuǐsì Dàpíngcūn 10 Xiàng","西起水四大坪村十巷1号，\n东至水四大坪村十巷4号",25,1.6,"西东"]
[11,"水四大坪村十一巷","Shuǐsì Dàpíngcūn 11 Xiàng","西起水四大坪村十一巷1号，\n东至水四大坪村十一巷4号",45,1.6,"西东"]
[12,"水四大坪村十二巷","Shuǐsì Dàpíngcūn 12 Xiàng","西起水四大坪村十二巷1号，\n东至水四大坪村十二巷4号",49,1.6,"西东"]
[13,"水四大坪村十三巷","Shuǐsì Dàpíngcūn 13 Xiàng","西起水四大坪村十三巷1号，\n东至水四大坪村十三巷4号",50,1.6,"西东"]
[14,"水四大坪村十四巷","Shuǐsì Dàpíngcūn 14 Xiàng","西起水四大坪村十四巷4号，\n东至水四大坪村十四巷4号",50,1.6,"西东"]
[15,"水四大坪村十五巷","Shuǐsì Dàpíngcūn 15 Xiàng","西起水四大坪村十五巷1号，\n东至水四大坪村十五巷4号",60,1.6,"西东"]
[16,"水四大坪村十六巷","Shuǐsì Dàpíngcūn 16 Xiàng","西起水四大坪村十六巷1号，\n东至水四大坪村十六巷4号",65,1.6,"西东"]
[17,"水四大坪村十七巷","Shuǐsì Dàpíngcūn 17 Xiàng","西起水四大坪村十七巷1号，\n东至水四大坪村十七巷4号",65,1.6,"西东"]
[18,"水四大坪村十八巷","Shuǐsì Dàpíngcūn 18 Xiàng","西起水四大坪村十八巷1号，\n东至水四大坪村十八巷3号",33,1.6,"西东"]
[19,"水四大坪村十九巷","Shuǐsì Dàpíngcūn 19 Xiàng","西起水四大坪村十九巷1号，\n东至水四大坪村十九巷3号",68,1.6,"西东"]
[20,"水四大坪村二十巷","Shuǐsì Dàpíngcūn 20 Xiàng","西起水四大坪村二十巷1号，\n东至水四大坪村二十巷2号",66,1.6,"西东"]
[21,"水四大坪村二十一巷","Shuǐsì Dàpíngcūn 21 Xiàng","西起水四大坪村二十一巷1号，\n东至水四大坪村二十一巷6号",62,1.6,"西东"]
[]
["4、天湖村（15条）"]
["序号","道路名称","汉语拼音","位置描述","基本参数",null,"走向"]
[{"$nulls":4},"长","宽"]
[1,"葭山村一巷","  Jiāshāncūn 1 Xiànɡ","南起葭山村一巷1号， 北至葭山村一巷4号",123,1.5,"南北"]
[2,"葭山村二巷","   Jiāshāncūn 2 Xiànɡ","南起葭山村二巷1号， 北至葭山村二巷10号",134,1.5,"南北"]
[3,"葭山村三巷","   Jiāshāncūn 3 Xiànɡ","南起葭山村三巷1号， 北至葭山村三巷11号",145,1.5,"南北"]
[4,"葭山村四巷","   Jiāshāncūn 4 Xiànɡ","南起葭山村四巷1号， 北至葭山村四巷12号",147,1.5,"南北"]
[5,"葭山村五巷","   Jiāshāncūn 5 Xiànɡ","南起葭山村五巷1号， 北至葭山村五巷13号",150,1.5,"南北"]
[6,"葭山村六巷","   Jiāshāncūn 6 Xiànɡ","南起葭山村六巷1号， 北至葭山村六巷13号",153,1.5,"南北"]
[7,"葭山村七巷","   Jiāshāncūn 7 Xiànɡ","南起葭山村七巷1号， 北至葭山村七巷13号",153,1.5,"南北"]
[8,"葭山村八巷","   Jiāshāncūn 8 Xiànɡ","南起葭山村八巷1号， 北至葭山村八巷13号",153,5,"南北"]
[9,"葭山村九巷","   Jiāshāncūn 9 Xiànɡ","南起葭山村九巷1号， 北至葭山村九巷13号",150,1.5,"南北"]
[10,"葭山村十巷","   Jiāshāncūn 10 Xiànɡ","南起葭山村十巷6号， 北至葭山村十巷12号",147,1.5,"南北"]
[11,"葭山村十一巷","   Jiāshāncūn 11 Xiànɡ","南起葭山村十一巷1号， 北至葭山村十一巷12号",146,1.5,"南北"]
[12,"葭山村十二巷","   Jiāshāncūn 12 Xiànɡ","南起葭山村十二巷6号， 北至葭山村十二巷10号",139,1.5,"南北"]
[13,"葭山村十三巷","   Jiāshāncūn 13 Xiànɡ","南起葭山村十三巷1号， 北至葭山村十三巷7号",67,1.5,"南北"]
[14,"葭山村十四巷","   Jiāshāncūn 14 Xiànɡ","南起葭山村十四巷1号， 北至葭山村十四巷4号",62,1.5,"南北"]
[15,"葭山村十五巷","   Jiāshāncūn 15 Xiànɡ","南起葭山村十五巷1号， 北至葭山村十五巷3号",34,1.5,"南北"]
[]
["二、水口镇（51条）"]
["序号","道路名称","汉语拼音","位置描述","基本参数",null,"走向"]
[{"$nulls":4},"长","宽"]
[1,"万福街","Wànfú Jiē","东起：嘉怡园\n西至：水口园村","320米","7米","东西"]
[2,"嘉兴北路","Jiāxīng Běilù","南起：东乐路\n北至：新市北路","2300米","16.5米","南北"]
[3,"永乐街","Yǒnglè Jiē","南起：华龙路\n北至：麦屋路","148米","6米","南北"]
[4,"内环东路","Nèihuán Dōnglù","南起：东乐路\n北至：唐良路","908米","15米","南北"]
[5,"百汇市场一街","Bǎihuìshìchǎng 1 Jiē","南起：人和东路\n北至：红进路","348米","12米","南北"]
[6,"北旺路","Běiwàng Lù","东起：嘉兴北路\n西至：西就路","500米","12米","东西"]
[7,"大新路","Dàxīn Lù","南起：大宁路\n北至：新濠华庭小区","220米","15米","南北"]
[8,"大兴路","Dàxīng Lù","东起：大新路\n西至：银龙路","490米","7.5米","东西"]
[9,"东成路","Dōngchéng Lù","南起：东乐路\n北至：嘉兴北路","420米","12米","南北"]
[10,"丰田路","Fēngtián Lù","南起：中山路\n北至：蟠龙路","300米","12米","南北"]
[11,"岗顶路","Gǎngdǐng Lù","东起：G325国道\n西至：无名小巷","220米","5米","东西"]
[12,"观福路","Guānfú Lù","东起：观中路\n西至：龙德路","90米","14米","东西"]
[13,"观前路","Guānqián Lù","东起：民福路\n西至：龙德路","200米","14米","东西"]
[14,"观中路","Guānzhōng Lù","南起：东埠路\n北至：观前路","360米","18米","南北"]
[15,"华北路","Huáběi Lù","东起：无名小巷\n西至：无名小巷","200米","6米","东西"]
[16,"华乐路","Huálè Lù","南起：环市东路\n北至：华阳路","260米","12米","南北"]
[17,"华龙路","Huálóng Lù","东起：民福路\n西至：新市南路","450米","14米","东西"]
[18,"环村路","Huáncūn Lù","南起：鸿悦卫浴\n北至：无名小路","200米","5米","南北"]
[19,"环市东路","Huánshì Dōnglù","东起：内环西路\n西至：G325国道","440米","35米","东西"]
[20,"聚福路","Jùfú Lù","东起：鸿福路\n西至：永福路","120米","12米","东西"]
[21,"聚龙路","Jùlóng Lù","东起：丰田路\n西至：无名路","70米","4米","东西"]
[22,"开美路","Kāiměi Lù","南起：无名小路\n北至：325国道","200米","8米","南北"]
[23,"乐安路","Lè'ān Lù","东起：太和路\n西至：民福路","1270米","15米","东西"]
[24,"龙德北路","Lóngdé Běilù","东起：石龙路\n西至：民福路","400米","14米","东西"]
[25,"龙德一横路","Lóngdé 1 Hénglù","东起：龙德路\n西至：永乐街","70米","4米","东西"]
[26,"龙塘东路","Lóngtáng Dōnglù","东起：卫浴博览城\n西至：325国道海燕路口","1900米","25米","东西"]
[27,"龙塘西路","Lóngtáng Xīlù","西起：华艺卫浴总部\n东至：325国道海燕路口","1500米","37米","西东"]
[28,"平岗北路","Pínggǎng Běilù","东起：嘉兴北路\n西至：罗冈路","202米","12米","东西"]
[29,"石龙路","Shílóng Lù","东起：石龙东路\n西至：G325国道","260米","12米","东西"]
[30,"同福路","Tóngfú Lù","南起：太和路\n北至：杨桃路","460米","15米","南北"]
[31,"维新路","Wéixīn Lù","东起：中兴路\n西至：红花路","280米","12米","东西"]
[32,"西昌路","Xīchāng Lù","南起：东乐路\n北至：北旺路","310米","12米","南北"]
[33,"西就路","Xījiù Lù","南起：东乐路\n北到：北旺路","380米","12米","南北"]
[34,"新市西路","Xīnshì Xīlù","东起：G325国道\n西至：蟠龙后街","94米","10米","东西"]
[35,"兴祥路","Xīngxiáng Lù","东起：工业园东路\n西至：工业园西路","900米","13米","东西"]
[36,"永丰路","Yǒngfēng Lù","南起：中山路\n北到：大宁路","400米","9米","南北"]
[37,"振华大马路","Zhènhuá Dàmǎlù","南起：长振路\n北至：红进路","180米","20米","南北"]
[38,"华南路","Huánán Lù","东至：振华工业大道\n西起：振西路","200米","9米","东西"]
[39,"开庄街","Kāizhuāng Jiē","南起：G325国道\n北至：红进路","180米","9米","南北"]
[40,"新海东路","Xīnhǎi Dōnglù","南起：光华路\n北至：人和东路","470米","12米","南北"]
[41,"开振路","Kāizhèn Lù","南起：振华大马路\n北至：新美大道","120米","10米","南北"]
[42,"麦屋路","Màiwū Lù","东起：石龙村\n西至：新市南路","200米","5米","东西"]
[43,"平冈路","Pínggāng Lù","东起：西就路\n西至：华乐路","700米","14米","东西"]
[44,"水暖城商业街","Shuǐnuǎnchéng Shāngyèjiē","东起：东成路\n西至：西昌路","450米","18米","东西"]
[45,"所前街","Suǒqián Jiē","南起：维新路\n北到：大兴路","90米","3.5米","南北"]
[46,"西横路","Xīhéng Lù","南起：光华路\n北至：红进路","120米","4米","南北"]
[47,"西直街","Xīzhí Jiē","东起：无名小巷\n西至：无名小巷","95米","5米","东西"]
[48,"新风街","Xīnfēng Jiē","东起：犀岗大道\n西至：无名小巷","520米","8米","东西"]
[49,"新园路","Xīnyuán Lù","东起：鸿福路\n西至：永福路","130米","14米","东西"]
[50,"振华东横街","Zhènhuá Dōnghéngjiē","南起：正始街\n北至：无名小巷","100米","5米","南北"]
[51,"正始街","Zhèngshǐ Jiē","东起：振华东横街\n西至：无名路","96米","4米","东西"]
[]
["三、苍城镇（61条）"]
["1、六合村（61条）"]
["序号","道路名称","汉语拼音","位置描述","基本参数",null,"走向"]
[{"$nulls":4},"长","宽"]
[1,"庆桥村一巷","Qìngqiáocūn 1 Xiàng","北起：六合村庆桥村第一巷1号，南至：六合村庆桥村第一巷4号","28米","2米","北至南"]
[2,"庆桥村二巷","Qìngqiáocūn 2 Xiàng","北起：六合村庆桥村第二巷1号，南至：六合村庆桥村第二巷4号","38米","2米","北至南"]
[3,"庆桥村三巷","Qìngqiáocūn 3 Xiàng","北起：六合村庆桥村第三巷1号，南至：六合村庆桥村第三巷10号","58米","2米","北至南"]
[4,"庆桥村四巷","Qìngqiáocūn 4 Xiàng","北起：六合村庆桥村第四巷1号，南至：六合村庆桥村第四巷14号","78米","2米","北至南"]
[5,"庆桥村五巷","Qìngqiáocūn 5 Xiàng","北起：六合村庆桥村第五巷1号，南至：六合村庆桥村第五巷19号","78米","2米","北至南"]
[6,"庆桥村六巷","Qìngqiáocūn 6 Xiàng","北起：六合村庆桥村第六巷1号，南至：六合村庆桥村第六巷20号","106米","2米","北至南"]
[7,"庆桥村七巷","Qìngqiáocūn 7 Xiàng","北起：六合村庆桥村第七巷1号，南至：六合村庆桥村第七巷22号","123米","2米","北至南"]
[8,"庆桥村八巷","Qìngqiáocūn 8 Xiàng","北起：六合村庆桥村第八巷1号，南至：六合村庆桥村第八巷24号","146米","2米","北至南"]
[9,"庆桥村九巷","Qìngqiáocūn 9 Xiàng","北起：六合村庆桥村第九巷1号，南至：六合村庆桥村第九巷28号","154米","2米","北至南"]
[10,"庆桥村十巷","Qìngqiáocūn 10 Xiàng","北起：六合村庆桥村第十巷1号，南至：六合村庆桥村第十巷28号","154米","2米","北至南"]
[11,"庆桥村十一巷","Qìngqiáocūn 11 Xiàng","北起：六合村庆桥村第十一巷1号，南至：六合村庆桥村第十一巷24号","132米","2米","北至南"]
[12,"庆桥村十二巷","Qìngqiáocūn 12 Xiàng","北起：六合村庆桥村第十二巷1号，南至：六合村庆桥村第十二巷24号","132米","2米","北至南"]
[13,"庆桥村十三巷","Qìngqiáocūn 13 Xiàng","北起：六合村庆桥村第十三巷1号，南至：六合村庆桥村第十三巷24号","132米","2米","北至南"]
[14,"庆桥村十四巷","Qìngqiáocūn 14 Xiàng","北起：六合村庆桥村第十四巷1号，南至：六合村庆桥村第十四巷16号","82米","2米","北至南"]
[15,"庆桥村十五巷","Qìngqiáocūn 15 Xiàng","北起：六合村庆桥村第十五巷1号，南至：六合村庆桥村第十五巷18号","90米","2米","北至南"]
[16,"庆桥村十六巷","Qìngqiáocūn 16 Xiàng","北起：六合村庆桥村第十六巷1号，南至：六合村庆桥村第十六巷20号","106米","2米","北至南"]
[17,"庆桥村十七巷","Qìngqiáocūn 17 Xiàng","北起：六合村庆桥村第十七巷1号，南至：六合村庆桥村第十七巷20号","106米","2米","北至南"]
[18,"庆桥村第十八巷","Qìngqiáocūn 18 Xiàng","北起：六合村庆桥村第十八巷1号，南至：六合村庆桥村第十八巷20号","106米","2米","北至南"]
[19,"庆桥村十九巷","Qìngqiáocūn 19 Xiàng","北起：六合村庆桥村第十九巷1号，南至：六合村庆桥村第十九巷20号","106米","2米","北至南"]
[20,"庆桥村二十巷","Qìngqiáocūn 20 Xiàng","北起：六合村庆桥村第二十巷1号，南至：六合村庆桥村第二十巷20号","106米","2米","北至南"]
[21,"庆桥村二十一巷","Qìngqiáocūn 21 Xiàng","北起：六合村庆桥村第二十一巷1号，南至：六合村庆桥村第二十一巷20号","106米","2米","北至南"]
[22,"庆桥村二十二巷","Qìngqiáocūn 22 Xiàng","北起：六合村庆桥村第二十二巷1号，南至：六合村庆桥村第二十二巷20号","106米","2米","北至南"]
[23,"沙洞村一巷","Shādòngcūn 1 Xiàng","南起：六合村沙洞村第一巷1号，北至：六合村沙洞村第一巷2号","16米","1.6米","南至北"]
[24,"沙洞村二巷","Shādòngcūn 2 Xiàng","南起：六合村沙洞村第二巷1号，北至：六合村沙洞村第二巷16号","96米","1.6米","南至北"]
[25,"沙洞村三巷","Shādòngcūn 3 Xiàng","南起：六合村沙洞村第三巷1号，北至：六合村沙洞村第三巷26号","118米","1.6米","南至北"]
[26,"沙洞村四巷","Shādòngcūn 4 Xiàng","南起：六合村沙洞村第四巷1号，北至：六合村沙洞村第四巷22号","112米","1.6米","南至北"]
[27,"沙洞村五巷","Shādòngcūn 5 Xiàng","南起：六合村沙洞村第五巷1号，北至：六合村沙洞村第五巷22号","112米","1.6米","南至北"]
[28,"沙洞村六巷","Shādòngcūn 6 Xiàng","南起：六合村沙洞村第六巷1号，北至：六合村沙洞村第六巷20号","106米","1.6米","南至北"]
[29,"沙洞村七巷","Shādòngcūn 7 Xiàng","南起：六合村沙洞村第七巷1号，北至：六合村沙洞村第七巷20号","106米","1.6米","南至北"]
[30,"沙洞村八巷","Shādòngcūn 8 Xiàng","南起：六合村沙洞村第八巷1号，北至：六合村沙洞村第八巷20号","106米","1.6米","南至北"]
[31,"沙洞村九巷","Shādòngcūn 9 Xiàng","南起：六合村沙洞村第九巷1号，北至：六合村沙洞村第九巷20号","102米","1.6米","南至北"]
[32,"沙洞村十巷","Shādòngcūn 10 Xiàng","南起：六合村沙洞村第十巷1号，北至：六合村沙洞村第十巷20号","102米","1.6米","南至北"]
[33,"沙洞村十一巷","Shādòngcūn 11 Xiàng","南起：六合村沙洞村第十一巷1号，北至：六合村沙洞村第十一巷16号","102米","1.6米","南至北"]
[34,"沙洞村十二巷","Shādòngcūn 12 Xiàng","南起：六合村沙洞村第十二巷1号，北至：六合村沙洞村第十二巷14号","62米","1.6米","南至北"]
[35,"沙洞村十三巷","Shādòngcūn 13 Xiàng","南起：六合村沙洞村第十三巷1号，北至：六合村沙洞村第十三巷12号","50米","1.6米","南至北"]
[36,"沙洞村十四巷","Shādòngcūn 14 Xiàng","南起：六合村沙洞村第十四巷1号，北至：六合村沙洞村第十四巷12号","50米","1.6米","南至北"]
[37,"六合沙湾村一巷","Liùhé Shāwāncūn 1 Xiàng","南起：六合村沙湾村第一巷1号，北至：六合村沙湾村第一巷14号","70米","2米","南至北"]
[38,"六合沙湾村二巷","Liùhé Shāwāncūn 2 Xiàng","南起：六合村沙湾村第二巷1号，北至：六合村沙湾村第二巷14号","70米","2米","南至北"]
[39,"六合沙湾村三巷","Liùhé Shāwāncūn 3 Xiàng","南起：六合村沙湾村第三巷1号，北至：六合村沙湾村第三巷14号","70米","2米","南至北"]
[40,"六合沙湾村四巷","Liùhé Shāwāncūn 4 Xiàng","南起：六合村沙湾村第四巷1号，北至：六合村沙湾村第四巷15号","80米","2米","南至北"]
[41,"六合沙湾村五巷","Liùhé Shāwāncūn 5 Xiàng","南起：六合村沙湾村第五巷1号，北至：六合村沙湾村第五巷19号","95米","2米","南至北"]
[42,"六合沙湾村六巷","Liùhé Shāwāncūn 6 Xiàng","南起：六合村沙湾村第六巷1号，北至：六合村沙湾村第六巷20号","100米","2米","南至北"]
[43,"六合沙湾村七巷","Liùhé Shāwāncūn 7 Xiàng","南起：六合村沙湾村第七巷1号，北至：六合村沙湾村第七巷20号","100米","2米","南至北"]
[44,"六合沙湾村八巷","Liùhé Shāwāncūn 8 Xiàng","南起：六合村沙湾村第八巷1号，北至：六合村沙湾村第八巷25号","127米","2米","南至北"]
[45,"六合沙湾村九巷","Liùhé Shāwāncūn 9 Xiàng","南起：六合村沙湾村第九巷1号，北至：六合村沙湾村第九巷22号","110米","2米","南至北"]
[46,"六合沙湾村十巷","Liùhé Shāwāncūn 10 Xiàng","南起：六合村沙湾村第十巷1号，北至：六合村沙湾村第十巷22号","110米","2米","南至北"]
[47,"六合沙湾村十一巷","Liùhé Shāwāncūn 11 Xiàng","南起：六合村沙湾村第十一巷1号，北至：六合村沙湾村第十一巷20号","105米","2米","南至北"]
[48,"六合沙湾村十二巷","Liùhé Shāwāncūn 12 Xiàng","南起：六合村沙湾村第十二巷1号，北至：六合村沙湾村第十二巷20号","105米","2米","南至北"]
[49,"六合沙湾村十三巷","Liùhé Shāwāncūn 13 Xiàng","南起：六合村沙湾村第十三巷1号，北至：六合村沙湾村第十三巷14号","70米","2米","南至北"]
[50,"六合沙湾村十四巷","Liùhé Shāwāncūn 14 Xiàng","南起：六合村沙湾村第十四巷1号，北至：六合村沙湾村第十四巷14号","55米","2米","西至东"]
[51,"六合沙湾村十五巷","Liùhé Shāwāncūn 15 Xiàng","南起：六合村沙湾村第十五巷1号，北至：六合村沙湾村第十五巷10号","40米","2米","西至东"]
[52,"六合沙湾村十六巷","Liùhé Shāwāncūn 16 Xiàng","西起：六合村沙湾村第十六巷1号，北至：六合村沙湾村第十六巷12号","65米","2米","西至东"]
[53,"六合沙湾村十七巷","Liùhé Shāwāncūn 17 Xiàng","西起：六合村沙湾村第十七巷1号，东至：六合村沙湾村第十七巷16号","75米","2米","西至东"]
[54,"六合沙湾村第十八巷","Liùhé Shāwāncūn 18 Xiàng","西起：六合村沙湾村第十八巷1号，东至：六合村沙湾村第十八巷16号","75米","2米","西至东"]
[55,"六合沙湾村十九巷","Liùhé Shāwāncūn 19 Xiàng","西起：六合村沙湾村第十九巷1号，东至：六合村沙湾村第十九巷16号","75米","2米","西至东"]
[56,"六合沙湾村二十巷","Liùhé Shāwāncūn 20 Xiàng","西起：六合村沙湾村第二十巷1号，东至：六合村沙湾村第二十巷16号","75米","2米","西至东"]
[57,"六合沙湾村二十一巷","Liùhé Shāwāncūn 21 Xiàng","西起：六合村沙湾村第二十一巷1号，东至：六合村沙湾村第二十一巷16号","75米","2米","西至东"]
[58,"六合沙湾村二十二巷","Liùhé Shāwāncūn 22 Xiàng","西起：六合村沙湾村第二十二巷1号，东至：六合村沙湾村第二十二巷16号","75米","2米","西至东"]
[59,"六合沙湾村二十三巷","Liùhé Shāwāncūn 23 Xiàng","西起：六合村沙湾村第二十三巷1号，东至：六合村沙湾村第二十三巷14号","60米","2米","西至东"]
[60,"六合沙湾村二十四巷","Liùhé Shāwāncūn 24 Xiàng","西起：六合村沙湾村第二十四巷1号，东至：六合村沙湾村第二十四巷10号","50米","2米","西至东"]
[61,"六合沙湾村二十五巷","Liùhé Shāwāncūn 25 Xiàng","西起：六合村沙湾村第二十五巷1号，东至：六合村沙湾村第二十五巷6号","30米","2米","西至东"]
[]
["四、塘口镇（28条）"]
["1、魁草村（1条）"]
["序号","道路名称","汉语拼音","位置描述","基本参数",null,"走向"]
[{"$nulls":4},"长","宽"]
[1,"黄埗村二十三巷","Huángbùcūn 23 Xiàng","西南起：黄埗村23巷1号\n东北至：黄埗村23巷18号","100米","1.5米","南北"]
[]
["2、以敬村（27条）"]
["序号","道路名称","汉语拼音","位置描述","基本参数",null,"走向"]
[{"$nulls":4},"长","宽"]
[1,"塘口北安村一巷","Tángkǒu Běi'āncūn 1 Xiàng","北起：北安村1巷1号\n南至：北安村1巷1号","19米","1.3米","北南"]
[2,"塘口北安村二巷","Tángkǒu Běi'āncūn 2 Xiàng","北起：北安村2巷1号\n南至：北安村2巷3号","19米","1.3米","北南"]
[3,"塘口北安村三巷","Tángkǒu Běi'āncūn 3 Xiàng","北起：北安村3巷1号\n南至：北安村3巷1号","9.5米","1.3米","北南"]
[4,"塘口北安村四巷","Tángkǒu Běi'āncūn 4 Xiàng","北起：北安村4巷1号\n南至：北安村4巷5号","30米","1.3米","北南"]
[5,"塘口北安村五巷","Tángkǒu Běi'āncūn 5 Xiàng","北起：北安村5巷1号\n南至：北安村5巷6号","30米","1.3米","北南"]
[6,"塘口北安村六巷","Tángkǒu Běi'āncūn 6 Xiàng","北起：北安村6巷1号\n南至：北安村6巷6号","30米","1.3米","北南"]
[7,"塘口北安村七巷","Tángkǒu Běi'āncūn 7 Xiàng","北起：北安村7巷1号\n南至：北安村7巷14号","70米","1.3米","北南"]
[8,"塘口北安村八巷","Tángkǒu Běi'āncūn 8 Xiàng","北起：北安村8巷2号\n南至：北安村8巷12号","60米","1.3米","北南"]
[9,"塘口北安村九巷","Tángkǒu Běi'āncūn 9 Xiàng","北起：北安村9巷1号\n南至：北安村9巷13号","70米","1.3米","北南"]
[10,"塘口北安村十巷","Tángkǒu Běi'āncūn 10 Xiàng","北起：北安村10巷1号\n南至：北安村10巷13号","71米","1.3米","北南"]
[11,"塘口北安村十一巷","Tángkǒu Běi'āncūn 11 Xiàng","北起：北安村11巷3号\n南至：北安村11巷1号","60米","1.3米","北南"]
[12,"塘口北安村十二巷","Tángkǒu Běi'āncūn 12 Xiàng","西起：北安村12巷1号\n南至：北安村12巷5号","30米","1.3米","西南"]
[13,"塘口北安村十三巷","Tángkǒu Běi'āncūn 13 Xiàng","西起：北安村13巷2号\n南至：北安村13巷6号","30米","1.3米","西南"]
[14,"塘口北安村十四巷","Tángkǒu Běi'āncūn 14 Xiàng","西起：北安村14巷1号\n南至：北安村14巷1号","9米","1.3米","西南"]
[15,"塘口新村一巷","Tángkǒu Xīncūn 1 Xiàng","南起：新村1巷1号\n东至：新村1巷1号","12米","1.5米","南东"]
[16,"塘口新村二巷","Tángkǒu Xīncūn 2 Xiàng","南起：新村2巷2号\n东至：新村2巷2号","18米","1.5米","南东"]
[17,"塘口新村三巷","Tángkǒu Xīncūn 3 Xiàng","南起：新村3巷3号\n东至：新村3巷3号","25米","1.5米","南东"]
[18,"塘口新村四巷","Tángkǒu Xīncūn 4 Xiàng","南起：新村4巷4号\n东至：新村4巷4号","30米","1.5米","南东"]
[19,"塘口新村五巷","Tángkǒu Xīncūn 5 Xiàng","南起：新村5巷5号\n东至：新村5巷5号","25米","1.5米","南东"]
[20,"塘口新村六巷","Tángkǒu Xīncūn 6 Xiàng","南起：新村6巷6号\n东至：新村6巷6号","45米","1.5米","南东"]
[21,"塘口新村七巷","Tángkǒu Xīncūn 7 Xiàng","西南起：新村7巷1号\n东北至：新村7巷13号","137米","8米","西东"]
[22,"塘口新村八巷","Tángkǒu Xīncūn 8 Xiàng","西南起：新村8巷1号\n东北至：新村8巷13号","137米","1.5米","西东"]
[23,"塘口新村九巷","Tángkǒu Xīncūn 9 Xiàng","西南起：新村9巷1号\n东北至：新村9巷7号","120米","1.5米","西东"]
[24,"塘口新村十巷","Tángkǒu Xīncūn 10 Xiàng","西南起：新村10巷1号\n东北至：新村10巷9号","137米","1.5米","西东"]
[25,"塘口新村十一巷","Tángkǒu Xīncūn 11 Xiàng","西起：新村11巷1号\n东至：新村11巷9号","100米","1.5米","西东"]
[26,"塘口新村十二巷","Tángkǒu Xīncūn 12 Xiàng","西起：新村12巷1号\n东至：新村12巷3号","90米","1.5米","西东"]
[27,"塘口新村十三巷","Tángkǒu Xīncūn 13 Xiàng","西起：新村13巷1号\n东至：新村13巷1号","10米","1.5米","西东"]
[]
["五、龙胜镇（866条）"]
["1、白村村（15条）"]
["序号","道路名称","汉语拼音","位置描述","基本参数",null,"走向"]
[{"$nulls":4},"长","宽"]
[1,"大迳村一巷","Dàjìngcūn 1 Xiàng","东起：大迳村榕树\n西至：大迳村一巷11号\n","70米","2.8米","东西"]
[2,"大迳村二巷","Dàjìngcūn 2 Xiàng","东起：大迳村二巷1号\n西至：大迳村二巷17号\n","50米","2.8米","东西"]
[3,"大迳村三巷","Dàjìngcūn 3 Xiàng","东起：大迳村村前鱼塘\n西至：大迳村三巷23号\n","50米","2.8米","东西"]
[4,"大迳村四巷","Dàjìngcūn 4 Xiàng","东起：大迳村村前鱼塘\n西至：大迳村四巷21号\n","50米","2.8米","东西"]
[5,"大迳村五巷","Dàjìngcūn 5 Xiàng","东起：大迳村五巷1号\n西至：大迳村五巷18号\n","50米","2.8米","东西"]
[6,"大迳村六巷","Dàjìngcūn 6 Xiàng","东起：大迳村六巷1号\n西至：大迳村六巷13号\n","50米","2.8米","东西"]
[7,"大迳村七巷","Dàjìngcūn 7 Xiàng","东起：大迳村七巷1号\n西至：大迳村七巷13号\n","50米","2.8米","东西"]
[8,"大迳村八巷","Dàjìngcūn 8 Xiàng","东起：大迳村八巷1号\n西至：大迳村八巷13号\n","50米","2.8米","东西"]
[9,"大迳村九巷","Dàjìngcūn 9 Xiàng","东起：大迳村村前鱼塘\n西至：大迳村九巷15号\n","50米","2.8米","东西"]
[10,"大塘尾坊一巷","Dàtángwěifāng 1 Xiàng","西起：大塘尾坊4号   \n东至：大塘尾坊9号\n","85米","2.5米","东西"]
[11,"大塘尾坊二巷","Dàtángwěifāng 2 Xiàng","东起：大塘尾坊10号  \n西至：大塘尾坊28号\n","95米","2.5米","东西"]
[12,"大塘尾坊北一巷","Dàtángwěifāngběi 1 Xiàng","南起：大塘尾坊北一巷巷头村道  \n北至：大塘尾坊坊尾鱼塘\n","70米","2.8米","南北"]
[13,"大塘尾坊北二巷","Dàtángwěifāngběi 2 Xiàng","南起：大塘尾坊北二巷巷头村道  \n北至：大塘尾坊坊尾鱼塘\n","70米","2.8米","南北"]
[14,"大塘尾坊北三巷","Dàtángwěifāngběi 3 Xiàng","南起：大塘尾坊北三巷巷头村道  \n北至：大塘尾坊坊尾鱼塘\n","70米","2.8米","南北"]
[15,"大塘尾坊北四巷","Dàtángwěifāngběi 4 Xiàng","南起：大塘尾坊北四巷巷头村道  \n北至：大塘尾坊坊尾鱼塘\n","70米","2.8米","南北"]
[]
["2、大雄村（12条）"]
["序号","道路名称","汉语拼音","位置描述","基本参数",null,"走向"]
[{"$nulls":4},"长","宽"]
[1,"大雄兴堂村第一巷","Dàxióng Xīngtángcūn Dì-1 Xiàng","南起：兴堂村第一巷1号，北至：兴堂村第一巷21号","114米","2米","南北"]
[2,"大雄兴堂村第二巷","Dàxióng Xīngtángcūn Dì-2 Xiàng","南起：兴堂村第二巷1号，北至：兴堂村第二巷23号","143米","2米","南北"]
[3,"大雄兴堂村第三巷","Dàxióng Xīngtángcūn Dì-3 Xiàng","南起：兴堂村第三巷1号，北至：兴堂村第三巷30号","173米","2米","南北"]
[4,"大雄兴堂村第四巷","Dàxióng Xīngtángcūn Dì-4 Xiàng","南起：兴堂村第四巷1号，北至：兴堂村第四巷33号","173米","2米","南北"]
[5,"大雄兴堂村第五巷","Dàxióng Xīngtángcūn Dì-5 Xiàng","南起：兴堂村第五巷1号，北至：兴堂村第五巷32号","173米","2米","南北"]
[6,"大雄兴堂村第六巷","Dàxióng Xīngtángcūn Dì-6 Xiàng","南起：兴堂村第六巷1号，北至：兴堂村第六巷32号","161米","2米","南北"]
[7,"大雄兴堂村第七巷","Dàxióng Xīngtángcūn Dì-7 Xiàng","南起：兴堂村第七巷1号，北至：兴堂村第七巷32号","173米","2米","南北"]
[8,"大雄兴堂村第八巷","Dàxióng Xīngtángcūn Dì-8 Xiàng","南起：兴堂村第八巷1号，北至：兴堂村第八巷30号","173米","2米","南北"]
[9,"大雄兴堂村第九巷","Dàxióng Xīngtángcūn Dì-9 Xiàng","南起：兴堂村第九巷1号，北至：兴堂村第九巷27号","163米","2米","南北"]
[10,"大雄兴堂村第十巷","Dàxióng Xīngtángcūn Dì-10 Xiàng","南起：兴堂村第十巷1号，北至：兴堂村第十巷27号","163米","2米","南北"]
[11,"大雄兴堂村第十一巷","Dàxióng Xīngtángcūn Dì-11 Xiàng","南起：兴堂村第十一巷1号，北至：兴堂村第十一巷28号","163米","2米","南北"]
[12,"大雄兴堂村第十二巷","Dàxióng Xīngtángcūn Dì-12 Xiàng","南起：兴堂村第十二巷1号，北至：兴堂村第十二巷26号","157米","2米","南北"]
[]
["3、官渡村（88条）"]
["序号","道路名称","汉语拼音","位置描述","基本参数",null,"走向"]
[{"$nulls":4},"长","宽"]
[1,"安吉里村一巷","Ānjílǐcūn 1 Xiàng","南起：安吉里村塘基\n北至：安吉里村农田","40米","2米","南北"]
[2,"安吉里村二巷","Ānjílǐcūn 2 Xiàng","南起：安吉里村塘基\n北至：安吉里村农田","65米","2米","南北"]
[3,"安吉里村三巷","Ānjílǐcūn 3 Xiàng","南起：安吉里村塘基\n北至：安吉里村后乡道","80米","2米","南北"]
[4,"安吉里村四巷","Ānjílǐcūn 4 Xiàng","南起：安吉里村塘基\n北至：安吉里村后乡道","80米","2米","南北"]
[5,"安吉里村五巷","Ānjílǐcūn 5 Xiàng","南起：安吉里村塘基\n北至：安吉里村后乡道","80米","2米","南北"]
[6,"安吉里村六巷","Ānjílǐcūn 6 Xiàng","南起：安吉里村塘基\n北至：安吉里村后乡道","65米","2米","南北"]
[7,"安吉里村七巷","Ānjílǐcūn 7 Xiàng","南起：安吉里村塘基\n北至：安吉里村后乡道","80米","2米","南北"]
[8,"安吉里村八巷","Ānjílǐcūn 8 Xiàng","南起：安吉里村塘基\n北至：安吉里村后乡道","70米","2米","南北"]
[9,"安吉里村九巷","Ānjílǐcūn 9 Xiàng","南起：安吉里村塘基\n北至：安吉里村后乡道","80米","2米","南北"]
[10,"安吉里村十巷","Ānjílǐcūn 10 Xiàng","南起：安吉里村塘基\n北至：安吉里村农田","40米","2米","南北"]
[11,"安吉里村十一巷","Ānjílǐcūn 11 Xiàng","南起：安吉里村塘基\n北至：安吉里村农田","60米","2米","南北"]
[12,"村芯村一巷","Cūnxīncūn 1 Xiàng","南起：村芯村村前乡道                 北至：水巷村塘基 ","50米","2米","南北"]
[13,"村芯村二巷","Cūnxīncūn 2 Xiàng","南起：村芯村村前乡道                 北至：水巷村","55米","2米","南北"]
[14,"村芯村三巷","Cūnxīncūn 3 Xiàng","南起：村芯村村前乡道                 北至：水巷村","50米","2米","南北"]
[15,"村芯村四巷","Cūnxīncūn 4 Xiàng","南起：村芯村村前乡道                 北至：水巷村","65米","2米","南北"]
[16,"村芯村五巷","Cūnxīncūn 5 Xiàng","南起：村芯村村前乡道                 北至：水巷村","70米","2米","南北"]
[17,"村芯村六巷","Cūnxīncūn 6 Xiàng","南起：村芯村村前乡道                 北至：水巷村","85米","2米","南北"]
[18,"村芯村七巷","Cūnxīncūn 7 Xiàng","南起：村芯村村前乡道                 北至：村芯村村后空地","85米","2米","南北"]
[19,"村芯村十巷","Cūnxīncūn 10 Xiàng","南起：村芯村村前乡道                 北至：村芯村村后空地","50米","2米","南北"]
[20,"村芯新村一巷","Cūnxīn Xīncūn\n 1 Xiàng","东起：村芯新村乡道\n西至：村芯新村后树林","30米","4米","东西"]
[21,"村芯新村二巷","Cūnxīn Xīncūn\n 2 Xiàng","东起：村芯新村乡道\n西至：村芯新村后树林","40米","4米","东西"]
[22,"村芯新村三巷","Cūnxīn Xīncūn\n 3 Xiàng","东起：村芯新村乡道\n西至：村芯新村后树林","40米","4米","东西"]
[23,"村芯新村四巷","Cūnxīn Xīncūn\n 4 Xiàng","东起：村芯新村乡道\n西至：村芯新村后树林","40米","4米","东西"]
[24,"村芯新村五巷","Cūnxīn Xīncūn\n 5 Xiàng","东起：村芯新村乡道\n西至：村芯新村后树林","40米","4米","东西"]
[25,"村芯新村六巷","Cūnxīn Xīncūn\n 6 Xiàng","东起：村芯新村乡道\n西至：村芯新村后树林","40米","4米","东西"]
[26,"村芯新村七巷","Cūnxīn Xīncūn\n 7 Xiàng","东起：村芯新村乡道\n西至：村芯新村后树林","40米","4米","东西"]
[27,"村芯新村十巷","Cūnxīn Xīncūn\n 10 Xiàng","东起：村芯新村乡道\n西至：村芯新村后树林","50米","4米","东西"]
[28,"村芯新村东一巷","Cūnxīn Xīncūn Dōng 1 Xiàng","东起：村芯新村东村道              西至：乡道Y813","120米","4米","东西"]
[29,"村芯新村东二巷","Cūnxīn Xīncūn Dōng 2 Xiàng","东起：村芯新村东村道              西至：乡道Y813","120米","4米","东西"]
[30,"村芯新村东三巷","Cūnxīn Xīncūn Dōng 3 Xiàng","东起：村芯新村东村道              西至：村芯新村东农田","120米","4米","东西"]
[31,"村芯新村东四巷","Cūnxīn Xīncūn Dōng 4 Xiàng","东起：村芯新村东村道              西至：村芯新村东农田","80米","4米","东西"]
[32,"村芯新村东五巷","Cūnxīn Xīncūn Dōng 5 Xiàng","东起：村芯新村东村道              西至：村芯新村东农田","70米","4米","东西"]
[33,"村芯新村东六巷","Cūnxīn Xīncūn Dōng 6 Xiàng","东起：村芯新村东村道              西至：村芯新村东农田","100米","4米","东西"]
[34,"村芯新二村二巷","Cūnxīn Xīnèrcūn 2 Xiàng","南起：村芯新二村晒场\n北至：村芯新二村二巷巷尾","80米","2米","南北"]
[35,"村芯新二村三巷","Cūnxīn Xīnèrcūn 3 Xiàng","南起：村芯新二村晒场\n北至：村芯新二村村后鱼塘","80米","2米","南北"]
[36,"村芯新二村四巷","Cūnxīn Xīnèrcūn 4 Xiàng","南起：村芯新二村晒场\n北至：村芯新二村村后鱼塘","90米","2米","南北"]
[37,"村芯新二村五巷","Cūnxīn Xīnèrcūn 5 Xiàng","南起：村芯新二村晒场\n北至：村芯新二村村后鱼塘","80米","2米","南北"]
[38,"村芯新二村六巷","Cūnxīn Xīnèrcūn 6 Xiàng","南起：村芯新二村晒场\n北至：村芯新二村村后鱼塘","80米","2米","南北"]
[39,"村芯新二村七巷","Cūnxīn Xīnèrcūn 7 Xiàng","南起：村芯新二村晒场\n北至：村芯新二村村后鱼塘","70米","2米","南北"]
[40,"福里村一巷","Fúlǐcūn 1 Xiàng","南起：福里村塘基\n北至：福里村后树林","45米","2米","南北"]
[41,"福里村二巷","Fúlǐcūn 2 Xiàng","南起：福里村塘基\n北至：福里村后树林","70米","2米","南北"]
[42,"福里村三巷","Fúlǐcūn 3 Xiàng","南起：福里村塘基\n北至：福里村后树林","75米","2米","南北"]
[43,"福里村四巷","Fúlǐcūn 4 Xiàng","南起：福里村塘基\n北至：福里村后树林","75米","2米","南北"]
[44,"福里村五巷","Fúlǐcūn 5 Xiàng","南起：福里村塘基\n北至：福里村后树林","75米","2米","南北"]
[45,"福里村六巷","Fúlǐcūn 6 Xiàng","南起：福里村塘基\n北至：福里村后树林","75米","2米","南北"]
[46,"福里村七巷","Fúlǐcūn 7 Xiàng","南起：福里村塘基\n至：福里村后树林","105米","2米","南北"]
[47,"福里村八巷","Fúlǐcūn 8 Xiàng","南起：福里村塘基\n北至：福里村后树林","105米","2米","南北"]
[48,"福里村九巷","Fúlǐcūn 9 Xiàng","南起：福里村塘基\n北至：福里村后树林","90米","2米","南北"]
[49,"福里村十巷","Fúlǐcūn 10 Xiàng","南起：福里村塘基\n北至：福里村后树林","105米","2米","南北"]
[50,"冈边村一巷","Gāngbiāncūn 1 Xiàng","南起：冈边村晒场\n北至：省道792处","40米","2米","南北"]
[51,"冈边村二巷","Gāngbiāncūn 2 Xiàng","南起：冈边村晒场\n北至：省道792处","60米","2米","南北"]
[52,"冈边村三巷","Gāngbiāncūn 3 Xiàng","南起：冈边村晒场\n北至：冈边村后树林","60米","2米","南北"]
[53,"冈边村四巷","Gāngbiāncūn 4 Xiàng","南起：冈边村晒场\n北至：冈边村后树林","80米","2米","南北"]
[54,"冈边村五巷","Gāngbiāncūn 5 Xiàng","南起：冈边村晒场\n北至：冈边村后树林","80米","2米","南北"]
[55,"冈边村六巷","Gāngbiāncūn 6 Xiàng","南起：冈边村晒场\n北至：冈边村后树林","65米","2米","南北"]
[56,"冈边村七巷","Gāngbiāncūn 7 Xiàng","南起：冈边村晒场\n北至：冈边村后树林","70米","2米","南北"]
[57,"冈边村八巷","Gāngbiāncūn 8 Xiàng","南起：冈边村晒场\n北至：冈边村后树林","70米","2米","南北"]
[58,"桥南新村一巷","Qiáonán Xīncūn 1 Xiàng","东起：桥南新村村前村道   西至：桥南新村村后村道","40米","2米","东西"]
[59,"桥南新村二巷","Qiáonán Xīncūn 2 Xiàng","东起：桥南新村村前村道   西至：桥南新村村后村道","40米","2米","东西"]
[60,"桥南新村三巷","Qiáonán Xīncūn 3 Xiàng","东起：桥南新村村前村道   西至：桥南新村村后村道","40米","2米","东西"]
[61,"桥南新村四巷","Qiáonán Xīncūn 4 Xiàng","东起：桥南新村村前村道   西至：桥南新村村后村道","40米","2米","东西"]
[62,"桥南新村五巷","Qiáonán Xīncūn 5 Xiàng","东起：桥南新村村前村道   西至：桥南新村村后村道","40米","2米","东西"]
[63,"桥南新村六巷","Qiáonán Xīncūn 6 Xiàng","东起：桥南新村村前村道   西至：桥南新村村后村道","40米","2米","东西"]
[64,"桥南新村八巷","Qiáonán Xīncūn 8 Xiàng","东起：桥南新村村前村道   西至：桥南新村村后村道","40米","2米","东西"]
[65,"桥南新村九巷","Qiáonán Xīncūn 9 Xiàng","东起：桥南新村村前村道   西至：桥南新村村后村道","40米","2米","东西"]
[66,"水巷村一巷","Shuǐxiàngcūn 1 Xiàng","西起：水巷村村道\n东至：水巷村鱼塘","30米","2米","东西"]
[67,"水巷村二巷","Shuǐxiàngcūn 2 Xiàng","西起：水巷村村道\n东至：水巷村鱼塘","60米","2米","东西"]
[68,"水巷村三巷","Shuǐxiàngcūn 3 Xiàng","西起：水巷村晒场\n至：水巷村鱼塘","70米","2米","东西"]
[69,"水巷村四巷","Shuǐxiàngcūn 4 Xiàng","西起：水巷村晒场\n东至：水巷村鱼塘","70米","2米","东西"]
[70,"水巷村五巷","Shuǐxiàngcūn 5 Xiàng","西起：水巷村晒场\n东至：水巷村鱼塘","70米","2米","东西"]
[71,"水巷村六巷","Shuǐxiàngcūn 6 Xiàng","西起：水巷村晒场\n东至：水巷村鱼塘","70米","2米","东西"]
[72,"水巷新一村一巷","Shuǐxiàng Xīnyīcūn 1 Xiàng","南起：水巷新一村晒场\n北至：水巷新一村后树林","60米","3米","南北"]
[73,"水巷新一村二巷","Shuǐxiàng Xīnyīcūn 2 Xiàng","南起：水巷新一村晒场\n北至：水巷新一村后树林","60米","3米","南北"]
[74,"水巷新一村三巷","Shuǐxiàng Xīnyīcūn 3 Xiàng","南起：水巷新一村晒场\n北至：水巷新一村后树林","60米","3米","南北"]
[75,"水巷新一村四巷","Shuǐxiàng Xīnyīcūn 4 Xiàng","南起：水巷新一村晒场\n北至：水巷新一村后树林","60米","3米","南北"]
[76,"水巷新一村五巷","Shuǐxiàng Xīnyīcūn 5 Xiàng","南起：水巷新一村晒场\n北至：水巷新一村后树林","60米","3米","南北"]
[77,"水巷新一村六巷","Shuǐxiàng Xīnyīcūn 6 Xiàng","南起：水巷新一村晒场\n北至：水巷新一村后树林","85米","3米","南北"]
[78,"兴龙里村一巷","Xīnglónglǐcūn 1 Xiàng","东起：兴龙里村鱼塘\n西至：兴龙里村村后树林","75米","2米","东西"]
[79,"兴龙里村二巷","Xīnglónglǐcūn 2 Xiàng","东起：兴龙里村鱼塘\n西至：兴龙里村村后树林","80米","2米","东西"]
[80,"兴龙里村三巷","Xīnglónglǐcūn 3 Xiàng","东起：兴龙里村鱼塘\n西至：兴龙里村村后树林","80米","2米","东西"]
[81,"兴龙里村四巷","Xīnglónglǐcūn 4 Xiàng","东起：兴龙里村晒场\n西至：兴龙里村村后树林","80米","5米","东西"]
[82,"兴龙里村五巷","Xīnglónglǐcūn 5 Xiàng","东起：兴龙里村晒场\n西至：兴龙里村村后树林","80米","2米","东西"]
[83,"兴龙里村六巷","Xīnglónglǐcūn 6 Xiàng","东起：兴龙里村鱼塘\n西至：兴龙里村村后树林","60米","2米","东西"]
[84,"兴龙里村七巷","Xīnglónglǐcūn 7 Xiàng","东起：兴龙里村鱼塘\n西至：兴龙里村村后树林","55米","2米","东西"]
[85,"兴龙里村八巷","Xīnglónglǐcūn 8 Xiàng","东起：兴龙里村鱼塘\n西至：兴龙里村村后树林","60米","2米","东西"]
[86,"兴龙里村九巷","Xīnglónglǐcūn 9 Xiàng","东起：兴龙里村鱼塘\n西至：兴龙里村村后树林","60米","2米","东西"]
[87,"兴龙里村十巷","Xīnglónglǐcūn 10 Xiàng","东起：兴龙里村鱼塘\n西至：兴龙里村村后树林","60米","2米","东西"]
[88,"兴龙里村十一巷","Xīnglónglǐcūn 11 Xiàng","东起：兴龙里村鱼塘\n西至：兴龙里村村后树林","30米","2米","东西"]
[]
["4、和兴村（42条）"]
["序号","道路名称","汉语拼音","位置描述","基本参数",null,"走向"]
[{"$nulls":4},"长","宽"]
[1," 塘头村横一巷"," Tánɡtóucūn Hénɡ 1 Xiànɡ","东北起：塘头村横一巷1号，西南至：塘头村横一巷24号","200米","2米","南北"]
[2," 塘头村横二巷"," Tánɡtóucūn Hénɡ 2 Xiànɡ","东北起：塘头村横二巷1号，西南至：塘头村横二巷24号","200米","2米","南北"]
[3," 塘头村横三巷"," Tánɡtóucūn Hénɡ 3 Xiànɡ","东北起：塘头村横三巷1号，西南至：塘头村横三巷27号","200米","2米","南北"]
[4," 塘头村横四巷"," Tánɡtóucūn Hénɡ 4 Xiànɡ","东北起：塘头村横四巷1号，西南至：塘头村横四巷21号","200米","2米","南北"]
[5," 塘头村横五巷"," Tánɡtóucūn Hénɡ 5 Xiànɡ","东北起：塘头村横五巷1号，西南至：塘头村横五巷20号","200米","2米","南北"]
[6," 塘头村横六巷"," Tánɡtóucūn Hénɡ 6 Xiànɡ","东北起：塘头村横六巷1号，西南至：塘头村横六巷21号","200米","2米","南北"]
[7," 塘头村横七巷"," Tánɡtóucūn Hénɡ 7 Xiànɡ","东北起：塘头村横七巷1号，西南至：塘头村横七巷27号","200米","2米","南北"]
[8," 塘头村横八巷"," Tánɡtóucūn Hénɡ 8 Xiànɡ","东北起：塘头村横八巷1号，西南至：塘头村横八巷27号","200米","2米","南北"]
[9," 塘头村横九巷"," Tánɡtóucūn Hénɡ 9 Xiànɡ","东北起：塘头村横九巷1号，西南至：塘头村横九巷30号","200米","2米","南北"]
[10," 塘头村横十巷"," Tánɡtóucūn Hénɡ 10 Xiànɡ","东北起：塘头村横十巷1号，西南至：塘头村横十巷33号","200米","2米","南北"]
[11," 塘头村横十一巷"," Tánɡtóucūn Hénɡ 11 Xiànɡ","东北起：塘头村横十一巷1号，西南至：塘头村横十一巷32号","200米","2米","南北"]
[12," 塘头村横十二巷"," Tánɡtóucūn Hénɡ 12 Xiànɡ","东北起：塘头村横十二巷1号，西南至：塘头村横十二巷26号","200米","2米","南北"]
[13," 塘头村横十三巷"," Tánɡtóucūn Hénɡ 13 Xiànɡ","东北起：塘头村横十三巷1号，西南至：塘头村横十三巷20号","200米","2米","南北"]
[14," 塘头村横十四巷"," Tánɡtóucūn Hénɡ 14 Xiànɡ","东北起：塘头村横十四巷1号，西南至：塘头村横十四巷15号","200米","2米","南北"]
[15," 塘头村横十五巷"," Tánɡtóucūn Hénɡ 15 Xiànɡ","东北起：塘头村横十五巷1号，西南至：塘头村横十五巷12号","200米","2米","南北"]
[16," 塘头村横十六巷"," Tánɡtóucūn Hénɡ 16 Xiànɡ","东北起：塘头村横十六巷1号，西南至：塘头村横十六巷12号","200米","2米","南北"]
[17," 塘头村横十七巷"," Tánɡtóucūn Hénɡ 17 Xiànɡ","东北起：塘头村横十七巷1号，西南至：塘头村横十七巷12号","200米","2米","南北"]
[18," 塘头村横十八巷"," Tánɡtóucūn Hénɡ 18 Xiànɡ","东北起：塘头村横十八巷1号，西南至：塘头村横十八巷12号","200米","2米","南北"]
[19," 塘头村横十九巷"," Tánɡtóucūn Hénɡ 19 Xiànɡ","东北起：塘头村横十九巷1号，西南至：塘头村横十九巷12号","200米","2米","南北"]
[20," 塘头村横二十巷"," Tánɡtóucūn Hénɡ 20 Xiànɡ","东北起：塘头村横二十巷1号，西南至：塘头村横二十巷12号","200米","2米","南北"]
[21," 塘头村横二十一巷"," Tánɡtóucūn Hénɡ 21 Xiànɡ","东北起：塘头村横二十一巷1号，西南至：塘头村横二十一巷11号","200米","2米","南北"]
[22," 塘头村横二十二巷"," Tánɡtóucūn Hénɡ 22 Xiànɡ","东北起：塘头村横二十二巷1号，西南至：塘头村横二十二巷11号","200米","2米","南北"]
[23," 塘头村横二十三巷"," Tánɡtóucūn Hénɡ 23 Xiànɡ","东北起：塘头村横二十三巷1号，西南至：塘头村横二十三巷10号","200米","2米","南北"]
[24," 塘头村横二十四巷"," Tánɡtóucūn Hénɡ 24 Xiànɡ","东北起：塘头村横二十四巷1号，西南至：塘头村横二十四巷9号","150米","2米","南北"]
[25," 塘头村横二十五巷"," Tánɡtóucūn Hénɡ 25 Xiànɡ","东北起：塘头村横二十五巷1号，西南至：塘头村横二十五巷9号","150米","2米","南北"]
[26," 塘头村横二十六巷"," Tánɡtóucūn Hénɡ 26 Xiànɡ","东北起：塘头村横二十六巷1号，西南至：塘头村横二十六巷7号","150米","2米","南北"]
[27,"冈咀村横一巷","Gāngjǔcūn Héng 1 Xiàng","西起：冈咀村横一巷1号，东至：冈咀村横一巷38号 ","190米","2米","西东"]
[28,"冈咀村横二巷","Gāngjǔcūn Héng 2 Xiàng","西起：冈咀村横二巷1号，东至: 冈咀村横二巷31号 ","190米","2米","西东"]
[29,"冈咀村横三巷","Gāngjǔcūn Héng 3 Xiàng","西起：冈咀村横三巷1号，东至: 冈咀村横三巷35号 ","190米","2米","西东"]
[30,"冈咀村横四巷","Gāngjǔcūn Héng 4 Xiàng","西起：冈咀村横四巷1号，东至；冈咀村横四巷31号 ","190米","2米","西东"]
[31,"冈咀村横五巷","Gāngjǔcūn Héng 5 Xiàng","西起：冈咀村横五巷1号，东至：冈咀村横五巷35号 ","190米","2米","西东"]
[32,"冈咀村横六巷","Gāngjǔcūn Héng 6 Xiàng","西起：冈咀村横六巷1号，东至：冈咀村横六巷34号 ","190米","2米","西东"]
[33,"冈咀村横七巷","Gāngjǔcūn Héng 7 Xiàng","西起：冈咀村横七巷1号，东至: 冈咀村横七巷36号 ","190米","2米","西东"]
[34,"冈咀村横八巷","Gāngjǔcūn Héng 8 Xiàng","西起：冈咀村横八巷1号，东至: 冈咀村横八巷34号 ","132米","2米","西东"]
[35,"冈咀村横九巷","Gāngjǔcūn Héng 9 Xiàng","西起：冈咀村横九巷1号，东至: 冈咀村横九巷34号 ","132米","2米","西东"]
[36,"冈咀村新村第一巷","Gānɡjǔcūn Xīncūn Dì-1 Xiànɡ","南起：冈咀村新村第一巷1号，北至：冈咀村新村第一巷21号","120米","3米","南北"]
[37,"冈咀村新村第二巷","Gānɡjǔcūn Xīncūn Dì-2 Xiànɡ","南起：冈咀村新村第二巷2号，北至：冈咀村新村第二巷22号","120米","3米","南北"]
[38,"冈咀村新村第三巷","Gānɡjǔcūn Xīncūn Dì-3 Xiànɡ","南起：冈咀村新村第三巷1号，北至：冈咀村新村第三巷21号","120米","3米","南北"]
[39,"冈咀村新村第四巷","Gānɡjǔcūn Xīncūn Dì-4 Xiànɡ","南起：冈咀村新村第四巷2号，北至：冈咀村新村第四巷22号","120米","3米","南北"]
[40,"冈咀村新村第五巷","Gānɡjǔcūn Xīncūn Dì-5 Xiànɡ","南起：冈咀村新村第五巷1号，北至：冈咀村新村第五巷21号","120米","3米","南北"]
[41,"冈咀村新村第六巷","Gānɡjǔcūn Xīncūn Dì-6 Xiànɡ","南起：冈咀村新村第六巷2号，北至:冈咀村新村第六巷22号","120米","3米","南北"]
[42,"冈咀村新村第七巷","Gānɡjǔcūn Xīncūn Dì-7 Xiànɡ","南起：冈咀村新村第七巷1号，北至:冈咀村新村第七巷21号","120米","3米","南北"]
[]
["5、黄村村（135条）"]
["序号","道路名称","汉语拼音","位置描述","基本参数",null,"走向"]
[{"$nulls":4},"长","宽"]
[1,"旧黄新村第一巷","Jiùhuáng Xīncūn Dì-1 Xiàng","南起：旧黄新村第一巷1号\n北至：旧黄新村第一巷18号","112米","2米","北南"]
[2,"旧黄新村第二巷","Jiùhuáng Xīncūn Dì-2 Xiàng","南起：旧黄新村第二巷1号     北至：旧黄新村第二巷18号","112米","1.5米","北南"]
[3,"旧黄新村第三巷","Jiùhuáng Xīncūn Dì-3 Xiàng","南起：旧黄新村第三巷1号\n北至：旧黄新村第三巷16号","112米","2.1米","北南"]
[4,"旧黄新村第四巷","Jiùhuáng Xīncūn Dì-4 Xiàng","南起：旧黄新村第四巷1号\n北至：旧黄新村第四巷18号","112米","2.1米","北南"]
[5,"旧黄新村第五巷","Jiùhuáng Xīncūn Dì-5 Xiàng","南起：旧黄新村第五巷1号\n北至：旧黄新村第五巷18号","112米","1.9米","北南"]
[6,"旧黄新村第六巷","Jiùhuáng Xīncūn Dì-6 Xiàng","南起：旧黄新村第六巷1号\n北至：旧黄新村第六巷18号","112米","2米","北南"]
[7,"旧黄新村第七巷","Jiùhuáng Xīncūn Dì-7 Xiàng","南起：旧黄新村第七巷1号\n北至：旧黄新村第七巷12号","112米","2米","北南"]
[8,"旧黄新村第八巷","Jiùhuáng Xīncūn Dì-8 Xiàng","南起：旧黄新村第八巷1号\n北至：旧黄新村第八巷18号","112米","2米","北南"]
[9,"旧黄新村第九巷","Jiùhuáng Xīncūn Dì-9 Xiàng","南起：旧黄新村第九巷1号\n北至：旧黄新村第九巷18号","112米","2.2米","北南"]
[10,"旧黄新村第十巷","Jiùhuáng Xīncūn Dì-10 Xiàng","南起：旧黄新村第十巷1号\n北至：旧黄新村第十巷20号","125米","2.4米","北南"]
[11,"旧黄新村第十一巷","Jiùhuáng Xīncūn Dì-11 Xiàng","南起：旧黄新村第十一巷1号\n北至：旧黄新村第十一巷19号","125米","2.1米","北南"]
[12,"旧黄新村第十二巷","Jiùhuáng Xīncūn Dì-12 Xiàng","南起：旧黄新村第十二巷1号\n北至：旧黄新村第十二巷20号","125米","2.1米","北南"]
[13,"旧黄新村第十三巷","Jiùhuáng Xīncūn Dì-13 Xiàng","南起：旧黄新村第十三巷1号\n北至：旧黄新村第十三巷20号","125米","2.2米","北南"]
[14,"旧黄新村第十四巷","Jiùhuáng Xīncūn Dì-14 Xiàng","南起：旧黄新村第十四巷1号\n北至：旧黄新村第十四巷14号","125米","2.1米","北南"]
[15,"旧黄新村第十五巷","Jiùhuáng Xīncūn Dì-15 Xiàng","南起：旧黄新村第十五巷1号\n北至：旧黄新村第十五巷20号","125米","2米","北南"]
[16,"旧黄新村第十六巷","Jiùhuáng Xīncūn Dì-16 Xiàng","南起：旧黄新村第十六巷1号\n北至：旧黄新村第十六巷16号","120米","2.1米","北南"]
[17,"旧黄新村第十七巷","Jiùhuáng Xīncūn Dì-17 Xiàng","南起：旧黄新村第十七巷1号\n北至：旧黄新村第十七巷12号","120米","2.2米","北南"]
[18,"旧黄新村第十八巷","Jiùhuáng Xīncūn Dì-18 Xiàng","南起：旧黄新村第十八巷1号\n北至：旧黄新村第十八巷12号","120米","2.1米","北南"]
[19,"旧黄新村第十九巷","Jiùhuáng Xīncūn Dì-19 Xiàng","南起：旧黄新村第十九巷1号\n北至：旧黄新村第十九巷12号","95米","2.1米","北南"]
[20,"旧黄新村第二十巷","Jiùhuáng Xīncūn Dì-20 Xiàng","南起：旧黄新村第二十巷1号\n北至：旧黄新村第二十巷8号","70米","2.2米","北南"]
[21,"陈村村第一巷","Chéncūncūn Dì-1 Xiàng","西起：陈村村第一巷1号\n东至：陈村村第一巷10号","15米","2米","东西"]
[22,"陈村村第二巷","Chéncūncūn Dì-2 Xiàng","西起：陈村村第二巷1号\n东至：陈村村第二巷12号","62米","1.18米","东西"]
[23,"陈村村第三巷","Chéncūncūn Dì-3 Xiàng","西起：陈村村第三巷1号\n东至：陈村村第三巷11号","64米","1.24米","东西"]
[24,"陈村村第四巷","Chéncūncūn Dì-4 Xiàng","西起：陈村村第四巷1号\n东至：陈村村第四巷10号","63米","1.35米","东西"]
[25,"陈村村第五巷","Chéncūncūn Dì-5 Xiàng","西起：陈村村第五巷1号\n东至：陈村村第五巷13号","69米","1.55米","东西"]
[26,"陈村村第六巷","Chéncūncūn Dì-6 Xiàng","西起：陈村村第六巷1号\n东至：陈村村第六巷10号","64米","1.68米","东西"]
[27,"陈村村第七巷","Chéncūncūn Dì-7 Xiàng","西起：陈村村第七巷1号\n东至：陈村村第七巷6号","26米","1.6米","东西"]
[28,"陈村村第八巷","Chéncūncūn Dì-8 Xiàng","西起：陈村村第八巷1号\n东至：陈村村第八巷2号","21米","1.7米","东西"]
[29,"旧黄村东升村第一巷","Jiùhuángcūn Dōngshēngcūn Dì-1 Xiàng","北起：东升村第一巷1号\n南至：东升村第一巷2号","100米","2.3米","南北"]
[30,"旧黄村东升村第二巷","Jiùhuángcūn Dōngshēngcūn Dì-2 Xiàng","北起：东升村第二巷1号\n南至：东升村第二巷7号","95米","2.3米","南北"]
[31,"旧黄村东升村第三巷","Jiùhuángcūn Dōngshēngcūn Dì-3 Xiàng","北起：东升村第三巷1号\n南至：东升村第三巷15号","95米","2.2米","南北"]
[32,"旧黄村东升村第四巷","Jiùhuángcūn Dōngshēngcūn Dì-4 Xiàng","北起：东升村第四巷1号\n南至：东升村第四巷13号","90米","2.4米","南北"]
[33,"旧黄村东升村第五巷","Jiùhuángcūn Dōngshēngcūn Dì-5 Xiàng","北起：东升村第五巷1号\n南至：东升村第五巷15号","95米","2.6米","南北"]
[34,"旧黄村东升村第六巷","Jiùhuángcūn Dōngshēngcūn Dì-6 Xiàng","北起：东升村第六巷1号\n南至：东升村第六巷13号","95米","2.5米","南北"]
[35,"旧黄村东升村第七巷","Jiùhuángcūn Dōngshēngcūn Dì-7 Xiàng","北起：东升村第七巷1号\n南至：东升村第七巷15号","95米","2.6米","南北"]
[36,"旧黄村东升村第八巷","Jiùhuángcūn Dōngshēngcūn Dì-8 Xiàng","北起：东升村第八巷1号\n南至：东升村第八巷11号","90米","2.6米","南北"]
[37,"旧黄村东升村第九巷","Jiùhuángcūn Dōngshēngcūn Dì-9 Xiàng","北起：东升村第九巷1号\n南至：东升村第九巷15号","90米","2.5米","南北"]
[38,"旧黄村东升村第十巷","Jiùhuángcūn Dōngshēngcūn Dì-10 Xiàng","北起：东升村第十巷1号\n南至：东升村第十巷13号","90米","2.5米","南北"]
[39,"旧黄村东升村第十一巷","Jiùhuángcūn Dōngshēngcūn Dì-11 Xiàng","北起：东升村第十一巷1号\n南至：东升村第十一巷11号","90米","2.4米","南北"]
[40,"旧黄村东升村第十二巷","Jiùhuángcūn Dōngshēngcūn Dì-12 Xiàng","北起：东升村第十二巷1号\n南至：东升村第十二巷15号","90米","2.4米","南北"]
[41,"旧黄村东升村第十三巷","Jiùhuángcūn Dōngshēngcūn Dì-13 Xiàng","北起：东升村第十三巷1号\n南至：东升村第十三巷15号","95米","2.5米","南北"]
[42,"古下村第一巷","Gǔxiàcūn Dì-1  Xiàng","南起：古下村第一巷1号\n北至：古下村第一巷10号","67米","2.5米","北南"]
[43,"古下村第二巷","Gǔxiàcūn Dì-2  Xiàng","南起：古下村第二巷1号\n北至：古下村第二巷8号","82米","1.8米","北南"]
[44,"古下村第三巷","Gǔxiàcūn Dì-3  Xiàng","南起：古下村第三巷1号\n北至：古下村第三巷12号","112米","2米","北南"]
[45,"古下村第四巷","Gǔxiàcūn Dì-4  Xiàng","南起：古下村第四巷1号\n北至：古下村第四巷9号","112米","2米","北南"]
[46,"古下村第五巷","Gǔxiàcūn Dì-5  Xiàng","南起：古下村第五巷1号\n北至：古下村第五巷2号","33米","1.4米","北南"]
[47,"旧黄村向东第一巷","Jiùhuángcūn Xiàngdōng Dì-1 Xiàng","东起：旧黄村向东第一巷1号\n西至：旧黄村向东第一巷6号","50米","1.2米","西东"]
[48,"旧黄村向东第二巷","Jiùhuángcūn Xiàngdōng Dì-2 Xiàng","东起：旧黄村向东第二巷1号\n西至：旧黄村向东第二巷10号","50米","1.6米","西东"]
[49,"旧黄村向东第三巷","Jiùhuángcūn Xiàngdōng Dì-3 Xiàng","东起：旧黄村向东第三巷1号\n西至：旧黄村向东第三巷10号","50米","1.7米","西东"]
[50,"旧黄村向东第四巷","Jiùhuángcūn Xiàngdōng Dì-4 Xiàng","东起：旧黄村向东第四巷1号\n西至：旧黄村向东第四巷1号","35米","1.7米","西东"]
[51,"旧黄村向南第一巷","Jiùhuángcūn Xiàngnán Dì-1 Xiàng","南起：旧黄村向南第一巷1号\n北至：旧黄村向南第一巷13号","75米","1.9米","北南"]
[52,"旧黄村向南第二巷","Jiùhuángcūn Xiàngnán Dì-2 Xiàng","南起：旧黄村向南第二巷1号\n北至：旧黄村向南第二巷16号","85米","1.5米","北南"]
[53,"旧黄村向南第三巷","Jiùhuángcūn Xiàngnán Dì-3 Xiàng","南起：旧黄村向南第三巷1号\n北至：旧黄村向南第三巷21号","108米","1.3米","北南"]
[54,"旧黄村向南第四巷","Jiùhuángcūn Xiàngnán Dì-4 Xiàng","南起：旧黄村向南第四巷1号\n北至：旧黄村向南第四巷21号","115米","1.7米","北南"]
[55,"旧黄村向南第五巷","Jiùhuángcūn Xiàngnán Dì-5 Xiàng","南起：旧黄村向南第五巷1号\n北至：旧黄村向南第五巷16号","96米","2.2米","北南"]
[56,"旧黄村向南第六巷","Jiùhuángcūn Xiàngnán Dì-6 Xiàng","南起：旧黄村向南第六巷1号    北至：旧黄村向南第六巷11号","78米","1.4米","北南"]
[57,"旧黄村向南第七巷","Jiùhuángcūn Xiàngnán Dì-7 Xiàng","南起：旧黄村向南第七巷1号    北至：旧黄村向南第七巷7号","50米","2.8米","北南"]
[58,"旧黄村向南第八巷","Jiùhuángcūn Xiàngnán Dì-8 Xiàng","南起：旧黄村向南第八巷1号    北至：旧黄村向南第八巷7号","30米","1.65米","北南"]
[59,"旧黄村向南第九巷","Jiùhuángcūn Xiàngnán Dì-9 Xiàng","南起：旧黄村向南第九巷1号    北至：旧黄村向南第九巷1号","28米","1.4米","北南"]
[60,"旧黄村向南第十巷","Jiùhuángcūn Xiàngnán Dì-10 Xiàng","南起：旧黄村向南第十巷1号    北至：旧黄村向南第十巷5号","35米","2米","北南"]
[61,"旧黄村向西第一巷","Jiùhuángcūn Xiàngxī  Dì-1 Xiàng","西起：旧黄村向西第一巷1号    东至：旧黄村向西第一巷10号","66米","2.1米","东西"]
[62,"旧黄村向西第二巷","Jiùhuángcūn Xiàngxī  Dì-2 Xiàng","西起：旧黄村向西第二巷1号    东至：旧黄村向西第二巷9号","66米","1.9米","东西"]
[63,"旧黄村向西第三巷","Jiùhuángcūn Xiàngxī  Dì-3 Xiàng","西起：旧黄村向西第三巷1号    东至：旧黄村向西第三巷9号","55米","1.75米","东西"]
[64,"旧黄村向西第四巷","Jiùhuángcūn Xiàngxī  Dì-4 Xiàng","西起：旧黄村向西第四巷1号    东至：旧黄村向西第四巷5号","55米","1.5米","东西"]
[65,"旧黄村向西第五巷","Jiùhuángcūn Xiàngxī  Dì-5 Xiàng","西起：旧黄村向西第五巷1号    东至：旧黄村向西第五巷6号","45米","1.9米","东西"]
[66,"黄村新安村第一巷","Huángcūn Xīn'āncūn Dì-1 Xiàng","南起：新安村第一巷2号\n北至：新安村第一巷3号","22米","1.85米","北南"]
[67,"黄村新安村第二巷","Huángcūn Xīn'āncūn Dì-2 Xiàng","南起：新安村第二巷1号\n北至：新安村第二巷3号","22米","1.9米","北南"]
[68,"黄村新安村第三巷","Huángcūn Xīn'āncūn Dì-3 Xiàng","南起：新安村第三巷\n北至：新安村第三巷","22米","2.4米","北南"]
[69,"黄村新安村第四巷","Huángcūn Xīn'āncūn Dì-4 Xiàng","南起：新安村第四巷2号\n北至：新安村第四巷5号","28米","2.2米","北南"]
[70,"黄村新安村第五巷","Huángcūn Xīn'āncūn Dì-5 Xiàng","南起：新安村第五巷1号\n北至：新安村第五巷4号","28米","1.9米","北南"]
[71,"黄村新安村第六巷","Huángcūn Xīn'āncūn Dì-6 Xiàng","南起：新安村第六巷1号\n北至：新安村第六巷5号","28米","1.8米","北南"]
[72,"黄村新安村第七巷","Huángcūn Xīn'āncūn Dì-7 Xiàng","南起：新安村第七巷\n北至：新安村第七巷","45米","1.9米","北南"]
[73,"黄村新安村第八巷","Huángcūn Xīn'āncūn Dì-8 Xiàng","南起：新安村第八巷4号\n北至：新安村第八巷6号","45米","1.8米","北南"]
[74,"黄村新安村第十巷","Huángcūn Xīn'āncūn Dì-10 Xiàng","东起：新安村第十巷9号\n西至：新安村第十巷13号","60米","1.4米","西东"]
[75,"黄村新安村第十一巷","Huángcūn Xīn'āncūn Dì-11 Xiàng","东起：新安村第十一巷3号\n西至：新安村第十一巷11号","60米","1.7米","西东"]
[76,"黄村新安村第十二巷","Huángcūn Xīn'āncūn Dì-12 Xiàng","东起：新安村第十二巷5号\n西至：新安村第十二巷14号","60米","1.7米","西东"]
[77,"黄村新安村第十三巷","Huángcūn Xīn'āncūn Dì-13 Xiàng","东起：新安村第十三巷2号\n西至：新安村第十三巷2号","60米","1米","西东"]
[78,"黄村新安村第十四巷","Huángcūn Xīn'āncūn Dì-14 Xiàng","东起：新安村第十四巷5号\n西至：新安村第十四巷9号","50米","1.7米","西东"]
[79,"黄村新安村第十五巷","Huángcūn Xīn'āncūn Dì-15 Xiàng","东起：新安村第十五巷8号\n西至：新安村第十五巷11号","45米","1.6米","西东"]
[80,"黄村新安村第十六巷","Huángcūn Xīn'āncūn Dì-16 Xiàng","东起：新安村第十六巷7号\n西至：新安村第十六巷7号","34米","1.4米","西东"]
[81,"黄村新安村第十七巷","Huángcūn Xīn'āncūn Dì-17 Xiàng","东起：新安村第十七巷9号\n西至：新安村第十七巷9号","34米","1米","西东"]
[82,"新黄村第一巷","Xīnhuángcūn Dì-1 Xiàng","南起：新黄村第一巷1号\n北至：新黄村第一巷18号","58米","2.7米","北南"]
[83,"新黄村第二巷","Xīnhuángcūn Dì-2 Xiàng","南起：新黄村第二巷1号\n北至：新黄村第二巷15号","125米","1.8米","北南"]
[84,"新黄村第三巷","Xīnhuángcūn Dì-3 Xiàng","南起：新黄村第三巷1号\n北至：新黄村第三巷22号","125米","1.7米","北南"]
[85,"新黄村第四巷","Xīnhuángcūn Dì-4 Xiàng","南起：新黄村第四巷1号\n北至：新黄村第四巷19号","150米","1.8米","北南"]
[86,"新黄村第五巷","Xīnhuángcūn Dì-5 Xiàng","南起：新黄村第五巷1号\n北至：新黄村第五巷22号","150米","1.8米","北南"]
[87,"新黄村第六巷","Xīnhuángcūn Dì-6 Xiàng","南起：新黄村第六巷1号\n北至：新黄村第六巷19号","145米","1.7米","北南"]
[88,"新黄村第七巷","Xīnhuángcūn Dì-7 Xiàng","南起：新黄村第七巷1号\n北至：新黄村第七巷24号","137米","1.7米","北南"]
[89,"新黄村第八巷","Xīnhuángcūn Dì-8 Xiàng","南起：新黄村第八巷1号\n北至：新黄村第八巷19号","137米","1.8米","北南"]
[90,"新黄村第九巷","Xīnhuángcūn Dì-9 Xiàng","南起：新黄村第九巷1号\n北至：新黄村第九巷15号","150米","2.8米","北南"]
[91,"新黄村第十巷","Xīnhuángcūn Dì-10 Xiàng","南起：新黄村第十巷1号\n北至：新黄村第十巷9号","112米","1.8米","北南"]
[92,"新李村第一巷","Xīnlǐcūn Dì-1 Xiàng","北起：新李村第一巷1号\n南至：新李村第一巷11号","73米","1.7米","南北"]
[93,"新李村第二巷","Xīnlǐcūn Dì-2 Xiàng","北起：新李村第二巷1号\n南至：新李村第二巷11号","73米","1.7米","南北"]
[94,"新李村第三巷","Xīnlǐcūn Dì-3 Xiàng","北起：新李村第三巷1号\n南至：新李村第三巷8号","92米","1.8米","南北"]
[95,"新李村第四巷","Xīnlǐcūn Dì-4 Xiàng","北起：新李村第四巷1号\n南至：新李村第四巷16号","95米","1.7米","南北"]
[96,"新李村第五巷","Xīnlǐcūn Dì-5 Xiàng","北起：新李村第五巷1号\n南至：新李村第五巷15号","95米","1.9米","南北"]
[97,"新李村第六巷","Xīnlǐcūn Dì-6 Xiàng","北起：新李村第六巷1号\n南至：新李村第六巷15号","70米","1.8米","南北"]
[98,"新李村第七巷","Xīnlǐcūn Dì-7 Xiàng","北起：新李村第七巷1号\n南至：新李村第七巷10号","73米","1.9米","南北"]
[99,"新李村第八巷","Xīnlǐcūn Dì-8 Xiàng","北起：新李村第八巷1号\n南至：新李村第八巷9号","75米","2米","南北"]
[100,"旧李村第一巷","Jiùlǐcūn Dì-1 Xiàng","东起：旧李村第一巷1号\n西至：旧李村第一巷14号","53米","1.7米","西东"]
[101,"旧李村第二巷","Jiùlǐcūn Dì-2 Xiàng","东起：旧李村第二巷1号\n西至：旧李村第二巷13号","70米","1.7米","西东"]
[102,"旧李村第三巷","Jiùlǐcūn Dì-3 Xiàng","东起：旧李村第三巷1号\n西至：旧李村第三巷18号","73米","1.5米","西东"]
[103,"旧李村第四巷","Jiùlǐcūn Dì-4 Xiàng","东起：旧李村第四巷1号\n西至：旧李村第四巷18号","86米","1.2米","西东"]
[104,"旧李村第五巷","Jiùlǐcūn Dì-5 Xiàng","东起：旧李村第五巷1号\n西至：旧李村第五巷18号","91米","1.4米","西东"]
[105,"旧李村第六巷","Jiùlǐcūn Dì-6 Xiàng","东起：旧李村第六巷1号\n西至：旧李村第六巷17号","91米","1.3米","西东"]
[106,"旧李村第七巷","Jiùlǐcūn Dì-7 Xiàng","东起：旧李村第七巷1号\n西至：旧李村第七巷13号","80米","2.3米","西东"]
[107,"旧李村第八巷","Jiùlǐcūn Dì-8 Xiàng","东起：旧李村第八巷1号\n西至：旧李村第八巷15号","79米","2.4米","西东"]
[108,"旧李村第九巷","Jiùlǐcūn Dì-9 Xiàng","东起：旧李村第九巷1号\n西至：旧李村第九巷11号","60米","2.3米","西东"]
[109,"旧李村第十巷","Jiùlǐcūn Dì-10 Xiàng","东起：旧李村第十巷10号\n西至：旧李村第十巷10号","35米","4米","西东"]
[110,"联星村第一巷","Liánxīngcūn Dì-1 Xiàng","北起：联星村第一巷1号\n南至：联星村第一巷14号","111米","2.5米","南北"]
[111,"联星村第二巷","Liánxīngcūn Dì-2 Xiàng","北起：联星村第二巷1号\n南至：联星村第二巷16号","100米","2.3米","南北"]
[112,"联星村第三巷","Liánxīngcūn Dì-3 Xiàng","北起：联星村第三巷1号\n南至：联星村第三巷20号","125米","2.4米","南北"]
[113,"联星村第四巷","Liánxīngcūn Dì-4 Xiàng","北起：联星村第四巷1号\n南至：联星村第四巷19号","125米","2.4米","南北"]
[114,"联星村第五巷","Liánxīngcūn Dì-5 Xiàng","北起：联星村第五巷1号\n南至：联星村第五巷19号","125米","2.5米","南北"]
[115,"联星村第六巷","Liánxīngcūn Dì-6 Xiàng","北起：联星村第六巷1号\n南至：联星村第六巷17号","115米","1.6米","南北"]
[116,"联星村第七巷","Liánxīngcūn Dì-7 Xiàng","北起：联星村第七巷1号\n南至：联星村第七巷18号","115米","2.5米","南北"]
[117,"联星村第八巷","Liánxīngcūn Dì-8 Xiàng","北起：联星村第八巷1号\n南至：联星村第八巷20号","127米","1.6米","南北"]
[118,"联星村第九巷","Liánxīngcūn Dì-9 Xiàng","北起：联星村第九巷1号\n南至：联星村第九巷18号","129米","2.3米","南北"]
[119,"联星村第十巷","Liánxīngcūn Dì-10 Xiàng","北起：联星村第十巷1号\n南至：联星村第十巷17号","129米","2.5米","南北"]
[120,"联星村第十一巷","Liánxīngcūn Dì-11 Xiàng","北起：联星村第十一巷1号\n南至：联星村第十一巷4号","100米","3.9米","南北"]
[121,"联星村第十二巷","Liánxīngcūn Dì-12 Xiàng","北起：联星村第十二巷1号\n南至：联星村第十二巷14号","86米","2.1米","南北"]
[122,"联星村第十三巷","Liánxīngcūn Dì-13 Xiàng","北起：联星村第十三巷1号\n南至：联星村第十三巷7号","60米","2.4米","南北"]
[123,"联星村第十四巷","Liánxīngcūn Dì-14 Xiàng","北起：联星村第十四巷1号\n南至：联星村第十四巷16号","100米","3米","南北"]
[124,"黄村南昌村第一巷","Huángcūn Nánchāngcūn Dì-1 Xiàng","北起：黄村南昌村第一巷1号   \n南至：黄村南昌村第一巷10号","73米","2米","南北"]
[125,"黄村南昌村第二巷","Huángcūn Nánchāngcūn Dì-2 Xiàng","北起：黄村南昌村第二巷1号   \n南至：黄村南昌村第二巷10号","88米","1.75米","南北"]
[126,"黄村南昌村第三巷","Huángcūn Nánchāngcūn Dì-3 Xiàng","北起：黄村南昌村第三巷3号   \n南至：黄村南昌村第三巷12号","88米","1.7米","南北"]
[127,"黄村南昌村第四巷","Huángcūn Nánchāngcūn Dì-4 Xiàng","北起：黄村南昌村第四巷1号   \n南至：黄村南昌村第四巷14号","70米","1.75米","南北"]
[128,"黄村南昌村第五巷","Huángcūn Nánchāngcūn Dì-5 Xiàng","北起：黄村南昌村第五巷3号   \n南至：黄村南昌村第五巷12号","70米","1.65米","南北"]
[129,"黄村南昌村第六巷","Huángcūn Nánchāngcūn Dì-6 Xiàng","北起：黄村南昌村第六巷5号   \n南至：黄村南昌村第六巷5号","47米","1.8米","南北"]
[130,"沃田村第一巷","Wòtiáncūn Dì-1 Xiàng","东起：沃田村第一巷1号\n西至：沃田村第一巷7号","53米","1.8米","西东"]
[131,"沃田村第二巷","Wòtiáncūn Dì-2 Xiàng","东起：沃田村第二巷1号\n西至：沃田村第二巷8号","53米","1.8米","西东"]
[132,"沃田村第三巷","Wòtiáncūn Dì-3 Xiàng","东起：沃田村第三巷1号\n西至：沃田村第三巷8号","53米","1.8米","西东"]
[133,"沃田村第四巷","Wòtiáncūn Dì-4 Xiàng","东起：沃田村第四巷1号\n西至：沃田村第四巷8号","68米","10米","西东"]
[134,"沃田村第五巷","Wòtiáncūn Dì-5 Xiàng","东起：沃田村第五巷1号\n西至：沃田村第五巷8号","68米","1.7米","西东"]
[135,"沃田村第六巷","Wòtiáncūn Dì-6 Xiàng","东起：沃田村第六巷1号\n西至：沃田村第六巷8号","68米","1.8米","西东"]
[]
["6、联塘村（11条）"]
["序号","道路名称","汉语拼音","位置描述","基本参数",null,"走向"]
[{"$nulls":4},"长","宽"]
[1,"联塘松柏村一巷","Liántáng Sōngbǎicūn 1 Xiàng","东起：松柏村一巷1号，西至：松柏村一巷13号","120米","2米","东西"]
[2,"联塘松柏村二巷","Liántáng Sōngbǎicūn 2 Xiàng","东起：松柏村二巷1号，西至：松柏村二巷14号","120米","2米","东西"]
[3,"联塘松柏村三巷","Liántáng Sōngbǎicūn 3 Xiàng","东起：松柏村一巷1号，西至：松柏村一巷15号","120米","2米","东西"]
[4,"联塘松柏村四巷","Liántáng Sōngbǎicūn 4 Xiàng","东起：松柏村四巷1号，西至：松柏村四巷12号","120米","2米","东西"]
[5,"联塘松柏村五巷","Liántáng Sōngbǎicūn 5 Xiàng","东起：松柏村五巷1号，西至：松柏村二巷13号","120米","2米","东西"]
[6,"联塘松柏村六巷","Liántáng Sōngbǎicūn 6 Xiàng","东起：松柏村六巷1号，西至：松柏村六巷12号","120米","2米","东西"]
[7,"联塘松柏村七巷","Liántáng Sōngbǎicūn 7 Xiàng","东起：松柏村七巷1号，西至：松柏村七巷12号","75米","2米","东西"]
[8,"联塘松柏村八巷","Liántáng Sōngbǎicūn 8 Xiàng","东起：松柏村八巷1号，西至：松柏村八巷13号","75米","2米","东西"]
[9,"联塘松柏村九巷","Liántáng Sōngbǎicūn 9 Xiàng","东起：松柏村九巷1号，西至：松柏村九巷10号","75米","2米","东西"]
[10,"联塘松柏村十巷","Liántáng Sōngbǎicūn 10 Xiàng","东起：松柏村十巷1号，西至：松柏村十巷10号","75米","2米","东西"]
[11,"联塘松柏村十一巷","Liántáng Sōngbǎicūn 11 Xiàng","东起：松柏村十一巷1号               西至：松柏村十一巷10号","75米","2米","东西"]
[]
["7、那泔村（105条）"]
["序号","道路名称","汉语拼音","位置描述","基本参数",null,"走向"]
[{"$nulls":4},"长","宽"]
[1,"那泔隔塘村一巷","Nàgān Gétángcūn 1 Xiàng","南起：隔塘村一巷1号\n北至：隔塘村一巷18号","90米","1.5米","南北"]
[2,"那泔隔塘村二巷","Nàgān Gétángcūn 2 Xiàng","南起：隔塘村二巷1号\n北至：隔塘村二巷20号","125米","1.5米","南北"]
[3,"那泔隔塘村三巷","Nàgān Gétángcūn 3 Xiàng","南起：隔塘村三巷1号\n北至：隔塘村三巷22号","130米","1.5米","南北"]
[4,"那泔隔塘村四巷","Nàgān Gétángcūn 4 Xiàng","南起：隔塘村村面空地\n北至：隔塘村二巷24号","130米","1.5米","南北"]
[5,"那泔隔塘村五巷","Nàgān Gétángcūn 5 Xiàng","南起：隔塘村村面空地\n北至：隔塘村五巷24号","135米","1.5米","南北"]
[6,"那泔隔塘村六巷","Nàgān Gétángcūn 6 Xiàng","南起：隔塘村六巷1号\n北至：隔塘村4号","175米","1.5米","南北"]
[7,"那泔隔塘村七巷","Nàgān Gétángcūn 7 Xiàng","南起：隔塘村村面空地\n北至：隔塘村11号","175米","1.5米","南北"]
[8,"那泔隔塘村八巷","Nàgān Gétángcūn 8 Xiàng","南起：隔塘村村面空地\n北至：隔塘村12号","165米","1.5米","南北"]
[9,"那泔隔塘村九巷","Nàgān Gétángcūn 9 Xiàng","南起：隔塘村村面空地\n北至：隔塘村九巷13号","100米","1.5米","南北"]
[10,"那泔广居村一巷","Nàgān Guǎngjūcūn 1 Xiàng","北起：广居村空地              南至：广居村一巷8号","40米","2米","北南"]
[11,"那泔广居村二巷","Nàgān Guǎngjūcūn 2 Xiàng","北起：广居村空地              南至：广居村二巷7号","55米","2米","北南"]
[12,"那泔广居村三巷","Nàgān Guǎngjūcūn 3 Xiàng","北起：广居村空地              南至：广居村三巷14号","95米","2米","北南"]
[13,"那泔广居村四巷","Nàgān Guǎngjūcūn 4 Xiàng","北起：广居村空地              南至：广居村四巷11号","115米","2米","北南"]
[14,"那泔广居村五巷","Nàgān Guǎngjūcūn 5 Xiàng","北起：广居村五巷1号              南至：广居村五巷19号","80米","2米","北南"]
[15,"那泔广居村六巷","Nàgān Guǎngjūcūn 6 Xiàng","北起：广居村六巷1号              南至：广居村荒地","90米","2米","北南"]
[16,"那泔广居村七巷","Nàgān Guǎngjūcūn 7 Xiàng","北起：广居村村面塘             南至：广居村七巷12号","135米","2米","北南"]
[17,"那泔广居村八巷","Nàgān Guǎngjūcūn 8 Xiàng","北起：广居村村面塘             南至：广居村八巷23号","125米","2米","北南"]
[18,"那泔广居村九巷","Nàgān Guǎngjūcūn 9 Xiàng","北起：广居村村面塘             南至：广居村九巷22号","135米","2米","北南"]
[19,"那泔广居村十巷","Nàgān Guǎngjūcūn 10 Xiàng","北起：广居村村面塘             南至：广居村十巷23号","135米","2米","北南"]
[20,"那泔广居村十一巷","Nàgān Guǎngjūcūn 11 Xiàng","北起：广居村村面塘             南至：广居村十一巷17号","135米","2米","北南"]
[21,"那泔广居村十二巷","Nàgān Guǎngjūcūn 12 Xiàng","北起：广居村村面塘             南至：广居村十二巷23号","135米","2米","北南"]
[22,"那泔广居村十三巷","Nàgān Guǎngjūcūn 13 Xiàng","北起：广居村村面塘             南至：广居村十三巷13号","175米","2米","北南"]
[23,"那泔广居村十四巷","Nàgān Guǎngjūcūn 14 Xiàng","北起：广居村村面塘             南至：广居村十四巷21号","190米","2米","北南"]
[24,"那泔广居村十五巷","Nàgān Guǎngjūcūn 15 Xiàng","北起：广居村村面塘             南至：广居村十五巷27号","170米","2米","北南"]
[25,"那泔广居村十六巷","Nàgān Guǎngjūcūn 16 Xiàng","北起：广居村村面塘             南至：广居村十六巷16号","170米","2米","北南"]
[26,"那泔横冈村一巷","Nàgān Hénggāngcūn 1 Xiàng","南起：横冈村村面空地\n北至：横冈村一巷6号","25米","1.5米","南北"]
[27,"那泔横冈村二巷","Nàgān Hénggāngcūn 2 Xiàng","南起：横冈村村面空地\n北至：横冈村一巷8号","30米","1.5米","南北"]
[28,"那泔横冈村三巷","Nàgān Hénggāngcūn 3 Xiàng","南起：横冈村三巷5号\n北至：横冈村一巷8号","40米","1.5米","南北"]
[29,"那泔横冈村四巷","Nàgān Hénggāngcūn 4 Xiàng","南起：横冈村四巷4号\n北至：横冈村四巷8号","50米","1.5米","南北"]
[30,"那泔横冈村五巷","Nàgān Hénggāngcūn 5 Xiàng","南起：横冈村五巷2号\n北至：横冈村五巷6号","50米","1.5米","南北"]
[31,"那泔横冈村六巷","Nàgān Hénggāngcūn 6 Xiàng","南起：横冈村村面空地\n北至：横冈村荒地","50米","1.5米","南北"]
[32,"那泔横冈村七巷","Nàgān Hénggāngcūn 7 Xiàng","南起：横冈村村面空地\n北至：横冈村七巷4号","30米","1.5米","南北"]
[33,"那泔横冈村八巷","Nàgān Hénggāngcūn 8 Xiàng","南起：横冈村村面空地\n北至：横冈村八巷4号","30米","1.5米","南北"]
[34,"那泔莲塘村一巷","Nàgān Liántángcūn 1 Xiàng","北起：莲塘村村前晒场\n南至：莲塘村村后树林","35米","1.5米","北南"]
[35,"那泔莲塘村二巷","Nàgān Liántángcūn 2 Xiàng","北起：莲塘村二巷1号\n南至：莲塘村二巷6号","40米","1.5米","北南"]
[36,"那泔莲塘村三巷","Nàgān Liántángcūn 3 Xiàng","北起：莲塘村三巷1号\n南至：莲塘村三巷11号","70米","1.5米","北南"]
[37,"那泔莲塘村四巷","Nàgān Liántángcūn 4 Xiàng","北起：莲塘村四巷1号\n南至：莲塘村四巷9号","70米","1.5米","北南"]
[38,"那泔莲塘村五巷","Nàgān Liántángcūn 5 Xiàng","北起：莲塘村五巷1号\n南至：莲塘村五巷7号","70米","1.5米","北南"]
[39,"那泔莲塘村六巷","Nàgān Liántángcūn 6 Xiàng","北起：莲塘村六巷1号\n南至：莲塘村六巷7号","70米","1.5米","北南"]
[40,"那泔莲塘村七巷","Nàgān Liántángcūn 7 Xiàng","北起：莲塘村七巷1号\n南至：莲塘村荒地","60米","1.5米","北南"]
[41,"六社村一巷","Liùshècūn 1 Xiàng","南起：六社村村前乡道\n北至：六社村村后树林","30米","2米","南北"]
[42,"六社村二巷","Liùshècūn 2 Xiàng","南起：六社村二巷1号\n北至：六社村二巷4号","35米","2米","南北"]
[43,"六社村三巷","Liùshècūn 3 Xiàng","南起：六社村三巷1号\n北至：六社村三巷8号","40米","2米","南北"]
[44,"六社村四巷","Liùshècūn 4 Xiàng","南起：六社村四巷1号\n北至：六社村四巷4号","30米","2米","南北"]
[45,"六社村五巷","Liùshècūn 5 Xiàng","南起：六社村五巷1号\n北至：六社村五巷10号","40米","2米","南北"]
[46,"六社村六巷","Liùshècūn 6 Xiàng","南起：六社村六巷1号\n北至：六社村六巷10号","30米","2米","南北"]
[47,"六社村七巷","Liùshècūn 7 Xiàng","南起：六社村七巷1号\n北至：六社村七巷5号","30米","2米","南北"]
[48,"六社村八巷","Liùshècūn 8 Xiàng","南起：六社村八巷4号\n北至：六社村八巷8号","30米","2米","南北"]
[49,"那泔龙兴村一巷","Nàgān Lóngxīngcūn 1 Xiàng","南起：龙兴村一巷1号\n北至：龙兴村一巷3号","20米","2米","南北"]
[50,"那泔龙兴村二巷","Nàgān Lóngxīngcūn 2 Xiàng","南起：龙兴村二巷1号\n北至：龙兴村二巷6号","20米","2米","南北"]
[51,"那泔龙兴村三巷","Nàgān Lóngxīngcūn 3 Xiàng","南起：龙兴村三巷1号\n北至：龙兴村三巷5号","20米","2米","南北"]
[52,"那泔龙兴村四巷","Nàgān Lóngxīngcūn 4 Xiàng","南起：龙兴村四巷1号\n北至：龙兴村四巷3号","30米","2米","南北"]
[53,"那泔龙兴村五巷","Nàgān Lóngxīngcūn 5 Xiàng","南起：龙兴村五巷1号\n北至：龙兴村五巷4号","30米","2米","南北"]
[54,"那泔龙兴村六巷","Nàgān Lóngxīngcūn 6 Xiàng","南起：龙兴村六巷1号\n北至：龙兴村六巷6号","30米","2米","南北"]
[55,"那泔龙兴村七巷","Nàgān Lóngxīngcūn 7 Xiàng","南起：龙兴村七巷1号\n北至：龙兴村七巷2号","20米","2米","南北"]
[56,"那泔龙兴村八巷","Nàgān Lóngxīngcūn 8 Xiàng","南起：龙兴村八巷1号\n北至：龙兴村八巷1号","10米","2米","南北"]
[57,"那泔龙兴村南一巷","Nàgān Lóngxīngcūn Nán 1 Xiàng","南起：龙兴村南一巷1号\n北至：龙兴村南一巷2号","20米","2米","南北"]
[58,"那泔龙兴村南二巷","Nàgān Lóngxīngcūn Nán 2 Xiàng","南起：龙兴村南二巷1号\n北至：龙兴村南二巷6号","30米","2米","南北"]
[59,"那泔龙兴村南三巷","Nàgān Lóngxīngcūn Nán 3 Xiàng","南起：龙兴村南三巷1号\n北至：龙兴村南三巷3号","30米","2米","南北"]
[60,"那泔龙兴村南四巷","Nàgān Lóngxīngcūn Nán 4 Xiàng","南起：龙兴村南四巷1号\n北至：龙兴村南四巷2号","20米","2米","南北"]
[61,"那泔龙兴村南五巷","Nàgān Lóngxīngcūn Nán 5 Xiàng","南起：龙兴村南五巷1号\n北至：龙兴村南五巷5号","30米","2米","南北"]
[62,"那泔龙兴村南六巷","Nàgān Lóngxīngcūn Nán 6 Xiàng","南起：龙兴村南六巷1号\n北至：龙兴村南六巷4号","20米","2米","南北"]
[63,"沙桥村一巷","Shāqiáocūn 1 Xiàng","南起：沙桥村一巷1号\n北至：沙桥村一巷11号","65米","1.5米","南北"]
[64,"沙桥村二巷","Shāqiáocūn 2 Xiàng","南起：沙桥村二巷1号\n北至：沙桥村二巷11号","95米","1.5米","南北"]
[65,"沙桥村三巷","Shāqiáocūn 3 Xiàng","南起：沙桥村三巷1号\n北至：沙桥村三巷15号","105米","1.5米","南北"]
[66,"沙桥村四巷","Shāqiáocūn 4 Xiàng","南起：沙桥村四巷1号\n北至：沙桥村四巷17号","105米","1.5米","南北"]
[67,"沙桥村五巷","Shāqiáocūn 5 Xiàng","南起：沙桥村五巷1号\n北至：沙桥村五巷12号","35米","1.5米","南北"]
[68,"沙桥村六巷","Shāqiáocūn 6 Xiàng","南起：沙桥村六巷1号\n北至：沙桥村六巷10号","105米","1.5米","南北"]
[69,"沙桥村七巷","Shāqiáocūn 7 Xiàng","南起：沙桥村村面空地\n北至：沙桥村七巷10号","60米","1.5米","南北"]
[70,"沙桥村八巷","Shāqiáocūn 8 Xiàng","南起：沙桥村村面空地\n北至：沙桥村八巷10号","65米","1.5米","南北"]
[71,"沙桥村九巷","Shāqiáocūn 9 Xiàng","南起：沙桥村九巷2号\n北至：沙桥村九巷9号","90米","1.5米","南北"]
[72,"沙桥村十巷","Shāqiáocūn 10 Xiàng","南起：沙桥村村面空地\n北至：沙桥村十巷13号","90米","1.5米","南北"]
[73,"沙桥村十一巷","Shāqiáocūn 11 Xiàng","南起：沙桥村村面空地\n北至：沙桥村十一巷11号","70米","1.5米","南北"]
[74,"沙桥村十二巷","Shāqiáocūn 12 Xiàng","南起：沙桥村村面空地\n北至：沙桥村十二巷11号","65米","1.5米","南北"]
[75,"沙桥村十三巷","Shāqiáocūn 13 Xiàng","南起：沙桥村十三巷1号\n北至：沙桥村十三巷13号","55米","1.5米","南北"]
[76,"沙桥村十四巷","Shāqiáocūn 14 Xiàng","南起：沙桥村十四巷1号\n北至：沙桥村荒地","50米","1.5米","南北"]
[77,"那泔余庆村一巷","Nàgān Yúqìngcūn 1 Xiàng","南起：余庆村一巷1号\n北至：余庆村一巷13号","75米","1.5米","南北"]
[78,"那泔余庆村二巷","Nàgān Yúqìngcūn 2 Xiàng","南起：余庆村二巷1号\n北至：余庆村二巷14号","75米","1.5米","南北"]
[79,"那泔余庆村三巷","Nàgān Yúqìngcūn 3 Xiàng","南起：余庆村三巷1号\n北至：余庆村三巷12号","90米","1.5米","南北"]
[80,"那泔余庆村四巷","Nàgān Yúqìngcūn 4 Xiàng","南起：余庆村四巷1号\n北至：余庆村四巷15号","90米","1.5米","南北"]
[81,"那泔余庆村五巷","Nàgān Yúqìngcūn 5 Xiàng","南起：余庆村五巷1号               北至：余庆村五巷17号","95米","1.5米","南北"]
[82,"那泔余庆村六巷","Nàgān Yúqìngcūn 6 Xiàng","南起：余庆村六巷1号               北至：余庆村六巷6号","85米","1.5米","南北"]
[83,"那泔余庆村七巷","Nàgān Yúqìngcūn 7 Xiàng","南起：余庆村七巷1号               北至：余庆村七巷6号","85米","1.5米","南北"]
[84,"那泔余庆村八巷","Nàgān Yúqìngcūn 8 Xiàng","南起：余庆村八巷1号               北至：余庆村八巷13号","110米","1.5米","南北"]
[85,"那泔余庆村九巷","Nàgān Yúqìngcūn 9 Xiàng","南起：余庆村九巷1号               北至：余庆村九巷8号","55米","1.5米","南北"]
[86,"上巷村一巷","Shàngxiàngcūn 1 Xiàng","西起：上巷村一巷1号\n东至：上巷村一巷4号","20米","1.2米","西东"]
[87,"上巷村二巷","Shàngxiàngcūn 2 Xiàng","西起：上巷村二巷1号\n东至：上巷村二巷6号","20米","1.2米","西东"]
[88,"上巷村三巷","Shàngxiàngcūn 3 Xiàng","西起：上巷村三巷5号\n东至：上巷村三巷18号","30米","1.2米","西东"]
[89,"上巷村四巷","Shàngxiàngcūn 4 Xiàng","西起：上巷村四巷1号\n东至：上巷村四巷20号","105米","3米","西东"]
[90,"上巷村五巷","Shàngxiàngcūn 5 Xiàng","西起：上巷村五巷1号\n东至：上巷村五巷14号","65米","1.2米","西东"]
[91,"上巷村六巷","Shàngxiàngcūn 6 Xiàng","西起：上巷村六巷4号\n东至：上巷村六巷10号","55米","1.5米","西东"]
[92,"上巷村七巷","Shàngxiàngcūn 7 Xiàng","西起：上巷村七巷2号\n东至：上巷村七巷16号","55米","1.5米","西东"]
[93,"上巷村八巷","Shàngxiàngcūn 8 Xiàng","西起：上巷村八巷1号\n东至：上巷村八巷14号","70米","1.5米","西东"]
[94,"上巷村九巷","Shàngxiàngcūn 9 Xiàng","西起：上巷村九巷1号\n东至：上巷村九巷14号","60米","1.5米","西东"]
[95,"上巷村十巷","Shàngxiàngcūn 10 Xiàng","西起：上巷村十巷1号\n东至：上巷村十巷9号","50米","1米","西东"]
[96,"上巷村十一巷","Shàngxiàngcūn 11 Xiàng","西起：上巷村村面空地\n东至：上巷村十一巷4号","50米","1米","西东"]
[97,"上巷村十二巷","Shàngxiàngcūn 12 Xiàng","西起：上巷村十二巷1号\n东至：上巷村十二巷11号","50米","1.5米","西东"]
[98,"上巷村十三巷","Shàngxiàngcūn 13 Xiàng","西起：上巷村十三巷2号\n东至：上巷村十三巷4号","25米","1.5米","西东"]
[99,"那泔华塘里一巷","Nàgān Huátánglǐ 1 Xiàng","南起：华塘里村前鱼塘\n北至：华塘里村后竹林","10米","1.5米","南北"]
[100,"那泔华塘里二巷","Nàgān Huátánglǐ 2 Xiàng","南起：华塘里村前鱼塘\n北至：华塘里村后竹林","5米","1.5米","南北"]
[101,"那泔华塘里三巷","Nàgān Huátánglǐ 3 Xiàng","南起：华塘里村前鱼塘\n北至：华塘里村后竹林","45米","1.5米","南北"]
[102,"那泔华塘里四巷","Nàgān Huátánglǐ 4 Xiàng","南起：华塘里村前鱼塘\n北至：华塘里村后竹林","15米","1.5米","南北"]
[103,"那泔华塘里五巷","Nàgān Huátánglǐ 5 Xiàng","南起：华塘里村前鱼塘\n北至：华塘里村后竹林","25米","1.5米","南北"]
[104,"那泔华塘里六巷","Nàgān Huátánglǐ 6 Xiàng","南起：华塘里村前鱼塘\n北至：华塘里村后竹林","25米","1.5米","南北"]
[105,"那泔华塘里七巷","Nàgān Huátánglǐ 7 Xiàng","南起：华塘里村前鱼塘\n北至：华塘里村后竹林","30米","1.5米","南北"]
[]
["8、齐洞村（41条）"]
["序号","道路名称","汉语拼音","位置描述","基本参数",null,"走向"]
[{"$nulls":4},"长","宽"]
[1,"斗南村一巷","Dǒunáncūn 1 Xiàng","东起：斗南村一巷1号\n西至：斗南村十巷1号\n","57米","2.4米","南北"]
[2,"斗南村二巷","Dǒunáncūn 2 Xiàng","东起：斗南村二巷1号\n西至：斗南村十巷1号\n","57米","2.4米","南北"]
[3,"斗南村三巷","Dǒunáncūn 3 Xiàng","东起：斗南村三巷1号\n西至：斗南村十巷1号\n","57米","2.4米","南北"]
[4,"斗南村四巷","Dǒunáncūn 4 Xiàng","东起：斗南村四巷1号\n西至：斗南村十巷1号\n","57米","2.4米","南北"]
[5,"斗南村五巷","Dǒunáncūn 5 Xiàng","东起：斗南村五巷1号\n西至：斗南村十巷1号\n","57米","2.4米","南北"]
[6,"斗南村六巷","Dǒunáncūn 6 Xiàng","东起：斗南村六巷1号\n西至：斗南村十巷1号\n","57米","2.4米","南北"]
[7,"斗南村七巷","Dǒunáncūn 7 Xiàng","东起：斗南村七巷1号\n西至：斗南村十巷1号\n","57米","2.4米","南北"]
[8,"斗南村八巷","Dǒunáncūn 8 Xiàng","东起：斗南村八巷1号\n西至：斗南村十巷1号\n","57米","2.4米","南北"]
[9,"斗南村九巷","Dǒunáncūn 9 Xiàng","东起：斗南村四巷1号\n西至：斗南村十巷4号\n","57米","2.4米","南北"]
[10,"斗南村十巷","Dǒunáncūn 10 Xiàng","东起：斗南村七巷1号\n西至：斗南村十巷1号\n","57米","2.4米","南北"]
[11,"齐洞月塘村二巷","Qídòng Yuètángcūn 2 Xiàng","东起：月塘村巷前空地\n南至：月塘村四巷","67米","2.4米","东西"]
[12,"齐洞月塘村四巷","Qídòng Yuètángcūn 4 Xiàng","东起：月塘村四巷\n南至：月塘村巷尾","67米","2.4米","东西"]
[13,"齐洞月塘村六巷","Qídòng Yuètángcūn 6 Xiàng","东起：月塘村六巷\n南至：月塘村巷尾","67米","2.4米","东西"]
[14,"齐洞二间村一巷","Qídòng Èrjiāncūn 1 Xiàng","北起：二间村村前乡道\n南至：二间村村后乡道","96米","2.4米","南北"]
[15,"齐洞二间村二巷","Qídòng Èrjiāncūn 2 Xiàng","北起：二间村村前乡道\n南至：二间村村后乡道","96米","2.4米","南北"]
[16,"齐洞二间村三巷","Qídòng Èrjiāncūn 3 Xiàng","北起：二间村村前乡道\n南至：二间村村后乡道","96米","2.4米","南北"]
[17,"齐洞二间村四巷","Qídòng Èrjiāncūn 4 Xiàng","北起：二间村村前乡道\n南至：二间村村后乡道","96米","2.4米","南北"]
[18,"齐洞二间村五巷","Qídòng Èrjiāncūn 5 Xiàng","北起：二间村村前乡道\n南至：二间村村后乡道","96米","2.4米","南北"]
[19,"齐洞二间村六巷","Qídòng Èrjiāncūn 6 Xiàng","北起：二间村村前乡道\n南至：二间村村后乡道","96米","2.4米","南北"]
[20,"齐洞二间村七巷","Qídòng Èrjiāncūn 7 Xiàng","北起：二间村村前乡道\n南至：二间村村后乡道","96米","2.4米","南北"]
[21,"齐洞二间村八巷","Qídòng Èrjiāncūn 8 Xiàng","北起：二间村村前乡道\n南至：二间村村后乡道","96米","2.4米","南北"]
[22,"齐洞二间村九巷","Qídòng Èrjiāncūn 9 Xiàng","北起：二间村村前乡道\n南至：二间村村后乡道","96米","2.4米","南北"]
[23,"齐洞二间村十巷","Qídòng Èrjiāncūn 10 Xiàng","北起：二间村村前乡道\n南至：二间村村后乡道","96米","2.4米","南北"]
[24,"齐洞二间村十一巷","Qídòng Èrjiāncūn 11 Xiàng","北起：二间村村前乡道\n南至：二间村村后乡道","96米","2.4米","南北"]
[25,"五间村一巷","Wǔjiāncūn 1 Xiàng","西起：五间村一巷1号\n东至：五间村十七巷1号","50米","2.4米","南北"]
[26,"五间村二巷","Wǔjiāncūn 2 Xiàng","西起：五间村二巷1号\n东至：五间村十七巷1号","50米","2.4米","南北"]
[27,"五间村三巷","Wǔjiāncūn 3 Xiàng","西起：五间村二巷1号\n东至：五间村十七巷1号","50米","2.4米","南北"]
[28,"五间村四巷","Wǔjiāncūn 4 Xiàng","西起：五间村四巷1号\n东至：五间村十七巷1号","50米","2.4米","南北"]
[29,"五间村五巷","Wǔjiāncūn 5 Xiàng","西起：五间村五巷1号\n东至：五间村十七巷1号","50米","2.4米","南北"]
[30,"五间村六巷","Wǔjiāncūn 6 Xiàng","西起：五间村六巷1号\n东至：五间村十七巷1号","50米","2.4米","南北"]
[31,"五间村七巷","Wǔjiāncūn 7 Xiàng","西起：五间村七巷1号\n东至：五间村十七巷1号","50米","2.4米","南北"]
[32,"五间村八巷","Wǔjiāncūn 8 Xiàng","西起：五间村八巷1号\n东至：五间村十七巷1号","50米","2.4米","南北"]
[33,"五间村九巷","Wǔjiāncūn 9 Xiàng","西起：五间村九巷1号\n东至：五间村十七巷1号","50米","2.4米","南北"]
[34,"五间村十巷","Wǔjiāncūn 10 Xiàng","西起：五间村十巷1号\n东至：五间村十七巷1号","50米","2.4米","南北"]
[35,"五间村十一巷","Wǔjiāncūn 11 Xiàng","西起：五间村十一巷1号\n东至：五间村十七巷1号","50米","2.4米","南北"]
[36,"五间村十二巷","Wǔjiāncūn 12 Xiàng","西起：五间村十二巷1号\n东至：五间村十七巷1号","50米","2.4米","南北"]
[37,"五间村十三巷","Wǔjiāncūn 13 Xiàng","西起：五间村十三巷1号\n东至：五间村十七巷1号","50米","2.4米","南北"]
[38,"五间村十四巷","Wǔjiāncūn 14 Xiàng","西起：五间村十四巷1号\n东至：五间村十七巷1号","50米","2.4米","南北"]
[39,"五间村十五巷","Wǔjiāncūn 15 Xiàng","西起：五间村十五巷1号\n东至：五间村十七巷1号","50米","2.4米","南北"]
[40,"五间村十六巷","Wǔjiāncūn 16 Xiàng","西起：五间村十六巷1号\n东至：五间村十七巷1号","50米","2.4米","南北"]
[41,"五间村十七巷","Wǔjiāncūn 17 Xiàng","东起：五间村十七巷1号\n西至：五间村一巷1号","50米","2.4米","南北"]
[]
["9、桥联村（15条）"]
["序号","道路名称","汉语拼音","位置描述","基本参数",null,"走向"]
[{"$nulls":4},"长","宽"]
[1,"桥联聚龙村一巷","Qiáolián Jùlóngcūn 1 Xiàng","南起：聚龙村一巷1号         北至：聚龙村一巷12号","50米","1.5米","南北"]
[2,"桥联聚龙村二巷","Qiáolián Jùlóngcūn 2 Xiàng","南起：聚龙村二巷1号         北至：聚龙村二巷12号","50米","1.5米","南北"]
[3,"桥联聚龙村三巷","Qiáolián Jùlóngcūn 3 Xiàng","南起：聚龙村三巷1号         北至：聚龙村三巷12号","50米","1.5米","南北"]
[4,"桥联聚龙村四巷","Qiáolián Jùlóngcūn 4 Xiàng","南起：聚龙村四巷1号         北至：聚龙村四巷14号","50米","1.5米","南北"]
[5,"桥联聚龙村五巷","Qiáolián Jùlóngcūn 5 Xiàng","南起：聚龙村五巷1号         北至：聚龙村五巷14号","50米","1.5米","南北"]
[6,"桥联聚龙村六巷","Qiáolián Jùlóngcūn 6 Xiàng","南起：聚龙村六巷1号         北至：聚龙村六巷14号","50米","1.5米","南北"]
[7,"桥联聚龙村七巷","Qiáolián Jùlóngcūn 7 Xiàng","南起：聚龙村七巷1号         北至：聚龙村七巷12号","50米","1.5米","南北"]
[8,"桥联聚龙村八巷","Qiáolián Jùlóngcūn 8 Xiàng","南起：聚龙村八巷1号         北至：聚龙村八巷16号","50米","1.5米","南北"]
[9,"桥联聚龙村九巷","Qiáolián Jùlóngcūn 9 Xiàng","南起：聚龙村九巷1号         北至：聚龙村九巷14号","50米","1.5米","南北"]
[10,"桥联聚龙村十巷","Qiáolián Jùlóngcūn 10 Xiàng","南起：聚龙村十巷1号         北至：聚龙村一巷14号","50米","1.5米","南北"]
[11,"桥联聚龙村十一巷","Qiáolián Jùlóngcūn 11 Xiàng","南起：聚龙村一巷1号         北至：聚龙村一巷12号","100米","2米","南北"]
[12,"桥联聚龙村十二巷","Qiáolián Jùlóngcūn 12 Xiàng","南起：聚龙村一巷1号         北至：聚龙村一巷12号","100米","2米","南北"]
[13,"桥联聚龙村十三巷","Qiáolián Jùlóngcūn 13 Xiàng","南起：聚龙村一巷1号         北至：聚龙村一巷14号","100米","2米","南北"]
[14,"桥联聚龙村十四巷","Qiáolián Jùlóngcūn 14 Xiàng","南起：聚龙村一巷1号         北至：聚龙村一巷18号","100米","2米","南北"]
[15,"桥联聚龙村十五巷","Qiáolián Jùlóngcūn 15 Xiàng","南起：聚龙村一巷1号         北至：聚龙村一巷18号","100米","2米","南北"]
[]
["10、桥新村（68条）"]
["序号","道路名称","汉语拼音","位置描述","基本参数",null,"走向"]
[{"$nulls":4},"长","宽"]
[1,"桥新村一巷","Qiáoxīncūn 1 Xiàng","南起：桥新村一巷9号，                              北至：桥新村一巷18号     ",{"$f":"10*5+0.5","v":50.5},1.2,"南北"]
[2,"桥新村二巷","Qiáoxīncūn 2 Xiàng","南起：桥新村二巷7号，                      北至：桥新村二巷18号     ",{"$f":"10*6+0.5*2","v":61},1.2,"南北"]
[3,"桥新村三巷","Qiáoxīncūn 3 Xiàng","南起：桥新村三巷3号，                              北至：桥新村三巷18号     ",{"$f":"10*7+0.5*3","v":71.5},1.2,"南北"]
[4,"桥新村四巷","Qiáoxīncūn 4 Xiàng","南起：桥新村四巷1号，                   北至：桥新村四巷19号     ",{"$f":"10*10+0.5*3-5","v":96.5},1.2,"南北"]
[5,"桥新村五巷","Qiáoxīncūn 5 Xiàng","南起：桥新村五巷1号，                   北至：桥新村五巷20号     ",{"$f":"10*10+0.5*3","v":101.5},1.2,"南北"]
[6,"桥新村六巷","Qiáoxīncūn 6 Xiàng","南起：桥新村六巷1号，                   北至：桥新村六巷20号     ",{"$f":"10*11+0.5","v":110.5},1.2,"南北"]
[7,"桥新村七巷","Qiáoxīncūn 7 Xiàng","南起：桥新村七巷1号，                   北至：桥新村七巷21号     ",{"$f":"10*11+0.5","v":110.5},1.2,"南北"]
[8,"桥新村八巷","Qiáoxīncūn 8 Xiàng","南起：桥新村八巷1号，                   北至：桥新村八巷28号     ",{"$f":"10*14+0.5*5","v":142.5},1.2,"南北"]
[9,"桥新村九巷","Qiáoxīncūn 9 Xiàng","南起：桥新村九巷1号，                  北至：桥新村九巷31号     ",{"$f":"10*15+6*0.5","v":153},1.2,"南北"]
[10,"桥新村十巷","Qiáoxīncūn 10 Xiàng","南起：桥新村十巷3号，                   北至：桥新村十巷25号     ",{"$f":"10*12+0.5*3","v":121.5},1.2,"南北"]
[11,"桥新村十一巷","Qiáoxīncūn 11 Xiàng","南起：桥新村十一巷3号，                   北至：桥新村十一巷32号     ",{"$f":"10*15+0.5*3","v":151.5},1.2,"南北"]
[12,"桥新村十二巷","Qiáoxīncūn 12 Xiàng","南起：桥新村十二巷3号，                   北至：桥新村十二巷32号     ",{"$f":"14*10+0.5*7","v":143.5},1.2,"南北"]
[13,"桥新村十三巷","Qiáoxīncūn 13 Xiàng","南起：桥新村十三巷3号，                   北至：桥新村十三巷33号     ",{"$f":"15*10+8*0.5","v":154},1.2,"南北"]
[14,"桥新村十四巷","Qiáoxīncūn 14 Xiàng","南起：桥新村十四巷1号，                   北至：桥新村十四巷37号     ",{"$f":"10*18+0.5*10","v":185},1.2,"南北"]
[15,"桥新村十五巷","Qiáoxīncūn 15 Xiàng","南起：桥新村十五巷1号，                   北至：桥新村十五巷35号     ",{"$f":"10*17+0.5*9","v":174.5},1.2,"南北"]
[16,"桥新村十六巷","Qiáoxīncūn 16 Xiàng","南起：桥新村十六巷1号，                   北至：桥新村十六巷35号     ",{"$f":"10*17+0.5*9","v":174.5},1.2,"南北"]
[17,"桥新村十七巷","Qiáoxīncūn 17 Xiàng","南起：桥新村十七巷3号，                   北至：桥新村十七巷29号     ",{"$f":"10*15+0.5*6","v":153},1.2,"南北"]
[18,"桥新村十八巷","Qiáoxīncūn 18 Xiàng","南起：桥新村十八巷3号，                   北至：桥新村十八巷38号     ",185,1.2,"南北"]
[19,"桥新村十九巷","Qiáoxīncūn 19 Xiàng","南起：桥新村十九巷11号，                   北至：桥新村十九巷22号     ",{"$f":"10*5+0.5*2","v":51},1.2,"南北"]
[20,"桥新村东二巷","Qiáoxīncūn Dōng 2 Xiàng","西起：桥新村东二巷11号，                      东至：桥新村东二巷11号     ",10,1.2,"西东"]
[21,"桥新村西二巷","Qiáoxīncūn Xī 2 Xiàng","西起：桥新村西二巷1号，                       东至：桥新村西二巷1号     ",10,1.2,"西东"]
[22,"桥新村新五巷","Qiáoxīncūn Xīn 5 Xiàng","南起：桥新村新五巷9号，                       北至：桥新村新五巷9号     ",10,1,"南北"]
[23,"桥新沙湾村一巷","Qiáoxīn Shāwāncūn 1 Xiàng","南起：沙湾村一巷1号，                              北至：沙湾村一巷9号     ",{"$f":"4*5+1.5*4","v":26},1.5,"南北"]
[24,"桥新沙湾村二巷","Qiáoxīn Shāwāncūn 2 Xiàng","南起：沙湾村二巷1号，                      北至：沙湾村二巷9号     ",{"$f":"4*5+1.5*4","v":26},1.5,"南北"]
[25,"桥新沙湾村三巷","Qiáoxīn Shāwāncūn 3 Xiàng","南起：沙湾村三巷1号，                              北至：沙湾村三巷15号     ",{"$f":"10*8+1.5*7","v":90.5},1.5,"南北"]
[26,"桥新沙湾村四巷","Qiáoxīn Shāwāncūn 4 Xiàng","南起：沙湾村四巷1号，                   北至：沙湾村四巷13号     ",{"$f":"10*7+1.5*6","v":79},1.5,"南北"]
[27,"桥新沙湾村五巷","Qiáoxīn Shāwāncūn 5 Xiàng","南起：沙湾村五巷1号，                   北至：沙湾村五巷13号     ",{"$f":"10*7+1.5*6","v":79},1.5,"南北"]
[28,"桥新沙湾村六巷","Qiáoxīn Shāwāncūn 6 Xiàng","南起：沙湾村六巷1号，                   北至：沙湾村六巷7号     ",{"$f":"10*4+1.5*3","v":44.5},1.5,"南北"]
[29,"桥新沙湾村七巷","Qiáoxīn Shāwāncūn 7 Xiàng","南起：沙湾村七巷1号，                   北至：沙湾村七巷9号     ",{"$f":"10*5+1.5*4","v":56},1.5,"南北"]
[30,"桥新沙湾村八巷","Qiáoxīn Shāwāncūn 8 Xiàng","南起：沙湾村八巷1号，                   北至：沙湾村八巷7号     ",{"$f":"10*4+3*1.5","v":44.5},1.5,"南北"]
[31,"桥新沙湾村九巷","Qiáoxīn Shāwāncūn 9 Xiàng","南起：沙湾村九巷1号，                  北至：沙湾村九巷5号     ",{"$f":"10*3+2*1.5","v":33},1.5,"南北"]
[32,"桥新沙湾村十巷","Qiáoxīn Shāwāncūn 10 Xiàng","南起：沙湾村十巷1号，                   北至：沙湾村十巷5号     ",{"$f":"10*3+2*1.5","v":33},1.5,"南北"]
[33,"桥新沙湾村十一巷","Qiáoxīn Shāwāncūn 11 Xiàng","南起：沙湾村十一巷1号，                   北至：沙湾村十一巷3号     ",{"$f":"10*2+1.5","v":21.5},1.5,"南北"]
[34,"竹林村横一巷","Zhúlíncūn Héng 1 Xiàng","南起：竹林村横一巷5号，                       北至：竹林村横一巷10号     ",{"$f":"4*10+1","v":41},1,"南北"]
[35,"竹林村横二巷","Zhúlíncūn Héng 2 Xiàng","南起：竹林村横二巷1号，                       北至：竹林村横二巷10号     ",{"$f":"5*10+2","v":52},1,"南北"]
[36,"竹林村横三巷","Zhúlíncūn Héng 3 Xiàng","南起：竹林村横三巷1号，                       北至：竹林村横三巷11号     ",{"$f":"6*10+2","v":62},1,"南北"]
[37,"竹林村横四巷","Zhúlíncūn Héng 4 Xiàng","南起：竹林村横四巷1号，                       北至：竹林村横四巷12号     ",{"$f":"7*10+2","v":72},1.5,"南北"]
[38,"竹林村横五巷","Zhúlíncūn Héng 5 Xiàng","南起：竹林村横五巷1号，                       北至：竹林村横五巷14号     ",{"$f":"7*10+2","v":72},1,"南北"]
[39,"竹林村横六巷","Zhúlíncūn Héng 6 Xiàng","南起：竹林村横六巷1号，                       北至：竹林村横六巷16号     ",{"$f":"8*10+2","v":82},1,"南北"]
[40,"竹林村横七巷","Zhúlíncūn Héng 7 Xiàng","南起：竹林村横七巷1号，                       北至：竹林村横七巷10号     ",{"$f":"5*10+1","v":51},1,"南北"]
[41,"竹林村南一巷","Zhúlíncūn Nán 1 Xiàng","西起：竹林村南一巷3号，                       北至：竹林村南一巷26号     ",{"$f":"12*10","v":120},1,"西北"]
[42,"竹林村南二巷","Zhúlíncūn Nán 2 Xiàng","西起：竹林村南二巷3号，                       北至：竹林村南二巷26号     ",120,1,"西北"]
[43,"竹林村南三巷","Zhúlíncūn Nán 3 Xiàng","西起：竹林村南三巷3号，                       北至：竹林村南三巷26号     ",120,1,"西北"]
[44,"竹林村南四巷","Zhúlíncūn Nán 4 Xiàng","西起：竹林村南四巷3号，                       北至：竹林村南四巷25号     ",120,1,"西北"]
[45,"竹林村南五巷","Zhúlíncūn Nán 5 Xiàng","西起：竹林村南五巷1号，                       北至：竹林村南五巷25号     ",{"$f":"13*10","v":130},1,"西北"]
[46,"竹林村南六巷","Zhúlíncūn Nán 6 Xiàng","西起：竹林村南六巷1号，                       北至：竹林村南六巷16号     ",80,1,"西北"]
[47,"竹林村南七巷","Zhúlíncūn Nán 7 Xiàng","西起：竹林村南七巷1号，                       北至：竹林村南七巷6号     ",40,1,"西北"]
[48,"竹林村南八巷","Zhúlíncūn Nán 8 Xiàng","西起：竹林村南八巷1号，                       北至：竹林村南八巷6号     ",40,1,"西北"]
[49,"竹林村南九巷","Zhúlíncūn Nán 9 Xiàng","西起：竹林村南九巷1号，                       北至：竹林村南九巷4号     ",20,1,"西北"]
[50,"竹林村南十巷","Zhúlíncūn Nán 10 Xiàng","西起：竹林村南十巷1号，                       北至：竹林村南十巷7号     ",30,1,"西北"]
[51,"竹林村南十一巷","Zhúlíncūn Nán 11 Xiàng","西起：竹林村南十一巷1号，                       北至：竹林村南十一巷4号     ",20,1,"西北"]
[52,"竹林村西北一巷","Zhúlíncūn Xīběi 1 Xiàng","西起：竹林村西北一巷1号，                       北至：竹林村西北一巷5号     ",{"$f":"10*3+0.5","v":30.5},1,"西北"]
[53,"竹林村西北二巷","Zhúlíncūn Xīběi 2 Xiàng","西起：竹林村西北二巷1号，                       北至：竹林村西北二巷5号     ",{"$f":"10*3+0.5","v":30.5},1,"西北"]
[54,"竹林村西北三巷","Zhúlíncūn Xīběi 3 Xiàng","西起：竹林村西北三巷1号，                       北至：竹林村西北三巷2号     ",10,1,"西北"]
[55,"竹林村西北五巷","Zhúlíncūn Xīběi 5 Xiàng","西起：竹林村西北五巷1号，                       北至：竹林村西北五巷3号     ",{"$f":"10*2+0.5","v":20.5},1,"西北"]
[56,"竹林村西北六巷","Zhúlíncūn Xīběi 6 Xiàng","西起：竹林村西北六巷1号，                       北至：竹林村西北六巷1号     ",10,1,"西北"]
[57,"竹林村西南一巷","Zhúlíncūn Xīnán 1 Xiàng","西起：竹林村西南一巷1号，                       南至：竹林村西南一巷2号     ",20,1,"西南"]
[58,"竹林村西南二巷","Zhúlíncūn Xīnán 2 Xiàng","西起：竹林村西南二巷1号，                       南至：竹林村西南二巷7号     ",30,1,"西南"]
[59,"竹林村西南三巷","Zhúlíncūn Xīnán 3 Xiàng","西起：竹林村西南三巷1号，                       南至：竹林村西南三巷10号     ",{"$f":"5*10","v":50},1,"西南"]
[60,"竹林村西南四巷","Zhúlíncūn Xīnán 4 Xiàng","西起：竹林村西南四巷1号，                       南至：竹林村西南四巷11号     ",{"$f":"6*10+2","v":62},1,"西南"]
[61,"竹林村西南五巷","Zhúlíncūn Xīnán 5 Xiàng","西起：竹林村西南五巷1号，                       南至：竹林村西南五巷10号     ",50,1,"西南"]
[62,"竹林村西南六巷","Zhúlíncūn Xīnán 6 Xiàng","西起：竹林村西南六巷1号，                       南至：竹林村西南六巷10号     ",51,1,"西南"]
[63,"竹林村西南七巷","Zhúlíncūn Xīnán 7 Xiàng","西起：竹林村西南七巷2号，                       南至：竹林村西南七巷10号     ",51,1,"西南"]
[64,"卓山村一巷","Zhuóshāncūn 1 Xiàng","南起：卓山村一巷1号，                              北至：卓山村一巷16号     ",{"$f":"8*8+0.5*7","v":67.5},1.2,"南北"]
[65,"卓山村二巷","Zhuóshāncūn 2 Xiàng","南起：卓山村二巷1号，                      北至：卓山村二巷16号     ",{"$f":"8*7+0.5*6","v":59},1.2,"南北"]
[66,"卓山村三巷","Zhuóshāncūn 3 Xiàng","南起：卓山村三巷1号，                              北至：卓山村三巷16号     ",{"$f":"8*8+0.5*7-1","v":66.5},1.2,"南北"]
[67,"卓山村四巷","Zhuóshāncūn 4 Xiàng","南起：卓山村四巷1号，                   北至：卓山村四巷16号     ",59,1.2,"南北"]
[68,"卓山村五巷","Zhuóshāncūn 5 Xiàng","南起：卓山村五巷1号，                   北至：卓山村五巷16号     ",59,1.2,"南北"]
[]
["11、胜桥村（88条）"]
["序号","道路名称","汉语拼音","位置描述","基本参数",null,"走向"]
[{"$nulls":4},"长","宽"]
[1,"北桥村一巷","Běiqiáocūn 1 Xiàng","南起：北桥村一巷1号\n北至：北桥村一巷9号","60米","2米","南北"]
[2,"北桥村二巷","Běiqiáocūn 2 Xiàng","南起：北桥村二巷1号\n北至：北桥村二巷10号","60米","2米","南北"]
[3,"北桥村三巷","Běiqiáocūn 3 Xiàng","南起：北桥村三巷1号\n北至：北桥村三巷13号","72米","2米","南北"]
[4,"北桥村四巷","Běiqiáocūn 4 Xiàng","南起：北桥村四巷1号\n北至：北桥村四巷15号","84米","2米","南北"]
[5,"北桥村五巷","Běiqiáocūn 5 Xiàng","南起：北桥村五巷1号\n北至：北桥村五巷16号","94米","2米","南北"]
[6,"北桥村六巷","Běiqiáocūn 6 Xiàng","南起：北桥村六巷1号\n北至：北桥村六巷12号","94米","2米","南北"]
[7,"北桥村七巷","Běiqiáocūn 7 Xiàng","南起：北桥村七巷1号\n北至：北桥村七巷10号","60米","2米","南北"]
[8,"北桥村八巷","Běiqiáocūn 8 Xiàng","南起：北桥村八巷1号\n北至：北桥村八巷10号","60米","2米","南北"]
[9,"北桥村九巷","Běiqiáocūn 9 Xiàng","南起：北桥村九巷1号\n北至：北桥村九巷2号","25米","2米","南北"]
[10,"成冈村一巷","Chénggāngcūn 1 Xiàng","南起：成冈村一巷1号\n北至：成冈村一巷15号","95米","2米","南北"]
[11,"成冈村二巷","Chénggāngcūn 2 Xiàng","南起：成冈村二巷1号\n北至：成冈村二巷13号","95米","2米","南北"]
[12,"成冈村三巷","Chénggāngcūn 3 Xiàng","南起：成冈村三巷1号\n北至：成冈村三巷15号","95米","2米","南北"]
[13,"成冈村四巷","Chénggāngcūn 4 Xiàng","南起：成冈村四巷3号\n北至：成冈村四巷15号","95米","2米","南北"]
[14,"成冈村五巷","Chénggāngcūn 5 Xiàng","南起：成冈村五巷1号\n北至：成冈村五巷15号","95米","2米","南北"]
[15,"成冈村六巷","Chénggāngcūn 6 Xiàng","南起：成冈村六巷3号\n北至：成冈村六巷15号","95米","2米","南北"]
[16,"成冈村七巷","Chénggāngcūn 7 Xiàng","南起：成冈村七巷5号\n北至：成冈村七巷13号","95米","2米","南北"]
[17,"成冈村八巷","Chénggāngcūn 8 Xiàng","南起：成冈村八巷1号\n北至：成冈村八巷13号","95米","2米","南北"]
[18,"成冈村九巷","Chénggāngcūn 9 Xiàng","南起：成冈村九巷7号\n北至：成冈村九巷13号","95米","2米","南北"]
[19,"成冈村十巷","Chénggāngcūn 10 Xiàng","南起：成冈村十巷6号\n北至：成冈村十巷14号","95米","2米","南北"]
[20,"成冈村十一巷","Chénggāngcūn 11 Xiàng","南起：成冈村十一巷5号\n北至：成冈村十一巷15号","95米","2米","南北"]
[21,"成冈村十二巷","Chénggāngcūn 12 Xiàng","南起：成冈村十二巷3号\n北至：成冈村十二巷11号","95米","2米","南北"]
[22,"成冈村十三巷","Chénggāngcūn 13 Xiàng","南起：成冈村十三巷3号\n北至：成冈村十三巷15号","95米","2米","南北"]
[23,"成冈村十四巷","Chénggāngcūn 14 Xiàng","南起：成冈村十四巷1号\n北至：成冈村十四巷14号","95米","2米","南北"]
[24,"成冈村十五巷","Chénggāngcūn 15 Xiàng","南起：成冈村十五巷1号\n北至：成冈村十五巷15号","95米","2米","南北"]
[25,"成冈村十六巷","Chénggāngcūn 16 Xiàng","南起：成冈村十六巷1号\n北至：成冈村十六巷13号","95米","2米","南北"]
[26,"成冈村十七巷","Chénggāngcūn 17 Xiàng","南起：成冈村十七巷1号\n北至：成冈村十七巷16号","95米","2米","南北"]
[27,"成冈村十八巷","Chénggāngcūn 18 Xiàng","南起：成冈村十八巷1号\n北至：成冈村十八巷2号","95米","2米","南北"]
[28,"罗桥村一巷","Luóqiáocūn 1 Xiàng","南起：罗桥村一巷1号\n北至：罗桥村一巷4号","68米","1.8米","南北"]
[29,"罗桥村二巷","Luóqiáocūn 2 Xiàng","南起：罗桥村二巷1号\n北至：罗桥村二巷10号","80米","1.8米","南北"]
[30,"罗桥村三巷","Luóqiáocūn 3 Xiàng","南起：罗桥村三巷1号\n北至：罗桥村三巷10号","66米","1.8米","南北"]
[31,"罗桥村四巷","Luóqiáocūn 4 Xiàng","南起：罗桥村四巷1号\n北至：罗桥村四巷10号","66米","1.8米","南北"]
[32,"罗桥村五巷","Luóqiáocūn 5 Xiàng","南起：罗桥村五巷1号\n北至：罗桥村五巷9号","66米","1.8米","南北"]
[33,"罗桥村六巷","Luóqiáocūn 6 Xiàng","南起：罗桥村六巷1号\n北至：罗桥村六巷8号","54米","1.8米","南北"]
[34,"罗桥村七巷","Luóqiáocūn 7 Xiàng","南起：罗桥村七巷1号\n北至：罗桥村七巷8号","74米","1.8米","南北"]
[35,"罗桥村八巷","Luóqiáocūn 8 Xiàng","南起：罗桥村八巷1号\n北至：罗桥村八巷12号","74米","1.8米","南北"]
[36,"上桥村一巷","Shàngqiáocun 1 Xiàng","西起：上桥村一巷2号\n东至：上桥村一巷17号","46米","2米","西东"]
[37,"上桥村二巷","Shàngqiáocun 2 Xiàng","西起：上桥村二巷2号\n东至：上桥村二巷18号","102米","2米","西东"]
[38,"上桥村三巷","Shàngqiáocun 3 Xiàng","西起：上桥村三巷1号\n东至：上桥村三巷19号","104米","2米","西东"]
[39,"上桥村四巷","Shàngqiáocun 4 Xiàng","西起：上桥村四巷1号\n东至：上桥村四巷22号","111米","2米","西东"]
[40,"上桥村五巷","Shàngqiáocun 5 Xiàng","西起：上桥村五巷1号\n东至：上桥村五巷17号","115米","2米","西东"]
[41,"上桥村六巷","Shàngqiáocun 6 Xiàng","西起：上桥村六巷1号\n东至：上桥村六巷24号","116米","2米","西东"]
[42,"上桥村七巷","Shàngqiáocun 7 Xiàng","西起：上桥村七巷3号\n东至：上桥村七巷23号","113米","2米","西东"]
[43,"上桥村八巷","Shàngqiáocun 8 Xiàng","西起：上桥村八巷1号\n东至：上桥村八巷23号","117米","2米","西东"]
[44,"上桥村九巷","Shàngqiáocun 9 Xiàng","西起：上桥村九巷2号\n东至：上桥村九巷22号","112米","2米","西东"]
[45,"上桥村十巷","Shàngqiáocun 10 Xiàng","西起：上桥村十巷1号\n东至：上桥村十巷21号","107米","2米","西东"]
[46,"上桥村十一巷","Shàngqiáocun 11 Xiàng","西起：上桥村十一巷2号\n东至：上桥村十一巷8号","95米","2米","西东"]
[47,"上桥村十二巷","Shàngqiáocun 12 Xiàng","西起：上桥村十二巷4号\n东至：上桥村十二巷6号","78米","2米","西东"]
[48,"上桥村十三巷","Shàngqiáocun 13 Xiàng","西起：上桥村十三巷1号\n东至：上桥村十三巷5号","30米","2米","西东"]
[49,"胜桥村一巷","Shèngqiáocūn 1 Xiàng","南起：胜桥村一巷1号\n北至：胜桥村一巷5号","110米","1.5米","南北"]
[50,"胜桥村二巷","Shèngqiáocūn 2 Xiàng","南起：胜桥村二巷1号\n北至：胜桥村二巷16号","113米","1.5米","南北"]
[51,"胜桥村三巷","Shèngqiáocūn 3 Xiàng","南起：胜桥村三巷1号\n北至：胜桥村三巷16号","95米","1.5米","南北"]
[52,"胜桥村四巷","Shèngqiáocūn 4 Xiàng","南起：胜桥村四巷1号\n北至：胜桥村四巷16号","95米","1.5米","南北"]
[53,"胜桥村五巷","Shèngqiáocūn 5 Xiàng","南起：胜桥村五巷1号\n北至：胜桥村五巷13号","98米","1.5米","南北"]
[54,"胜桥村六巷","Shèngqiáocūn 6 Xiàng","南起：胜桥村六巷1号\n北至：胜桥村六巷12号","63米","1.5米","南北"]
[55,"胜桥村七巷","Shèngqiáocūn 7 Xiàng","南起：胜桥村七巷1号\n北至：胜桥村七巷14号","88米","1.5米","南北"]
[56,"胜桥村八巷","Shèngqiáocūn 8 Xiàng","南起：胜桥村八巷1号\n北至：胜桥村八巷10号","83米","1.5米","南北"]
[57,"胜桥村九巷","Shèngqiáocūn 9 Xiàng","南起：胜桥村九巷1号\n北至：胜桥村九巷14号","75米","1.5米","南北"]
[58,"胜桥村十巷","Shèngqiáocūn 10 Xiàng","南起：胜桥村十巷1号\n北至：胜桥村十巷13号","74米","1.5米","南北"]
[59,"胜桥村十一巷","Shèngqiáocūn 11 Xiàng","南起：胜桥村十一巷1号\n北至：胜桥村十一巷12号","75米","1.5米","南北"]
[60,"胜桥村十二巷","Shèngqiáocūn 12 Xiàng","南起：胜桥村十二巷1号\n北至：胜桥村十二巷8号","61米","1.5米","南北"]
[61,"胜桥村十三巷","Shèngqiáocūn 13 Xiàng","南起：胜桥村十三巷1号\n北至：胜桥村十三巷8号","60米","1.5米","南北"]
[62,"胜桥村十四巷","Shèngqiáocūn 14 Xiàng","南起：胜桥村十四巷1号\n北至：胜桥村十四巷8号","45米","1.5米","南北"]
[63,"胜桥村十五巷","Shèngqiáocūn 15 Xiàng","南起：胜桥村十五巷1号\n北至：胜桥村十五巷11号","45米","1.5米","南北"]
[64,"胜桥村十六巷","Shèngqiáocūn 16 Xiàng","南起：胜桥村十六巷1号\n北至：胜桥村十六巷12号","32米","1.5米","南北"]
[65,"胜桥村十七巷","Shèngqiáocūn 17 Xiàng","南起：胜桥村十七巷1号\n北至：胜桥村十七巷7号","19米","1.5米","南北"]
[66,"胜桥村十八巷","Shèngqiáocūn 18 Xiàng","南起：胜桥村十八巷1号\n北至：胜桥村十八巷12号","49米","1.5米","南北"]
[67,"胜桥村十九巷","Shèngqiáocūn 19 Xiàng","南起：胜桥村十九巷1号\n北至：胜桥村十九巷14号","60米","1.5米","南北"]
[68,"胜桥村二十巷","Shèngqiáocūn 20 Xiàng","南起：胜桥村二十巷1号\n北至：胜桥村二十巷13号","72米","1.5米","南北"]
[69,"胜桥村二十一巷","Shèngqiáocūn 21 Xiàng","南起：胜桥村二十一巷1号\n北至：胜桥村二十一巷16号","72米","1.5米","南北"]
[70,"胜桥村二十二巷","Shèngqiáocūn 22 Xiàng","南起：胜桥村二十二巷1号\n北至：胜桥村二十二巷16号","83米","1.5米","南北"]
[71,"胜桥村二十三巷","Shèngqiáocūn 23 Xiàng","南起：胜桥村二十三巷1号\n北至：胜桥村二十三巷20号","83米","1.5米","南北"]
[72,"胜桥村二十四巷","Shèngqiáocūn 24 Xiàng","南起：胜桥村二十四巷1号\n北至：胜桥村二十四巷14号","137米","1.5米","南北"]
[73,"胜桥桃园村一巷","Shèngqiáo Táoyuáncūn 1 Xiàng","南起：桃园村一巷1号\n北至：桃园村一巷10号","60米","2米","南北"]
[74,"胜桥桃园村二巷","Shèngqiáo Táoyuáncūn 2 Xiàng","南起：桃园村二巷1号\n北至：桃园村二巷14号","61米","2米","南北"]
[75,"胜桥桃园村三巷","Shèngqiáo Táoyuáncūn 3 Xiàng","南起：桃园村三巷2号\n北至：桃园村三巷14号","87米","2米","南北"]
[76,"胜桥桃园村四巷","Shèngqiáo Táoyuáncūn 4 Xiàng","南起：桃园村四巷1号\n北至：桃园村四巷16号","88米","2米","南北"]
[77,"胜桥桃园村五巷","Shèngqiáo Táoyuáncūn 5 Xiàng","南起：桃园村五巷1号\n北至：桃园村五巷16号","88米","2米","南北"]
[78,"胜桥桃园村六巷","Shèngqiáo Táoyuáncūn 6 Xiàng","南起：桃园村六巷2号\n北至：桃园村六巷15号","89米","2米","南北"]
[79,"胜桥桃园村七巷","Shèngqiáo Táoyuáncūn 7 Xiàng","南起：桃园村七巷1号\n北至：桃园村七巷16号","89米","2米","南北"]
[80,"胜桥桃园村八巷","Shèngqiáo Táoyuáncūn 8 Xiàng","南起：桃园村八巷1号\n北至：桃园村八巷16号","89米","2米","南北"]
[81,"胜桥桃园村九巷","Shèngqiáo Táoyuáncūn 9 Xiàng","南起：桃园村九巷1号\n北至：桃园村九巷16号","89米","2米","南北"]
[82,"胜桥桃园村十巷","Shèngqiáo Táoyuáncūn 10 Xiàng","南起：桃园村十巷1号\n北至：桃园村十巷13号","89米","2米","南北"]
[83,"胜桥桃园村十一巷","Shèngqiáo Táoyuáncūn 11 Xiàng","南起：桃园村十一巷1号\n北至：桃园村十一巷6号","38米","2米","南北"]
[84,"安桥村一巷","Anqiáocūn 1 Xiàng","南起：安桥村一巷1号\n北至：安桥村一巷11号","79米","1.5米","南北"]
[85,"安桥村二巷","Anqiáocūn 2 Xiàng","南起：安桥村二巷1号\n北至：安桥村二巷14号","79米","1.5米","南北"]
[86,"安桥村三巷","Anqiáocūn 3 Xiàng","南起：安桥村三巷1号\n北至：安桥村三巷12号","76米","1.5米","南北"]
[87,"安桥村四巷","Anqiáocūn 4 Xiàng","南起：安桥村四巷1号\n北至：安桥村四巷12号","65米","1.5米","南北"]
[88,"安桥村五巷","Anqiáocūn 5 Xiàng","南起：安桥村五巷1号\n北至：安桥村五巷16-2号","88米","1.5米","南北"]
[]
["12、棠安村（108条）"]
["序号","道路名称","汉语拼音","位置描述","基本参数",null,"走向"]
[{"$nulls":4},"长","宽"]
[1,"布移村一巷","Bùyícūn 1 Xiàng","南起：布移村一巷1号\n北至：布移村一巷4号","80米","2米","南北"]
[2,"布移村二巷","Bùyícūn 2 Xiàng","南起：布移村二巷5号\n北至：布移村二巷20号","80米","2米","南北"]
[3,"布移村三巷","Bùyícūn 3 Xiàng","南起：布移村三巷21号\n北至：布移村三巷30号","80米","2米","南北"]
[4,"布移村四巷","Bùyícūn 4 Xiàng","南起：布移村四巷31号\n北至：布移村四巷32号","65米","2米","南北"]
[5,"棠安沙溪村一巷","Táng'ān Shāxīcūn 1 Xiàng","西起：沙溪村一巷1号\n东至：沙溪村一巷7号","83米","2米","西东"]
[6,"棠安沙溪村二巷","Táng'ān Shāxīcūn 2 Xiàng","西起：沙溪村二巷1号\n东至：沙溪村二巷12号","83米","2米","西东"]
[7,"棠安沙溪村三巷","Táng'ān Shāxīcūn 3 Xiàng","西起：沙溪村三巷1号\n东至：沙溪村三巷10号","83米","2米","西东"]
[8,"棠安沙溪村四巷","Táng'ān Shāxīcūn 4 Xiàng","西起：沙溪村四巷1号\n东至：沙溪村四巷7号","83米","2米","西东"]
[9,"棠安联新村一巷","Táng'ān Liánxīncūn 1 Xiàng","东起：联新村一巷1号\n西至：联新村一巷9号","75米","2米","东西"]
[10,"棠安联新村二巷","Táng'ān Liánxīncūn 2 Xiàng","东起：联新村二巷1号\n西至：联新村二巷9号","75米","2米","东西"]
[11,"棠安联新村三巷","Táng'ān Liánxīncūn 3 Xiàng","东起：联新村三巷1号\n西至：联新村三巷18号","75米","2米","东西"]
[12,"棠安联新村四巷","Táng'ān Liánxīncūn 4 Xiàng","东起：联新村四巷1号\n西至：联新村四巷18号","75米","2米","东西"]
[13,"棠安联新村五巷","Táng'ān Liánxīncūn 5 Xiàng","东起：联新村五巷1号\n西至：联新村五巷18号","75米","2米","东西"]
[14,"棠安联新村六巷","Táng'ān Liánxīncūn 6 Xiàng","东起：联新村六巷1号\n西至：联新村六巷9号","75米","2米","东西"]
[15,"棠安联新村七巷","Táng'ān Liánxīncūn 7 Xiàng","东起：联新村七巷1号\n西至：联新村七巷9号","75米","2米","东西"]
[16,"棠安联新村八巷","Táng'ān Liánxīncūn 8 Xiàng","东起：联新村八巷1号\n西至：联新村八巷9号","75米","2米","东西"]
[17,"棠安联新村九巷","Táng'ān Liánxīncūn 9 Xiàng","东起：联新村九巷1号\n西至：联新村九巷9号","75米","2米","东西"]
[18,"棠安村一巷","Táng'āncūn 1 Xiàng","南起：棠安村一巷1号\n北至：棠安村一巷35号","117米","1.8米","南北"]
[19,"棠安村二巷","Táng'āncūn 2 Xiàng","南起：棠安村二巷1号\n北至：棠安村二巷22号","110米","1.8米","南北"]
[20,"棠安村三巷","Táng'āncūn 3 Xiàng","南起：棠安村三巷1号\n北至：棠安村三巷22号","110米","1.8米","南北"]
[21,"棠安村四巷","Táng'āncūn 4 Xiàng","南起：棠安村四巷1号\n北至：棠安村四巷22号","110米","1.8米","南北"]
[22,"棠安村五巷","Táng'āncūn 5 Xiàng","南起：棠安村五巷1号\n北至：棠安村五巷22号","110米","1.8米","南北"]
[23,"棠安村六巷","Táng'āncūn 6 Xiàng","南起：棠安村六巷1号\n北至：棠安村六巷22号","110米","1.8米","南北"]
[24,"棠安村七巷","Táng'āncūn 7 Xiàng","南起：棠安村七巷1号\n北至：棠安村七巷22号","110米","1.8米","南北"]
[25,"棠安村八巷","Táng'āncūn 8 Xiàng","南起：棠安村八巷1号\n北至：棠安村八巷22号","110米","1.8米","南北"]
[26,"棠安村九巷","Táng'āncūn 9 Xiàng","南起：棠安村九巷1号\n北至：棠安村九巷34号","110米","1.8米","南北"]
[27,"棠安村十巷","Táng'āncūn 10 Xiàng","南起：棠安村十巷1号\n北至：棠安村十巷20号","110米","1.8米","南北"]
[28,"棠安村十一巷","Táng'āncūn 11 Xiàng","南起：棠安村十一巷1号\n北至：棠安村十一巷35号","110米","1.8米","南北"]
[29,"棠安村十二巷","Táng'āncūn 12 Xiàng","南起：棠安村十二巷1号\n北至：棠安村十二巷22号","110米","1.8米","南北"]
[30,"棠安村十三巷","Táng'āncūn 13 Xiàng","南起：棠安村十三巷1号\n北至：棠安村十三巷22号","110米","1.8米","南北"]
[31,"棠安村十四巷","Táng'āncūn 14 Xiàng","南起：棠安村十四巷1号\n北至：棠安村十四巷22号","110米","1.8米","南北"]
[32,"棠安村十五巷","Táng'āncūn 15 Xiàng","南起：棠安村十五巷1号\n北至：棠安村十五巷22号","110米","1.8米","南北"]
[33,"棠安村十六巷","Táng'āncūn 16 Xiàng","南起：棠安村十六巷1号\n北至：棠安村十六巷22号","110米","1.8米","南北"]
[34,"棠安村十九巷","Táng'āncūn 19 Xiàng","南起：棠安村十九巷1号\n北至：棠安村十九巷6号","38米","1.8米","南北"]
[35,"棠安村二十一巷","Táng'āncūn 21 Xiàng","南起：棠安村二十一巷1号\n北至：棠安村二十一巷1号","15米","1.8米","南北"]
[36,"棠安东兴村一巷","Táng'ān Dōngxīngcūn 1 Xiàng","起：东兴村村前塘基\n至：东兴村村尾树林","55米","1.8米","南北"]
[37,"棠安东兴村二巷","Táng'ān Dōngxīngcūn 2 Xiàng","起：东兴村村前塘基\n至：东兴村村尾树林","55米","1.8米","南北"]
[38,"棠安东兴村三巷","Táng'ān Dōngxīngcūn 3 Xiàng","起：东兴村村前塘基\n至：东兴村村尾树林","35米","1.8米","南北"]
[39,"棠安东兴村四巷","Táng'ān Dōngxīngcūn 4 Xiàng","起：东兴村村前塘基\n至：东兴村村尾树林","35米","1.8米","南北"]
[40,"棠安东兴村五巷","Táng'ān Dōngxīngcūn 5 Xiàng","起：东兴村村前塘基\n至：东兴村村尾树林","25米","1.8米","南北"]
[41,"棠安东兴村六巷","Táng'ān Dōngxīngcūn 6 Xiàng","起：东兴村村前塘基\n至：东兴村村尾树林","25米","1.8米","南北"]
[42,"棠安东兴村七巷","Táng'ān Dōngxīngcūn 7 Xiàng","起：东兴村村前塘基\n至：东兴村村尾树林","20米","1.8米","南北"]
[43,"棠安东兴村八巷","Táng'ān Dōngxīngcūn 8 Xiàng","起：东兴村村前塘基\n至：东兴村村尾树林","20米","1.8米","南北"]
[44,"棠安东兴村九巷","Táng'ān Dōngxīngcūn 9 Xiàng","起：东兴村村前塘基\n至：东兴村村尾树林","20米","1.8米","南北"]
[45,"棠安东兴村十巷","Táng'ān Dōngxīngcūn 10 Xiàng","起：东兴村村前塘基\n至：东兴村村尾树林","20米","1.8米","南北"]
[46,"棠安东兴村十二巷","Táng'ān Dōngxīngcūn 12 Xiàng","起：东兴村村前塘基\n至：东兴村村尾树林","20米","1.8米","南北"]
[47,"棠安东兴村十三巷","Táng'ān Dōngxīngcūn 13 Xiàng","起：东兴村村前塘基\n至：东兴村村后后山","40米","1.8米","南北"]
[48,"棠安东兴村十五巷","Táng'ān Dōngxīngcūn 15 Xiàng","起：东兴村村前塘基\n至：东兴村村后后山","50米","1.8米","南北"]
[49,"棠安东兴村十六巷","Táng'ān Dōngxīngcūn 16 Xiàng","起：东兴村村前塘基\n至：东兴村村后后山","50米","1.8米","南北"]
[50,"棠安东兴村十七巷","Táng'ān Dōngxīngcūn 17 Xiàng","起：东兴村村前塘基\n至：东兴村村后后山","50米","1.8米","南北"]
[51,"棠安东兴村十八巷","Táng'ān Dōngxīngcūn 18 Xiàng","起：东兴村村前塘基\n至：东兴村村后后山","50米","1.8米","南北"]
[52,"棠安东兴村十九巷","Táng'ān Dōngxīngcūn 19 Xiàng","起：东兴村村前塘基\n至：东兴村村后后山","50米","1.8米","南北"]
[53,"棠安东兴村二十巷","Táng'ān Dōngxīngcūn 20 Xiàng","起：东兴村村前塘基\n至：东兴村村后后山","50米","1.8米","南北"]
[54,"棠安东兴村二十一巷","Táng'ān Dōngxīngcūn 21 Xiàng","起：东兴村村前塘基\n至：东兴村村后后山","50米","1.8米","南北"]
[55,"棠安东兴村二十二巷","Táng'ān Dōngxīngcūn 22 Xiàng","起：东兴村村前塘基\n至：东兴村村后后山","50米","1.8米","南北"]
[56,"棠安东兴村二十三巷","Táng'ān Dōngxīngcūn 23 Xiàng","起：东兴村村前塘基\n至：东兴村村后后山","15米","1.8米","南北"]
[57,"棠安新冈村一巷","Táng'ān Xīngāngcūn 1 Xiàng","南起：新冈村一巷1号\n北至：新冈村一巷8号","45米","2米","南北"]
[58,"棠安新冈村二巷","Táng'ān Xīngāngcūn 2 Xiàng","南起：新冈村二巷1号\n北至：新冈村二巷10号","55米","2米","南北"]
[59,"棠安新冈村三巷","Táng'ān Xīngāngcūn 3 Xiàng","南起：新冈村三巷1号\n北至：新冈村三巷10号","55米","2米","南北"]
[60,"棠安新冈村四巷","Táng'ān Xīngāngcūn 4 Xiàng","南起：新冈村四巷1号\n北至：新冈村四巷10号","55米","2米","南北"]
[61,"棠安新冈村五巷","Táng'ān Xīngāngcūn 5 Xiàng","南起：新冈村五巷1号\n北至：新冈村五巷10号","55米","2米","南北"]
[62,"棠安新冈村六巷","Táng'ān Xīngāngcūn 6 Xiàng","南起：新冈村六巷1号\n北至：新冈村六巷10号","55米","2米","南北"]
[63,"棠安新冈村七巷","Táng'ān Xīngāngcūn 7 Xiàng","南起：新冈村七巷1号\n北至：新冈村七巷10号","55米","2米","南北"]
[64,"棠安新冈村八巷","Táng'ān Xīngāngcūn 8 Xiàng","南起：新冈村八巷1号\n北至：新冈村八巷10号","55米","2米","南北"]
[65,"棠安新冈村九巷","Táng'ān Xīngāngcūn 9 Xiàng","南起：新冈村九巷1号\n北至：新冈村九巷10号","55米","2米","南北"]
[66,"棠安新冈村十巷","Táng'ān Xīngāngcūn 10 Xiàng","南起：新冈村十巷1号\n北至：新冈村十巷8号","45米","2米","南北"]
[67,"龙村村一巷","Lóngcūncūn 1 Xiàng","东起：龙村村一巷1号\n西至：龙村村一巷5号","60米","2米","东西"]
[68,"龙村村二巷","Lóngcūncūn 2 Xiàng","东起：龙村村二巷1号\n西至：龙村村二巷5号","60米","2米","东西"]
[69,"龙村村三巷","Lóngcūncūn 3 Xiàng","东起：龙村村三巷1号\n西至：龙村村三巷7号","75米","2米","东西"]
[70,"龙村村四巷","Lóngcūncūn 4 Xiàng","东起：龙村村四巷1号\n西至：龙村村四巷5号","75米","2米","东西"]
[71,"龙村村五巷","Lóngcūncūn 5 Xiàng","东起：龙村村五巷1号\n西至：龙村村五巷7号","75米","2米","东西"]
[72,"龙村村六巷","Lóngcūncūn 6 Xiàng","东起：龙村村六巷1号\n西至：龙村村六巷11号","75米","2米","东西"]
[73,"龙村村七巷","Lóngcūncūn 7 Xiàng","东起：龙村村七巷1号\n西至：龙村村七巷4号","75米","2米","东西"]
[74,"龙村村八巷","Lóngcūncūn 8 Xiàng","东起：龙村村八巷1号\n西至：龙村村八巷3号","30米","2米","东西"]
[75,"龙村村九巷","Lóngcūncūn 9 Xiàng","东起：龙村村九巷1号\n西至：龙村村九巷1号","30米","2米","东西"]
[76,"龙村村十巷","Lóngcūncūn 10 Xiàng","东起：龙村村十巷1号\n西至：龙村村十巷6号","60米","2米","东西"]
[77,"龙村村十一巷","Lóngcūncūn 11 Xiàng","东起：龙村村十一巷1号\n西至：龙村村十一巷5号","60米","2米","东西"]
[78,"龙村村十二巷","Lóngcūncūn 12 Xiàng","东起：龙村村十二巷1号\n西至：龙村村十二巷4号","60米","2米","东西"]
[79,"龙村村十三巷","Lóngcūncūn 13 Xiàng","东起：龙村村十三巷1号\n西至：龙村村十三巷8号","60米","2米","东西"]
[80,"龙村村十四巷","Lóngcūncūn 14 Xiàng","东起：龙村村十四巷1号\n西至：龙村村十四巷11号","60米","2米","东西"]
[81,"龙村村十五巷","Lóngcūncūn 15 Xiàng","东起：龙村村十五巷1号\n西至：龙村村十五巷5号","60米","2米","东西"]
[82,"桥康村一巷","Qiáokāngcūn 1 Xiàng","东起：桥康村一巷1号\n西至：桥康村一巷1号","10米","1.8米","东西"]
[83,"桥康村二巷","Qiáokāngcūn 2 Xiàng","东起：桥康村二巷1号\n西至：桥康村二巷3号","40米","1.8米","东西"]
[84,"桥康村三巷","Qiáokāngcūn 3 Xiàng","东起：桥康村三巷1号\n西至：桥康村三巷8号","75米","1.8米","东西"]
[85,"桥康村四巷","Qiáokāngcūn 4 Xiàng","东起：桥康村四巷1号\n西至：桥康村四巷12号","110米","1.8米","东西"]
[86,"桥康村五巷","Qiáokāngcūn 5 Xiàng","东起：桥康村五巷1号\n西至：桥康村五巷12号","110米","1.8米","东西"]
[87,"棠北村二巷","Tángběicūn 2 Xiàng","南起：棠北村二巷1号\n北至：棠北村二巷12号","96米","2米","南北"]
[88,"棠北村三巷","Tángběicūn 3 Xiàng","南起：棠北村三巷1号\n北至：棠北村三巷16号","96米","2米","南北"]
[89,"棠北村四巷","Tángběicūn 4 Xiàng","南起：棠北村四巷1号\n北至：棠北村四巷16号","96米","2米","南北"]
[90,"棠北村五巷","Tángběicūn 5 Xiàng","南起：棠北村五巷1号\n北至：棠北村五巷16号","96米","2米","南北"]
[91,"棠北村六巷","Tángběicūn 6 Xiàng","南起：棠北村六巷1号\n北至：棠北村六巷16号","96米","2米","南北"]
[92,"棠北村七巷","Tángběicūn 7 Xiàng","南起：棠北村七巷1号\n北至：棠北村七巷16号","96米","2米","南北"]
[93,"棠北村八巷","Tángběicūn 8 Xiàng","南起：棠北村八巷1号\n北至：棠北村八巷16号","96米","2米","南北"]
[94,"棠北村九巷","Tángběicūn 9 Xiàng","南起：棠北村九巷1号\n北至：棠北村九巷16号","96米","2米","南北"]
[95,"棠北村十巷","Tángběicūn 10 Xiàng","南起：棠北村十巷1号\n北至：棠北村十巷16号","96米","2米","南北"]
[96,"棠荣村一巷","Tángróngcūn 1 Xiàng","南起：棠荣村一巷1号\n北至：棠荣村一巷12号","63米","2米","南北"]
[97,"棠荣村二巷","Tángróngcūn 2 Xiàng","南起：棠荣村二巷1号\n北至：棠荣村二巷20号","106米","2米","南北"]
[98,"棠荣村三巷","Tángróngcūn 3 Xiàng","南起：棠荣村三巷1号\n北至：棠荣村三巷20号","106米","2米","南北"]
[99,"棠荣村四巷","Tángróngcūn 4 Xiàng","南起：棠荣村四巷1号\n北至：棠荣村四巷20号","106米","2米","南北"]
[100,"棠荣村五巷","Tángróngcūn 5 Xiàng","南起：棠荣村五巷1号\n北至：棠荣村五巷20号","106米","2米","南北"]
[101,"棠荣村六巷","Tángróngcūn 6 Xiàng","南起：棠荣村六巷1号\n北至：棠荣村六巷20号","106米","2米","南北"]
[102,"棠荣村七巷","Tángróngcūn 7 Xiàng","南起：棠荣村七巷1号\n北至：棠荣村七巷20号","106米","2米","南北"]
[103,"棠荣村八巷","Tángróngcūn 8 Xiàng","南起：棠荣村八巷1号\n北至：棠荣村八巷20号","106米","2米","南北"]
[104,"棠荣村九巷","Tángróngcūn 9 Xiàng","南起：棠荣村九巷1号\n北至：棠荣村九巷20号","106米","2米","南北"]
[105,"棠荣村十巷","Tángróngcūn 10 Xiàng","南起：棠荣村十巷1号\n北至：棠荣村十巷20号","106米","2米","南北"]
[106,"棠荣村十一巷","Tángróngcūn 11 Xiàng","南起：棠荣村十一巷1号\n北至：棠荣村十一巷22号","116米","2米","南北"]
[107,"棠荣村十二巷","Tángróngcūn 12 Xiàng","南起：棠荣村十二巷1号\n北至：棠荣村十二巷22号","116米","2米","南北"]
[108,"棠荣村十三巷","Tángróngcūn 13 Xiàng","南起：棠荣村十三巷1号\n北至：棠荣村十三巷20号","106米","2米","南北"]
[]
["13、棠红村（17条）"]
["序号","道路名称","汉语拼音","位置描述","基本参数",null,"走向"]
[{"$nulls":4},"长","宽"]
[1,"东沙村一巷","Dōngshācūn 1 Xiàng","西起：东沙村一巷1号\n东至：东沙村一巷7号","46.4米","2.1米","东西"]
[2,"东沙村二巷","Dōngshācūn 2 Xiàng","西起：东沙村二巷1号\n东至：东沙村二巷9号","58.4米","2.1米","东西"]
[3,"东沙村三巷","Dōngshācūn 3 Xiàng","西起：东沙村三巷1号\n东至：东沙村三巷9号","58.4米","2.1米","东西"]
[4,"东沙村四巷","Dōngshācūn 4 Xiàng","西起：东沙村四巷1号\n东至：东沙村四巷11号","70.4米","2.1米","东西"]
[5,"东沙村五巷","Dōngshācūn 5 Xiàng","西起：东沙村五巷1号\n东至：东沙村五巷11号","70.4米","2.1米","东西"]
[6,"东沙村六巷","Dōngshācūn 6 Xiàng","西起：东沙村六巷1号\n东至：东沙村六巷7号","46.4米","2.1米","东西"]
[7,"怡里新一村一巷","Yílǐ Xīnyīcūn 1 Xiàng","西起：怡里新一村一巷1号\n东至：怡里新一村一巷11号","78.5米","2.8米","西东"]
[8,"怡里新一村二巷","Yílǐ Xīnyīcūn 2 Xiàng","西起：怡里新一村二巷1号\n东至：怡里新一村二巷11号","78.5米","2.8米","西东"]
[9,"怡里新一村三巷","Yílǐ Xīnyīcūn 3 Xiàng","西起：怡里新一村三巷1号\n东至：怡里新一村三巷11号","78.5米","2.8米","西东"]
[10,"怡里新一村四巷","Yílǐ Xīnyīcūn 4 Xiàng","西起：怡里新一村四巷1号\n东至：怡里新一村四巷11号","78.5米","2.8米","西东"]
[11,"怡里新一村五巷","Yílǐ Xīnyīcūn 5 Xiàng","西起：怡里新一村五巷1号\n东至：怡里新一村五巷11号","78.5米","2.8米","西东"]
[12,"怡里新一村六巷","Yílǐ Xīnyīcūn 6 Xiàng","西起：怡里新一村六巷1号\n东至：怡里新一村六巷11号","78.5米","2.8米","西东"]
[13,"怡里新一村七巷","Yílǐ Xīnyīcūn 7 Xiàng","西起：怡里新一村七巷1号\n东至：怡里新一村七巷11号","78.5米","2.8米","西东"]
[14,"怡里新一村八巷","Yílǐ Xīnyīcūn 8 Xiàng","西起：怡里新一村八巷1号\n东至：怡里新一村八巷11号","78.5米","2.8米","西东"]
[15,"怡里新一村九巷","Yílǐ Xīnyīcūn 9 Xiàng","西起：怡里新一村九巷1号\n东至：怡里新一村九巷11号","78.5米","2.8米","西东"]
[16,"怡里新一村十巷","Yílǐ Xīnyīcūn 10 Xiàng","西起：怡里新一村十巷1号\n东至：怡里新一村十巷11号","78.5米","2.8米","西东"]
[17,"怡里新一村十一巷","Yílǐ Xīnyīcūn 11 Xiàng","西起：怡里新一村十一巷1号\n东至：怡里新一村十一巷11号","78.5米","2.8米","西东"]
[]
["14、梧村村（12条）"]
["序号","道路名称","汉语拼音","位置描述","基本参数",null,"走向"]
[{"$nulls":4},"长","宽"]
[1,"梧村东南一巷","Wúcūn Dōngnán 1 Xiàng","东起：梧村东南一巷1号\n南至：梧村东南一巷17号","60米","1.5米","东南"]
[2,"梧村东南二巷","Wúcūn Dōngnán 2 Xiàng","东起：梧村东南二巷1号\n南至：梧村东南二巷18号","80米","1.5米","东南"]
[3,"梧村东南三巷","Wúcūn Dōngnán 3 Xiàng","东起：梧村东南三巷1号\n南至：梧村东南三巷14号","70米","1米","东南"]
[4,"梧村东南四巷","Wúcūn Dōngnán 4 Xiàng","东起：梧村东南四巷1号\n南至：梧村东南四巷14号","70米","1.5米","东南"]
[5,"梧村东南五巷","Wúcūn Dōngnán 5 Xiàng","东起：梧村东南五巷1号\n南至：梧村东南五巷13号","70米","1.5米","东南"]
[6,"梧村东南六巷","Wúcūn Dōngnán 6 Xiàng","东起：梧村东南六巷1号\n南至：梧村东南六巷15号","80米","1.5米","东南"]
[7,"梧村东南七巷","Wúcūn Dōngnán 7 Xiàng","东起：梧村东南七巷1号\n南至：梧村东南七巷7号","50米","1.5米","东南"]
[8,"梧村新村第一巷","Wúcūn Xīncūn Dì-1 Xiàng","南起：梧村新村第一巷向南3号\n北至：梧村新村第一巷7号","70米","2米","南北"]
[9,"梧村新村第二巷","Wúcūn Xīncūn Dì-2 Xiàng","南起：梧村新村第二巷向南3号\n北至：梧村新村第二巷7号","70米","2米","南北"]
[10,"梧村新村第三巷","Wúcūn Xīncūn Dì-3 Xiàng","南起：梧村新村第三巷向南3号\n北至：梧村新村第三巷7号","70米","2米","南北"]
[11,"梧村新村第四巷","Wúcūn Xīncūn Dì-4 Xiàng","南起：梧村新村第四巷向南3号\n北至：梧村新村第四巷7号","70米","2米","南北"]
[12,"梧村新村第五巷","Wúcūn Xīncūn Dì-5 Xiàng","南起：梧村新村第五巷向南3号\n北至：梧村新村第五巷9号","82米","2米","南北"]
[]
["15、西杰村（49条）"]
["序号","道路名称","汉语拼音","位置描述","基本参数",null,"走向"]
[{"$nulls":4},"长","宽"]
[1,"广兴村一巷","Guǎngxīngcūn 1 Xiàng","西起：广兴村一巷1号\n东至：广兴村一巷12号","60米","2米","西北"]
[2,"广兴村二巷","Guǎngxīngcūn 2 Xiàng","西起：广兴村二巷1号\n东至：广兴村二巷12号","60米","2米","西北"]
[3,"广兴村三巷","Guǎngxīngcūn 3 Xiàng","西起：广兴村三巷1号\n东至：广兴村三巷12号","60米","2米","西北"]
[4,"广兴村四巷","Guǎngxīngcūn 4 Xiàng","西起：广兴村四巷1号\n东至：广兴村四巷14号","60米","2米","西北"]
[5,"广兴村五巷","Guǎngxīngcūn 5 Xiàng","西起：广兴村五巷1号\n东至：广兴村五巷14号","75米","2米","西北"]
[6,"广兴村六巷","Guǎngxīngcūn 6 Xiàng","西起：广兴村六巷1号\n东至：广兴村六巷14号","75米","2米","西北"]
[7,"广兴村七巷","Guǎngxīngcūn 7 Xiàng","西起：广兴村七巷1号\n东至：广兴村七巷14号","75米","2米","西北"]
[8,"广兴村八巷","Guǎngxīngcūn 8 Xiàng","西起：广兴村八巷1号\n东至：广兴村八巷12号","60米","2米","西北"]
[9,"广兴村九巷","Guǎngxīngcūn 9 Xiàng","西起：广兴村九巷1号\n东至：广兴村九巷12号","60米","2米","西北"]
[10,"广兴村十巷","Guǎngxīngcūn 10 Xiàng","西起：广兴村十巷1号\n东至：广兴村十巷14号","75米","2米","西北"]
[11,"广兴村十一巷","Guǎngxīngcūn 11 Xiàng","西起：广兴村十一巷1号\n东至：广兴村十一巷14号","75米","2米","西北"]
[12,"广兴村十二巷","Guǎngxīngcūn 12 Xiàng","西起：广兴村十二巷1号\n东至：广兴村十二巷14号","75米","2米","西北"]
[13,"广兴村十三巷","Guǎngxīngcūn 13 Xiàng","西起：广兴村十三巷1号\n东至：广兴村十三巷12号","75米","2米","西北"]
[14,"广兴村十四巷","Guǎngxīngcūn 14 Xiàng","西起：广兴村十四巷1号\n东至：广兴村十四巷12号","75米","2米","西北"]
[15,"广兴村十五巷","Guǎngxīngcūn 15 Xiàng","西起：广兴村十五巷1号\n东至：广兴村是五巷4号","35米","2米","西北"]
[16,"开盛村一巷","Kāishèngcūn 1 Xiàng","南起：开盛村一巷1号\n北至：开盛村一巷13号","90米","2米","南北"]
[17,"开盛村二巷","Kāishèngcūn 2 Xiàng","南起：开盛村二巷1号\n北至：开盛村二巷18号","90米","2米","南北"]
[18,"开盛村三巷","Kāishèngcūn 3 Xiàng","南起：开盛村三巷1号\n北至：开盛村三巷18号","90米","2米","南北"]
[19,"开盛村四巷","Kāishèngcūn 4 Xiàng","南起：开盛村四巷1号\n北至：开盛村四巷22号","120米","2米","南北"]
[20,"开盛村五巷","Kāishèngcūn 5 Xiàng","南起：开盛村五巷1号\n北至：开盛村五巷22号","120米","2米","南北"]
[21,"开盛村六巷","Kāishèngcūn 6 Xiàng","南起：开盛村六巷1号\n北至：开盛村六巷22号","120米","2米","南北"]
[22,"开盛村七巷","Kāishèngcūn 7 Xiàng","南起：开盛村七巷1号\n北至：开盛村七巷22号","120米","2米","南北"]
[23,"开盛村八巷","Kāishèngcūn 8 Xiàng","南起：开盛村八巷1号\n北至：开盛村八巷22号","120米","2米","南北"]
[24,"开盛村九巷","Kāishèngcūn 9 Xiàng","南起：开盛村九巷1号\n北至：开盛村九巷22号","120米","2米","南北"]
[25,"开盛村十巷","Kāishèngcūn 10 Xiàng","南起：开盛村十巷1号\n北至：开盛村十巷22号","120米","2米","南北"]
[26,"开盛村十一巷","Kāishèngcūn 11 Xiàng","南起：开盛村十一巷1号\n北至：开盛村十一巷22号","120米","2米","南北"]
[27,"开盛村十二巷","Kāishèngcūn 12 Xiàng","南起：开盛村十二巷1号\n北至：开盛村十二巷11号","80米","2米","南北"]
[28,"开盛村十三巷","Kāishèngcūn 13 Xiàng","南起：开盛村十三巷1号\n北至：开盛村十三巷11号","80米","2米","南北"]
[29,"西杰村一巷","Xījiécūn 1 Xiàng","东起：西杰村一巷1号\n西至：西杰村一巷24号","140米","2米","东西"]
[30,"西杰村二巷","Xījiécūn 2 Xiàng","东起：西杰村二巷1号\n西至：西杰村二巷24号","140米","2米","东西"]
[31,"西杰村三巷","Xījiécūn 3 Xiàng","东起：西杰村三巷1号\n西至：西杰村三巷24号","140米","2米","东西"]
[32,"西杰村四巷","Xījiécūn 4 Xiàng","东起：西杰村四巷1号\n西至：西杰村四巷24号","140米","2米","东西"]
[33,"西杰村五巷","Xījiécūn 5 Xiàng","东起：西杰村五巷1号\n西至：西杰村五巷26号","150米","2米","东西"]
[34,"西杰村六巷","Xījiécūn 6 Xiàng","东起：西杰村六巷1号\n西至：西杰村六巷26号","150米","2米","东西"]
[35,"西杰村七巷","Xījiécūn 7 Xiàng","东起：西杰村七巷1号\n西至：西杰村七巷22号","150米","2米","东西"]
[36,"西杰村八巷","Xījiécūn 8 Xiàng","东起：西杰村八巷1号\n西至：西杰村八巷15号","70米","2米","东西"]
[37,"西杰村九巷","Xījiécūn 9 Xiàng","东起：西杰村九巷1号\n西至：西杰村九巷15号","70米","2米","东西"]
[38,"西杰村十巷","Xījiécūn 10 Xiàng","东起：西杰村十巷1号\n西至：西杰村十巷11号","70米","2米","东西"]
[39,"西杰村十一巷","Xījiécūn 11 Xiàng","东起：西杰村十一巷1号\n西至：西杰村十一巷21号","70米","2米","东西"]
[40,"西杰村十二巷","Xījiécūn 12 Xiàng","东起：西杰村十二巷1号\n西至：西杰村十二巷21号","70米","2米","东西"]
[41,"西杰村十三巷","Xījiécūn 13 Xiàng","东起：西杰村十三巷1号\n西至：西杰村十三巷21号","70米","2米","东西"]
[42,"西杰村十四巷","Xījiécūn 14 Xiàng","东起：西杰村十四巷1号\n西至：西杰村十四巷21号","70米","2米","东西"]
[43,"西杰村十五巷","Xījiécūn 15 Xiàng","东起：西杰村十五巷1号\n西至：西杰村十五巷20号","70米","2米","东西"]
[44,"西杰村十六巷","Xījiécūn 16 Xiàng","东起：西杰村十六巷1号\n西至：西杰村十六巷21号","70米","2米","东西"]
[45,"西杰村十七巷","Xījiécūn 17 Xiàng","东起：西杰村十七巷1号\n西至：西杰村十七巷21号","70米","2米","东西"]
[46,"西杰村十八巷","Xījiécūn 18 Xiàng","东起：西杰村十八巷1号\n西至：西杰村十八巷21号 ","70米","2米","东西"]
[47,"西杰村十九巷","Xījiécūn 19 Xiàng","东起：西杰村十九巷1号\n西至：西杰村十九巷13号","70米","2米","东西"]
[48,"西杰村二十巷","Xījiécūn 20 Xiàng","东起：西杰村二十巷1号\n西至：西杰村二十巷13号","70米","2米","东西"]
[49,"西杰村二十一巷","Xījiécūn 21 Xiàng","东起：西杰村二十一巷1号\n西至：西杰村二十一巷8号","40米","2米","东西"]
[]
["16、现龙村（60条）"]
["序号","道路名称","汉语拼音","位置描述","基本参数",null,"走向"]
[{"$nulls":4},"长","宽"]
[1,"龙门村南一巷","Lóngméncūn Nán 1 Xiàng","南起：现龙卫生站前乡道              北至：龙门村南一巷6号","80米","1.5米","南北"]
[2,"龙门村南二巷","Lóngméncūn Nán 2 Xiàng","南起：现龙卫生站旁              北至：龙门村南二巷7号","90米","1.5米","南北"]
[3,"龙门村南三巷","Lóngméncūn Nán 3 Xiàng","南起：龙门村南三巷1号\n北至：龙门村南三巷7号","75米","1.5米","南北"]
[4,"龙门村南四巷","Lóngméncūn Nán 4 Xiàng","南起：现龙卫生站             北至：龙门村南三巷11号","75米","1.5米","南北"]
[5,"龙门村南五巷","Lóngméncūn Nán 5 Xiàng","南起：现龙卫生站              北至：龙门村东三巷头","80米","1.5米","南北"]
[6,"龙门村东二巷","Lóngméncūn Dōng 2 Xiàng","南起：龙门村东二巷1号\n北至：龙门村东二巷5号","50米","1.5米","南北"]
[7,"龙门村东三巷","Lóngméncūn Dōng 3 Xiàng","南起：龙门村南五巷巷尾              北至：龙门村东三巷7号","50米","1.5米","南北"]
[8,"龙门村东四巷","Lóngméncūn Dōng 4 Xiàng","南起：龙门村东四巷2号        北至：龙门村东四巷","50米","1.5米","南北"]
[9,"龙门村东五巷","Lóngméncūn Dōng 5 Xiàng","南起：龙门村东五巷2号              北至：龙门村东五巷8号","50米","1.5米","南北"]
[10,"龙门村东六巷","Lóngméncūn Dōng 6 Xiàng","南起：龙门村东六巷1号              北至：龙门村向西四巷12号","50米","1.5米","南北"]
[11,"龙门村向西一巷","Lóngméncūn Xiàngxī 1 Xiàng","东起：龙门村向西一巷3号                                   西至：龙门村经济合作社","40米","1.5米","东西"]
[12,"龙门村向西二巷","Lóngméncūn Xiàngxī 2 Xiàng","东起：龙门村向西二巷               西至：龙门村向西二巷12号","55米","1.5米","东西"]
[13,"龙门村向西三巷","Lóngméncūn Xiàngxī 3 Xiàng","东起：龙门村东六巷8号               西至：龙门村经济合作社","50米","1.5米","东西"]
[14,"现龙塘尾村一巷","Xiànlóng Tángwěicūn 1 Xiàng","南起：塘尾村村前乡道              北至：塘尾村村后乡道","40米","1.5米","南北"]
[15,"现龙塘尾村二巷","Xiànlóng Tángwěicūn 2 Xiàng","南起：塘尾村村前乡道              北至：塘尾村村后乡道","50米","1.5米","南北"]
[16,"现龙塘尾村三巷","Xiànlóng Tángwěicūn 3 Xiàng","南起：塘尾村村前乡道              北至：塘尾村村后乡道","75米","1.5米","南北"]
[17,"现龙塘尾村四巷","Xiànlóng Tángwěicūn 4 Xiàng","南起：塘尾村村前乡道              北至：塘尾村村后乡道","75米","1.5米","南北"]
[18,"现龙塘尾村五巷","Xiànlóng Tángwěicūn 5 Xiàng","南起：塘尾村村前乡道              北至：塘尾村村后乡道","75米","1.5米","南北"]
[19,"现龙塘尾村六巷","Xiànlóng Tángwěicūn 6 Xiàng","南起：塘尾村村前乡道              北至：塘尾村村后乡道","45米","1.5米","南北"]
[20,"现龙塘尾村七巷","Xiànlóng Tángwěicūn 7 Xiàng","南起：塘尾村村前乡道              北至：塘尾村村后乡道","90米","1.5米","南北"]
[21,"现龙塘尾村八巷","Xiànlóng Tángwěicūn 8 Xiàng","南起：塘尾村村前乡道              北至：塘尾村村后乡道","70米","1.5米","南北"]
[22,"现龙塘尾村九巷","Xiànlóng Tángwěicūn 9 Xiàng","南起：塘尾村村前乡道              北至：塘尾村村后乡道","90米","1.5米","南北"]
[23,"现龙塘尾村十巷","Xiànlóng Tángwěicūn 10 Xiàng","南起：塘尾村村前乡道              北至：塘尾村村后乡道","100米","1.5米","南北"]
[24,"现龙塘尾村十一巷","Xiànlóng Tángwěicūn 11 Xiàng","南起：塘尾村村前乡道              北至：塘尾村村后乡道","50米","1.5米","南北"]
[25,"龙胜现龙村一巷","Lóngshèng Xiànlóngcūn 1 Xiàng","南起：现龙村村前乡道              北至：现龙村村后乡道","120米","1.5米","南北"]
[26,"龙胜现龙村二巷","Lóngshèng Xiànlóngcūn 2 Xiàng","南起：现龙村村前乡道              北至：现龙村村后乡道","110米","1.5米","南北"]
[27,"龙胜现龙村三巷","Lóngshèng Xiànlóngcūn 3 Xiàng","南起：现龙村村前乡道              北至：现龙村村后乡道","120米","1.5米","南北"]
[28,"龙胜现龙村四巷","Lóngshèng Xiànlóngcūn 4 Xiàng","南起：现龙村村前乡道              北至：现龙村村后乡道","115米","1.5米","南北"]
[29,"龙胜现龙村五巷","Lóngshèng Xiànlóngcūn 5 Xiàng","南起：现龙村村前乡道              北至：现龙村村后乡道","55米","1.5米","南北"]
[30,"龙胜现龙村六巷","Lóngshèng Xiànlóngcūn 6 Xiàng","南起：现龙村村前乡道              北至：现龙村村后乡道","80米","1.5米","南北"]
[31,"龙胜现龙村七巷","Lóngshèng Xiànlóngcūn 7 Xiàng","南起：现龙村村前鱼塘              北至：现龙村村后树林","115米","1.5米","南北"]
[32,"龙胜现龙村八巷","Lóngshèng Xiànlóngcūn 8 Xiàng","南起：现龙村村前鱼塘              北至：现龙村村后树林","115米","1.5米","南北"]
[33,"龙胜现龙村九巷","Lóngshèng Xiànlóngcūn 9 Xiàng","南起：现龙村村前鱼塘              北至：现龙村村后树林","100米","1.5米","南北"]
[34,"龙胜现龙村十巷","Lóngshèng Xiànlóngcūn 10 Xiàng","南起：现龙村村前鱼塘              北至：现龙村村后树林","120米","1.5米","南北"]
[35,"龙胜现龙村十一巷","Lóngshèng Xiànlóngcūn 11 Xiàng","南起：现龙村村前鱼塘              北至：现龙村村后树林","130米","1.5米","南北"]
[36,"龙胜现龙村十二巷","Lóngshèng Xiànlóngcūn 12 Xiàng","南起：现龙村村前鱼塘              北至：现龙村村后树林","135米","1.5米","南北"]
[37,"龙胜现龙村十三巷","Lóngshèng Xiànlóngcūn 13 Xiàng","南起：现龙村村前鱼塘              北至：现龙村村后树林","120米","1.5米","南北"]
[38,"龙胜现龙村十四巷","Lóngshèng Xiànlóngcūn 14 Xiàng","南起：现龙村村前鱼塘              北至：现龙村村后树林","135米","1.5米","南北"]
[39,"龙胜现龙村十五巷","Lóngshèng Xiànlóngcūn 15 Xiàng","南起：现龙村村前鱼塘              北至：现龙村村后树林","130米","1.5米","南北"]
[40,"龙胜现龙村十六巷","Lóngshèng Xiànlóngcūn 16 Xiàng","南起：现龙村村前鱼塘              北至：现龙村村后树林","40米","1.5米","南北"]
[41,"龙胜现龙村十七巷","Lóngshèng Xiànlóngcūn 17 Xiàng","南起：现龙村村前鱼塘              北至：现龙村村后树林","95米","1.5米","南北"]
[42,"龙胜现龙村十八巷","Lóngshèng Xiànlóngcūn 18 Xiàng","南起：现龙村村前鱼塘              北至：现龙村村后树林","120米","1.5米","南北"]
[43,"龙胜现龙村十九巷","Lóngshèng Xiànlóngcūn 19 Xiàng","南起：现龙村村前乡道            北至：现龙村村后树林","60米","1.5米","南北"]
[44,"龙胜现龙村二十巷","Lóngshèng Xiànlóngcūn 20 Xiàng","南起：现龙村村前乡道            北至：现龙村村后树林","80米","1.5米","南北"]
[45,"龙胜现龙村二十一巷","Lóngshèng Xiànlóngcūn 21 Xiàng","南起：现龙村村前乡道            北至：现龙村村后树林","55米","1.5米","南北"]
[46,"龙胜现龙村二十二巷","Lóngshèng Xiànlóngcūn 22 Xiàng","南起：现龙村村前乡道            北至：现龙村村后树林","55米","1.5米","南北"]
[47,"龙胜现龙村二十三巷","Lóngshèng Xiànlóngcūn 23 Xiàng","南起：现龙村村前乡道            北至：现龙村村后树林","45米","1.5米","南北"]
[48,"现龙长安村一巷","Xiànlóng Chángāncūn 1 Xiàng","东起：长安村村前晒场              西至：长安村村后树林","30米","1.5米","东西"]
[49,"现龙长安村二巷","Xiànlóng Chángāncūn 2 Xiàng","东起：长安村村前晒场              西至：长安村村后树林","30米","1.5米","东西"]
[50,"现龙长安村三巷","Xiànlóng Chángāncūn 3 Xiàng","东起：长安村村前晒场              西至：长安村村后树林","30米","1.5米","东西"]
[51,"现龙长安村四巷","Xiànlóng Chángāncūn 4 Xiàng","东起：长安村村前鱼塘         西至：长安村村后树林","50米","1.5米","东西"]
[52,"现龙长安村五巷","Xiànlóng Chángāncūn 5 Xiàng","东起：长安村村前鱼塘         西至：长安村村后树林","40米","1.5米","东西"]
[53,"现龙长安村六巷","Xiànlóng Chángāncūn 6 Xiàng","东起：长安村村前鱼塘         西至：长安村村后树林","30米","1.5米","东西"]
[54,"现龙长安村七巷","Xiànlóng Chángāncūn 7 Xiàng","东起：长安村村前鱼塘         西至：长安村村后树林","60米","1.5米","东西"]
[55,"现龙长安村八巷","Xiànlóng Chángāncūn 8 Xiàng","东起：长安村村前鱼塘         西至：长安村村后树林","60米","1.5米","东西"]
[56,"现龙长安村九巷","Xiànlóng Chángāncūn 9 Xiàng","东起：长安村村前乡道         西至：长安村村后树林","40米","1.5米","东西"]
[57,"现龙长安村十巷","Xiànlóng Chángāncūn 10 Xiàng","东起：长安村村前乡道         西至：长安村村后树林","25米","1.5米","东西"]
[58,"现龙长安村十一巷","Xiànlóng Chángāncūn 11 Xiàng","东起：长安村村前乡道         西至：长安村村后树林","40米","1.5米","东西"]
[59,"现龙长安村十二巷","Xiànlóng Chángāncūn 12 Xiàng","东起：长安村村前乡道         西至：长安村村后树林","40米","1.5米","东西"]
[60,"现龙长安村十三巷","Xiànlóng Chángāncūn 13 Xiàng","东起：长安村村前乡道         西至：长安村村后树林","40米","1.5米","东西"]